Body Name,Body,Service Area Catergorisation,Service Division Catergorisation,Responsible Unit,Expenses Type,Detailed Expenses Type,Expenses Code,Date,Transaction Number,Amount,Capital / Revenue,Supplier Name,Supplier ID
North East Lincolnshire Council,http://statistics.data.gov.uk/id/local-authority/00FC,Chief Executive,Chief Executive,Chief Exec & Support,Contributions To Provisions,Contributions - Third Sector,LK102,17/02/2012,90732,500.00 ,REVENUE,6TH CLEETHORPES CHRIST CHURCH SCOUT GROUP,104495
North East Lincolnshire Council,http://statistics.data.gov.uk/id/local-authority/00FC,Chief Executive,Chief Executive,Recharges To Corp Management,Government Departments,Third Party Prov - Govt Depts,PE101,02/02/2012,85452,"-1,755.00 ",REVENUE,AUDIT COMMISSION,100510
North East Lincolnshire Council,http://statistics.data.gov.uk/id/local-authority/00FC,Chief Executive,Chief Executive,Recharges To Corp Management,Government Departments,Third Party Prov - Govt Depts,PE101,02/02/2012,85452,510.00 ,REVENUE,AUDIT COMMISSION,100510
North East Lincolnshire Council,http://statistics.data.gov.uk/id/local-authority/00FC,Chief Executive,Chief Executive,Recharges To Corp Management,Government Departments,Third Party Prov - Govt Depts,PE101,02/02/2012,85452,595.00 ,REVENUE,AUDIT COMMISSION,100510
North East Lincolnshire Council,http://statistics.data.gov.uk/id/local-authority/00FC,Chief Executive,Chief Executive,Recharges To Corp Management,Government Departments,Third Party Prov - Govt Depts,PE101,02/02/2012,85452,"21,945.00 ",REVENUE,AUDIT COMMISSION,100510
North East Lincolnshire Council,http://statistics.data.gov.uk/id/local-authority/00FC,Chief Executive,Chief Executive,Recharges To Corp Management,Government Departments,Third Party Prov - Govt Depts,PE101,09/02/2012,87619,"32,953.00 ",REVENUE,AUDIT COMMISSION,100510
North East Lincolnshire Council,http://statistics.data.gov.uk/id/local-authority/00FC,Chief Executive,Chief Executive,Chief Exec & Support,Contributions To Provisions,Contributions - Third Sector,LK102,21/02/2012,91067,500.00 ,REVENUE,BARCROFT STREET NEIGHBOURHOOD,108322
North East Lincolnshire Council,http://statistics.data.gov.uk/id/local-authority/00FC,Chief Executive,Chief Executive,Chief Exec & Support,Contributions To Provisions,Contributions - Third Sector,LK102,23/02/2012,92060,"1,500.00 ",REVENUE,CLEETHORPES IN BLOOM,107522
North East Lincolnshire Council,http://statistics.data.gov.uk/id/local-authority/00FC,Chief Executive,Chief Executive,Chief Exec & Support,Contributions To Provisions,Contributions - Third Sector,LK102,21/02/2012,91050,500.00 ,REVENUE,DAUBNEY STREET (SEA END) NHWG,109061
North East Lincolnshire Council,http://statistics.data.gov.uk/id/local-authority/00FC,Chief Executive,Chief Executive,Chief Exec & Support,Contributions To Provisions,Contributions - Third Sector,LK102,06/02/2012,86392,750.00 ,REVENUE,FRIENDS OF CLEETHORPES HERITAGE,108776
North East Lincolnshire Council,http://statistics.data.gov.uk/id/local-authority/00FC,Chief Executive,Chief Executive,Chief Exec & Support,Contributions To Provisions,Contributions - Third Sector,LK102,21/02/2012,91041,500.00 ,REVENUE,FULLER STREET NEIGHBOURHOOD WATCH GROUP,109060
North East Lincolnshire Council,http://statistics.data.gov.uk/id/local-authority/00FC,Chief Executive,Chief Executive,Chief Exec & Support,Contributions To Provisions,Contributions - Third Sector,LK102,21/02/2012,91056,500.00 ,REVENUE,Redacted Personal Information,Redacted Personal Information
North East Lincolnshire Council,http://statistics.data.gov.uk/id/local-authority/00FC,Chief Executive,Chief Executive,Chief Exec & Support,Contributions To Provisions,Contributions - Third Sector,LK102,27/02/2012,92417,Redacted Commercially Sensitive,REVENUE,GRIMSBY AND CLEETHORPES YMCA,100305
North East Lincolnshire Council,http://statistics.data.gov.uk/id/local-authority/00FC,Chief Executive,Chief Executive,Chief Exec & Support,Contributions To Provisions,Contributions - Third Sector,LK102,10/02/2012,88297,"1,000.00 ",REVENUE,GRIMSBY CLEETHORPES DISTRICT SCHOOLS,108928
North East Lincolnshire Council,http://statistics.data.gov.uk/id/local-authority/00FC,Chief Executive,Chief Executive,Chief Exec & Support,Contributions To Provisions,Contributions - Third Sector,LK102,16/02/2012,63398,"2,500.00 ",REVENUE,GRIMSBY MINSTER,106153
North East Lincolnshire Council,http://statistics.data.gov.uk/id/local-authority/00FC,Chief Executive,Chief Executive,Chief Exec & Support,Contributions To Provisions,Contributions - Third Sector,LK102,06/02/2012,86429,"1,000.00 ",REVENUE,GRIMSBY RUGBY UNION FOOTBALL CLUB LTD,103842
North East Lincolnshire Council,http://statistics.data.gov.uk/id/local-authority/00FC,Chief Executive,Chief Executive,Chief Exec & Support,Contributions To Provisions,Contributions - Third Sector,LK102,17/02/2012,90755,500.00 ,REVENUE,Redacted Personal Information,Redacted Personal Information
North East Lincolnshire Council,http://statistics.data.gov.uk/id/local-authority/00FC,Chief Executive,Chief Executive,Chief Exec & Support,Contributions To Provisions,Contributions - Third Sector,LK102,17/02/2012,90729,700.00 ,REVENUE,HOPE STREET TRUST,109047
North East Lincolnshire Council,http://statistics.data.gov.uk/id/local-authority/00FC,Chief Executive,Chief Executive,Chief Exec & Support,Contributions To Provisions,Contributions - Third Sector,LK102,17/02/2012,90726,"1,000.00 ",REVENUE,IMMINGHAM IN BLOOM,109044
North East Lincolnshire Council,http://statistics.data.gov.uk/id/local-authority/00FC,Chief Executive,Chief Executive,Chief Exec & Support,Contributions To Provisions,Contributions - Third Sector,LK102,01/02/2012,85054,"2,650.00 ",REVENUE,J W PLATER LTD,100555
North East Lincolnshire Council,http://statistics.data.gov.uk/id/local-authority/00FC,Chief Executive,Chief Executive,Chief Exec & Support,Contributions To Provisions,Contributions - Third Sector,LK102,15/02/2012,63399,"1,000.00 ",REVENUE,Redacted Personal Information,Redacted Personal Information
North East Lincolnshire Council,http://statistics.data.gov.uk/id/local-authority/00FC,Chief Executive,Chief Executive,Chief Exec & Support,Contributions To Provisions,Contributions - Third Sector,LK102,13/02/2012,63213,"2,000.00 ",REVENUE,Redacted Personal Information,Redacted Personal Information
North East Lincolnshire Council,http://statistics.data.gov.uk/id/local-authority/00FC,Chief Executive,Chief Executive,Chief Exec & Support,Contributions To Provisions,Contributions - Third Sector,LK102,21/02/2012,91046,500.00 ,REVENUE,Redacted Personal Information,Redacted Personal Information
North East Lincolnshire Council,http://statistics.data.gov.uk/id/local-authority/00FC,Chief Executive,Chief Executive,Chief Exec & Support,Contributions To Provisions,Contributions - Third Sector,LK102,08/02/2012,87157,"2,500.00 ",REVENUE,PARK WARD ACTION GROUP,108650
North East Lincolnshire Council,http://statistics.data.gov.uk/id/local-authority/00FC,Chief Executive,Chief Executive,Chief Exec & Support,Contributions To Provisions,Contributions - Third Sector,LK102,06/02/2012,86418,620.00 ,REVENUE,SECOND AVENUE RESOURCE CENTRE LIMITED,100648
North East Lincolnshire Council,http://statistics.data.gov.uk/id/local-authority/00FC,Chief Executive,Chief Executive,Chief Exec & Support,Contributions To Provisions,Contributions - Third Sector,LK102,21/02/2012,91066,"1,000.00 ",REVENUE,ST ANDREWS CHURCH MEAL SCHEME,109065
North East Lincolnshire Council,http://statistics.data.gov.uk/id/local-authority/00FC,Chief Executive,Chief Executive,Chief Exec & Support,Contributions To Provisions,Contributions - Third Sector,LK102,21/02/2012,91062,"1,000.00 ",REVENUE,ST ANDREWS OPEN DOOR YOUTH PROJECT,108872
North East Lincolnshire Council,http://statistics.data.gov.uk/id/local-authority/00FC,Chief Executive,Chief Executive,Chief Exec & Support,Contributions To Provisions,Contributions - Third Sector,LK102,21/02/2012,91068,500.00 ,REVENUE,SUSSEX ST NHWG,108323
North East Lincolnshire Council,http://statistics.data.gov.uk/id/local-authority/00FC,Chief Executive,Chief Executive,Chief Exec & Support,Contributions To Provisions,Contributions - Third Sector,LK102,10/02/2012,88150,655.00 ,REVENUE,TRADITIONAL GATES,108564
North East Lincolnshire Council,http://statistics.data.gov.uk/id/local-authority/00FC,Chief Executive,Chief Executive,Chief Exec & Support,Contributions To Provisions,Contributions - Third Sector,LK102,06/02/2012,86412,648.00 ,REVENUE,WEELSBY ALLOTMENT SOCIETY,108780
North East Lincolnshire Council,http://statistics.data.gov.uk/id/local-authority/00FC,Chief Executive,Chief Executive,Chief Exec & Support,Contributions To Provisions,Contributions - Third Sector,LK102,21/02/2012,91070,500.00 ,REVENUE,Redacted Personal Information,Redacted Personal Information
North East Lincolnshire Council,http://statistics.data.gov.uk/id/local-authority/00FC,Chief Executive,Chief Executive,Chief Exec & Support,Miscellaneous Expenses,Legal Fees - General,LL103,09/02/2012,87728,Redacted Commercially Sensitive,REVENUE,WILKIN CHAPMAN SOLICITORS,100948
North East Lincolnshire Council,http://statistics.data.gov.uk/id/local-authority/00FC,Other Corporate Budgets,Borrowing Costs,Misc Interest Bank Charges Etc,Other Agencies,Treasury Advisors,PJ143,22/02/2012,91790,"-18,500.00 ",REVENUE,ARLINGCLOSE LTD,109096
North East Lincolnshire Council,http://statistics.data.gov.uk/id/local-authority/00FC,Other Corporate Budgets,Borrowing Costs,Misc Interest Bank Charges Etc,Other Agencies,Treasury Advisors,PJ143,22/02/2012,91679,"18,500.00 ",REVENUE,ARLINGCLOSE LTD,109096
North East Lincolnshire Council,http://statistics.data.gov.uk/id/local-authority/00FC,Other Corporate Budgets,Borrowing Costs,Misc Interest Bank Charges Etc,Other Agencies,Treasury Advisors,PJ143,22/02/2012,91664,"18,500.00 ",REVENUE,ARLINGCLOSE LTD,109093
North East Lincolnshire Council,http://statistics.data.gov.uk/id/local-authority/00FC,Other Corporate Budgets,Other Corporate Budgets,Appropriations,Miscellaneous Expenses,Other Expenses General,LL119,02/02/2012,85663,"4,000.00 ",REVENUE,HYMANS ROBERTSON LLP,107021
North East Lincolnshire Council,http://statistics.data.gov.uk/id/local-authority/00FC,Other Corporate Budgets,Other Corporate Budgets,Appropriations,Indirect Employee Expenses,Pension P/Ment Pension Inc Act,EB105,15/02/2012,89288,894.74 ,REVENUE,LINCOLNSHIRE COUNTY COUNCIL,100389
North East Lincolnshire Council,http://statistics.data.gov.uk/id/local-authority/00FC,Other Corporate Budgets,Borrowing Costs,Misc Interest Bank Charges Etc,Miscellaneous Expenses,Legal Fees - General,LL103,06/02/2012,86040,515.69 ,REVENUE,LOCAL GOVERNMENT ASSOCIATION,101113
North East Lincolnshire Council,http://statistics.data.gov.uk/id/local-authority/00FC,Other Corporate Budgets,Borrowing Costs,Misc Interest Bank Charges Etc,Miscellaneous Expenses,Legal Fees - General,LL103,06/02/2012,86040,"3,072.71 ",REVENUE,LOCAL GOVERNMENT ASSOCIATION,101113
North East Lincolnshire Council,http://statistics.data.gov.uk/id/local-authority/00FC,People And Communities,Vulnerable Young People,Through Care & Disability,Other Agencies,Incentive Payment,PJ124,15/02/2012,89587,901.00 ,REVENUE,16+ SERVICES,100943
North East Lincolnshire Council,http://statistics.data.gov.uk/id/local-authority/00FC,People And Communities,Vulnerable Young People,Through Care & Disability,Other Agencies,Personal Allowance,PJ122,15/02/2012,89587,"1,331.35 ",REVENUE,16+ SERVICES,100943
North East Lincolnshire Council,http://statistics.data.gov.uk/id/local-authority/00FC,People And Communities,Vulnerable Young People,Placement & Support,Catering,Provisions,LB101,27/02/2012,92276,Redacted,REVENUE,PETTY CASH,Redacted
North East Lincolnshire Council,http://statistics.data.gov.uk/id/local-authority/00FC,People And Communities,Childrens Hlth & Family Supp,Integrated Youth Services,Miscellaneous Expenses,Activities - Service Users,LL114,10/02/2012,88193,696.04 ,REVENUE,A & M FREEDOM,107657
North East Lincolnshire Council,http://statistics.data.gov.uk/id/local-authority/00FC,People And Communities,Vulnerable Young People,Placement & Support,Other Agencies,Child Care Payments,PJ104,21/02/2012,64506,-140.14 ,REVENUE,Redacted Personal Information,Redacted Personal Information
North East Lincolnshire Council,http://statistics.data.gov.uk/id/local-authority/00FC,People And Communities,Vulnerable Young People,Placement & Support,Other Agencies,Child Care Payments,PJ104,14/02/2012,63484,-62.14 ,REVENUE,Redacted Personal Information,Redacted Personal Information
North East Lincolnshire Council,http://statistics.data.gov.uk/id/local-authority/00FC,People And Communities,Vulnerable Young People,Placement & Support,Other Agencies,Child Care Payments,PJ104,07/02/2012,62151,-62.14 ,REVENUE,Redacted Personal Information,Redacted Personal Information
North East Lincolnshire Council,http://statistics.data.gov.uk/id/local-authority/00FC,People And Communities,Vulnerable Young People,Placement & Support,Other Agencies,Child Care Payments,PJ104,14/02/2012,63484,-46.71 ,REVENUE,Redacted Personal Information,Redacted Personal Information
North East Lincolnshire Council,http://statistics.data.gov.uk/id/local-authority/00FC,People And Communities,Vulnerable Young People,Placement & Support,Private Contractors,Third Party Prov - Private,PH101,22/02/2012,91479,"9,964.28 ",REVENUE,A WILDERNESS WAY LTD,102537
North East Lincolnshire Council,http://statistics.data.gov.uk/id/local-authority/00FC,People And Communities,Vulnerable Young People,Sen/Inclusion,Private Contractors,Third Party Prov - Private,PH101,06/02/2012,86344,615.45 ,REVENUE,A4E CONSULT LTD,101656
North East Lincolnshire Council,http://statistics.data.gov.uk/id/local-authority/00FC,People And Communities,Vulnerable Young People,Sen/Inclusion,Private Contractors,Third Party Prov - Private,PH101,21/02/2012,88309,"11,514.00 ",REVENUE,A4E CONSULT LTD,101656
North East Lincolnshire Council,http://statistics.data.gov.uk/id/local-authority/00FC,People And Communities,Vulnerable Young People,School Access Governor Student,Contract Hire-Operating Leases,Vehicles - Contract Hire,JC101,16/02/2012,90128,Redacted Commercially Sensitive,REVENUE,AA RADIO CARS LTD,101222
North East Lincolnshire Council,http://statistics.data.gov.uk/id/local-authority/00FC,People And Communities,Vulnerable Young People,School Access Governor Student,Contract Hire-Operating Leases,Vehicles - Contract Hire,JC101,13/02/2012,88709,Redacted Commercially Sensitive,REVENUE,AA RADIO CARS LTD,101222
North East Lincolnshire Council,http://statistics.data.gov.uk/id/local-authority/00FC,People And Communities,Vulnerable Young People,School Access Governor Student,Contract Hire-Operating Leases,Vehicles - Contract Hire,JC101,16/02/2012,90122,Redacted Commercially Sensitive,REVENUE,AA RADIO CARS LTD,101222
North East Lincolnshire Council,http://statistics.data.gov.uk/id/local-authority/00FC,People And Communities,Vulnerable Young People,School Access Governor Student,Contract Hire-Operating Leases,Vehicles - Contract Hire,JC101,13/02/2012,88710,Redacted Commercially Sensitive,REVENUE,AA RADIO CARS LTD,101222
North East Lincolnshire Council,http://statistics.data.gov.uk/id/local-authority/00FC,People And Communities,Vulnerable Young People,School Access Governor Student,Contract Hire-Operating Leases,Vehicles - Contract Hire,JC101,13/02/2012,88707,Redacted Commercially Sensitive,REVENUE,AA RADIO CARS LTD,101222
North East Lincolnshire Council,http://statistics.data.gov.uk/id/local-authority/00FC,People And Communities,Vulnerable Young People,Placement & Support,Private Contractors,Third Party Prov - Private,PH101,06/02/2012,86291,"1,314.00 ",REVENUE,ACTION FOR CHILDREN SERVICES LTD,105607
North East Lincolnshire Council,http://statistics.data.gov.uk/id/local-authority/00FC,People And Communities,Childrens Hlth & Family Supp,Childrens Centre Development,Miscellaneous Expenses,Activities - Service Users,LL114,01/02/2012,84725,595.00 ,REVENUE,ADELE MURRAY,104852
North East Lincolnshire Council,http://statistics.data.gov.uk/id/local-authority/00FC,People And Communities,Vulnerable Young People,Placement & Support,Print Stationery / Gen Off Exp,Advertising,LD104,10/02/2012,88330,514.38 ,REVENUE,ADOPTION UK,101206
North East Lincolnshire Council,http://statistics.data.gov.uk/id/local-authority/00FC,People And Communities,Vulnerable Young People,Placement & Support,Print Stationery / Gen Off Exp,Advertising,LD104,10/02/2012,88331,514.38 ,REVENUE,ADOPTION UK,101206
North East Lincolnshire Council,http://statistics.data.gov.uk/id/local-authority/00FC,People And Communities,Vulnerable Young People,Placement & Support,Print Stationery / Gen Off Exp,Advertising,LD104,10/02/2012,88333,514.38 ,REVENUE,ADOPTION UK,101206
North East Lincolnshire Council,http://statistics.data.gov.uk/id/local-authority/00FC,People And Communities,Vulnerable Young People,Placement & Support,Print Stationery / Gen Off Exp,Advertising,LD104,13/02/2012,88337,514.38 ,REVENUE,ADOPTION UK,101206
North East Lincolnshire Council,http://statistics.data.gov.uk/id/local-authority/00FC,People And Communities,Vulnerable Young People,Placement & Support,Print Stationery / Gen Off Exp,Advertising,LD104,10/02/2012,88334,650.88 ,REVENUE,ADOPTION UK,101206
North East Lincolnshire Council,http://statistics.data.gov.uk/id/local-authority/00FC,People And Communities,Vulnerable Young People,Placement & Support,Print Stationery / Gen Off Exp,Advertising,LD104,13/02/2012,88338,650.88 ,REVENUE,ADOPTION UK,101206
North East Lincolnshire Council,http://statistics.data.gov.uk/id/local-authority/00FC,People And Communities,Vulnerable Young People,Placement & Support,Print Stationery / Gen Off Exp,Advertising,LD104,13/02/2012,88340,650.88 ,REVENUE,ADOPTION UK,101206
North East Lincolnshire Council,http://statistics.data.gov.uk/id/local-authority/00FC,People And Communities,Vulnerable Young People,School Access Governor Student,Contract Hire-Operating Leases,Vehicles - Contract Hire,JC101,13/02/2012,88711,Redacted Commercially Sensitive,REVENUE,AIRPORT TRAVEL,107220
North East Lincolnshire Council,http://statistics.data.gov.uk/id/local-authority/00FC,People And Communities,Vulnerable Young People,School Access Governor Student,Contract Hire-Operating Leases,Vehicles - Contract Hire,JC101,14/02/2012,89289,Redacted Commercially Sensitive,REVENUE,AIRPORT TRAVEL,107220
North East Lincolnshire Council,http://statistics.data.gov.uk/id/local-authority/00FC,People And Communities,Vulnerable Young People,Safeguarding,Miscellaneous Expenses,Legal Fees - General,LL103,13/02/2012,87903,"2,000.00 ",REVENUE,Redacted Personal Information,Redacted Personal Information
North East Lincolnshire Council,http://statistics.data.gov.uk/id/local-authority/00FC,People And Communities,Improved Health,Health Promotion,Contributions To Provisions,Contributions - Other,LK103,17/02/2012,90696,850.00 ,REVENUE,ALLY MCMAHON,109035
North East Lincolnshire Council,http://statistics.data.gov.uk/id/local-authority/00FC,People And Communities,Vulnerable Young People,School Access Governor Student,Contract Hire-Operating Leases,Vehicles - Contract Hire,JC101,16/02/2012,90113,Redacted Commercially Sensitive,REVENUE,AMVALE LIMITED,101030
North East Lincolnshire Council,http://statistics.data.gov.uk/id/local-authority/00FC,People And Communities,Vulnerable Young People,School Access Governor Student,Contract Hire-Operating Leases,Vehicles - Contract Hire,JC101,16/02/2012,90114,Redacted Commercially Sensitive,REVENUE,AMVALE LIMITED,101030
North East Lincolnshire Council,http://statistics.data.gov.uk/id/local-authority/00FC,People And Communities,Vulnerable Young People,School Access Governor Student,Contract Hire-Operating Leases,Vehicles - Contract Hire,JC101,01/02/2012,84430,Redacted Commercially Sensitive,REVENUE,AMVALE LIMITED,101030
North East Lincolnshire Council,http://statistics.data.gov.uk/id/local-authority/00FC,People And Communities,Vulnerable Young People,School Access Governor Student,Contract Hire-Operating Leases,Vehicles - Contract Hire,JC101,03/02/2012,86044,Redacted Commercially Sensitive,REVENUE,AMVALE LIMITED,101030
North East Lincolnshire Council,http://statistics.data.gov.uk/id/local-authority/00FC,People And Communities,Vulnerable Young People,School Access Governor Student,Contract Hire-Operating Leases,Vehicles - Contract Hire,JC101,03/02/2012,86053,Redacted Commercially Sensitive,REVENUE,AMVALE LIMITED,101030
North East Lincolnshire Council,http://statistics.data.gov.uk/id/local-authority/00FC,People And Communities,Vulnerable Young People,School Access Governor Student,Contract Hire-Operating Leases,Vehicles - Contract Hire,JC101,29/02/2012,92899,Redacted Commercially Sensitive,REVENUE,AMVALE LIMITED,101030
North East Lincolnshire Council,http://statistics.data.gov.uk/id/local-authority/00FC,People And Communities,Vulnerable Young People,School Access Governor Student,Contract Hire-Operating Leases,Vehicles - Contract Hire,JC101,29/02/2012,92903,Redacted Commercially Sensitive,REVENUE,AMVALE LIMITED,101030
North East Lincolnshire Council,http://statistics.data.gov.uk/id/local-authority/00FC,People And Communities,Vulnerable Young People,School Access Governor Student,Contract Hire-Operating Leases,Vehicles - Contract Hire,JC101,29/02/2012,92901,Redacted Commercially Sensitive,REVENUE,AMVALE LIMITED,101030
North East Lincolnshire Council,http://statistics.data.gov.uk/id/local-authority/00FC,People And Communities,Vulnerable Young People,School Access Governor Student,Contract Hire-Operating Leases,Vehicles - Contract Hire,JC101,16/02/2012,90121,Redacted Commercially Sensitive,REVENUE,AMVALE LIMITED,101030
North East Lincolnshire Council,http://statistics.data.gov.uk/id/local-authority/00FC,People And Communities,Vulnerable Young People,School Access Governor Student,Contract Hire-Operating Leases,Vehicles - Contract Hire,JC101,17/02/2012,90716,Redacted Commercially Sensitive,REVENUE,AMVALE LIMITED,101030
North East Lincolnshire Council,http://statistics.data.gov.uk/id/local-authority/00FC,People And Communities,Vulnerable Young People,School Access Governor Student,Contract Hire-Operating Leases,Vehicles - Contract Hire,JC101,16/02/2012,90120,Redacted Commercially Sensitive,REVENUE,AMVALE LIMITED,101030
North East Lincolnshire Council,http://statistics.data.gov.uk/id/local-authority/00FC,People And Communities,Vulnerable Young People,School Access Governor Student,Contract Hire-Operating Leases,Vehicles - Contract Hire,JC101,16/02/2012,90116,Redacted Commercially Sensitive,REVENUE,AMVALE LIMITED,101030
North East Lincolnshire Council,http://statistics.data.gov.uk/id/local-authority/00FC,People And Communities,Vulnerable Young People,School Access Governor Student,Contract Hire-Operating Leases,Vehicles - Contract Hire,JC101,16/02/2012,90119,Redacted Commercially Sensitive,REVENUE,AMVALE LIMITED,101030
North East Lincolnshire Council,http://statistics.data.gov.uk/id/local-authority/00FC,People And Communities,Vulnerable Young People,School Access Governor Student,Contract Hire-Operating Leases,Vehicles - Contract Hire,JC101,16/02/2012,90118,Redacted Commercially Sensitive,REVENUE,AMVALE LIMITED,101030
North East Lincolnshire Council,http://statistics.data.gov.uk/id/local-authority/00FC,People And Communities,Vulnerable Young People,School Access Governor Student,Contract Hire-Operating Leases,Vehicles - Contract Hire,JC101,16/02/2012,90117,Redacted Commercially Sensitive,REVENUE,AMVALE LIMITED,101030
North East Lincolnshire Council,http://statistics.data.gov.uk/id/local-authority/00FC,People And Communities,Vulnerable Young People,School Access Governor Student,Contract Hire-Operating Leases,Vehicles - Contract Hire,JC101,16/02/2012,90115,Redacted Commercially Sensitive,REVENUE,AMVALE LIMITED,101030
North East Lincolnshire Council,http://statistics.data.gov.uk/id/local-authority/00FC,People And Communities,Vulnerable Young People,Child Care Performance & Ict,Contract Hire-Operating Leases,Vehicles - Contract Hire,JC101,16/02/2012,90112,Redacted Commercially Sensitive,REVENUE,AMVALE LIMITED,101030
North East Lincolnshire Council,http://statistics.data.gov.uk/id/local-authority/00FC,People And Communities,Vulnerable Young People,Serco Contract,Consultancy,Consultancy,PL101,01/02/2012,84433,"2,500.00 ",REVENUE,ANGELA DUNKERLEY,103334
North East Lincolnshire Council,http://statistics.data.gov.uk/id/local-authority/00FC,People And Communities,Strat Dir People & Communities,Schools Non Asb,Catering,Provisions,LB101,21/02/2012,91166,-1.16 ,REVENUE,ANGLIA WOODS,100805
North East Lincolnshire Council,http://statistics.data.gov.uk/id/local-authority/00FC,People And Communities,Improved Health,Ot Stores,Equip / Furniture / Materials,Health & Safety Supplies,LA116,28/02/2012,93013,"2,190.00 ",REVENUE,AQUAJOY BATHLIFTS LTD,101315
North East Lincolnshire Council,http://statistics.data.gov.uk/id/local-authority/00FC,People And Communities,Improved Health,Ot Stores,Equip / Furniture / Materials,Health & Safety Supplies,LA116,28/02/2012,93013,"2,380.00 ",REVENUE,AQUAJOY BATHLIFTS LTD,101315
North East Lincolnshire Council,http://statistics.data.gov.uk/id/local-authority/00FC,People And Communities,Vulnerable Young People,School Access Governor Student,Communications And Computing,Computer S/Ware - Licences,LF103,03/02/2012,86047,"1,225.00 ",REVENUE,ARC SYSTEMS,108766
North East Lincolnshire Council,http://statistics.data.gov.uk/id/local-authority/00FC,People And Communities,Childrens Hlth & Family Supp,Childrens Centre Development,Rep Alterations Maint Building,Buildings - Repairs And Maint,GA102,14/02/2012,89403,-117.00 ,REVENUE,ARK JOINERY AND BUILDING MAINTENANCE LTD,101126
North East Lincolnshire Council,http://statistics.data.gov.uk/id/local-authority/00FC,People And Communities,Childrens Hlth & Family Supp,Childrens Centre Development,Rep Alterations Maint Building,Buildings - Repairs And Maint,GA102,06/02/2012,86305,"2,135.00 ",REVENUE,ARK JOINERY AND BUILDING MAINTENANCE LTD,101126
North East Lincolnshire Council,http://statistics.data.gov.uk/id/local-authority/00FC,People And Communities,Childrens Hlth & Family Supp,Childrens Centre Development,Rep Alterations Maint Building,Buildings - Repairs And Maint,GA102,29/02/2012,93046,"2,578.00 ",REVENUE,ARK JOINERY AND BUILDING MAINTENANCE LTD,101126
North East Lincolnshire Council,http://statistics.data.gov.uk/id/local-authority/00FC,People And Communities,Childrens Hlth & Family Supp,Childrens Centre Development,Rep Alterations Maint Building,Internal Decoration,GA119,15/02/2012,88843,"6,393.00 ",REVENUE,ARK JOINERY AND BUILDING MAINTENANCE LTD,101126
North East Lincolnshire Council,http://statistics.data.gov.uk/id/local-authority/00FC,People And Communities,Childrens Hlth & Family Supp,Integrated Youth Services,Indirect Employee Expenses,Staff Training,EB122,23/02/2012,92055,740.00 ,REVENUE,ASDAN,100877
North East Lincolnshire Council,http://statistics.data.gov.uk/id/local-authority/00FC,People And Communities,Childrens Hlth & Family Supp,Integrated Youth Services,Indirect Employee Expenses,Staff Training,EB122,23/02/2012,92056,740.00 ,REVENUE,ASDAN,100877
North East Lincolnshire Council,http://statistics.data.gov.uk/id/local-authority/00FC,People And Communities,Improved Health,Smoking Cessation,Rents,Rent,GC101,08/02/2012,87183,531.25 ,REVENUE,ASHBY COMMUNITY ASSOCIATION,103002
North East Lincolnshire Council,http://statistics.data.gov.uk/id/local-authority/00FC,People And Communities,Vulnerable Young People,Through Care & Disability,Other Agencies,Housing Benefit,PJ134,21/02/2012,64528,Redacted Personal Information,REVENUE,Redacted Personal Information,Redacted Personal Information
North East Lincolnshire Council,http://statistics.data.gov.uk/id/local-authority/00FC,People And Communities,Improved Health,Ot Stores,Equip / Furniture / Materials,Health & Safety Supplies,LA116,14/02/2012,89402,"2,933.00 ",REVENUE,BAKARE BEDS,108432
North East Lincolnshire Council,http://statistics.data.gov.uk/id/local-authority/00FC,People And Communities,Improved Health,Smoking Cessation,Miscellaneous Expenses,Medical Supplies And Services,LL109,09/02/2012,87669,764.12 ,REVENUE,BIRMINGHAM CHEMIST,103907
North East Lincolnshire Council,http://statistics.data.gov.uk/id/local-authority/00FC,People And Communities,Vulnerable Young People,Sen/Inclusion,Other Local Authorities,Third Pp - Other Local Auth,PC101,17/02/2012,90605,605.78 ,REVENUE,BIRMINGHAM CITY COUNCIL,101363
North East Lincolnshire Council,http://statistics.data.gov.uk/id/local-authority/00FC,People And Communities,Vulnerable Young People,Safeguarding,Indirect Employee Expenses,Staff Training,EB122,21/02/2012,91045,"2,000.00 ",REVENUE,BOND SOLON TRAINING LTD,105049
North East Lincolnshire Council,http://statistics.data.gov.uk/id/local-authority/00FC,People And Communities,Vulnerable Young People,Safeguarding,Indirect Employee Expenses,Staff Training,EB122,21/02/2012,91051,"2,000.00 ",REVENUE,BOND SOLON TRAINING LTD,105049
North East Lincolnshire Council,http://statistics.data.gov.uk/id/local-authority/00FC,People And Communities,Vulnerable Young People,Safeguarding,Indirect Employee Expenses,Staff Training,EB122,21/02/2012,91049,"2,417.99 ",REVENUE,BOND SOLON TRAINING LTD,105049
North East Lincolnshire Council,http://statistics.data.gov.uk/id/local-authority/00FC,People And Communities,Improved Health,Smoking Cessation,Miscellaneous Expenses,Medical Supplies And Services,LL109,22/02/2012,91632,781.41 ,REVENUE,BOOTS THE CHEMIST,103919
North East Lincolnshire Council,http://statistics.data.gov.uk/id/local-authority/00FC,People And Communities,Vulnerable Young People,Serco Contract,Rents,Room Hire,GC103,02/02/2012,85430,750.00 ,REVENUE,BRIGGATE LODGE LTD T/A FOREST PINES HOTEL,101118
North East Lincolnshire Council,http://statistics.data.gov.uk/id/local-authority/00FC,People And Communities,Vulnerable Young People,Placement & Support,Print Stationery / Gen Off Exp,Advertising,LD104,06/02/2012,86325,699.00 ,REVENUE,BRITISH AGENCIES FOR,100662
North East Lincolnshire Council,http://statistics.data.gov.uk/id/local-authority/00FC,People And Communities,Vulnerable Young People,Placement & Support,Print Stationery / Gen Off Exp,Advertising,LD104,06/02/2012,86337,699.00 ,REVENUE,BRITISH AGENCIES FOR,100662
North East Lincolnshire Council,http://statistics.data.gov.uk/id/local-authority/00FC,People And Communities,Vulnerable Young People,Placement & Support,Print Stationery / Gen Off Exp,Advertising,LD104,23/02/2012,92035,960.00 ,REVENUE,BRITISH AGENCIES FOR,100662
North East Lincolnshire Council,http://statistics.data.gov.uk/id/local-authority/00FC,People And Communities,Vulnerable Young People,Placement & Support,Print Stationery / Gen Off Exp,Advertising,LD104,06/02/2012,86558,"1,604.00 ",REVENUE,BRITISH AGENCIES FOR,100662
North East Lincolnshire Council,http://statistics.data.gov.uk/id/local-authority/00FC,People And Communities,Childrens Hlth & Family Supp,Childrens Centre Development,Energy Costs,Gas,GB101,02/02/2012,85409,"-1,158.17 ",REVENUE,BRITISH GAS,101484
North East Lincolnshire Council,http://statistics.data.gov.uk/id/local-authority/00FC,People And Communities,Childrens Hlth & Family Supp,Childrens Centre Development,Energy Costs,Gas,GB101,01/02/2012,85043,-201.53 ,REVENUE,BRITISH GAS TRADING LTD,101507
North East Lincolnshire Council,http://statistics.data.gov.uk/id/local-authority/00FC,People And Communities,Childrens Hlth & Family Supp,Childrens Centre Development,Energy Costs,Gas,GB101,15/02/2012,89266,675.37 ,REVENUE,BRITISH GAS TRADING LTD,101507
North East Lincolnshire Council,http://statistics.data.gov.uk/id/local-authority/00FC,People And Communities,Childrens Hlth & Family Supp,Childrens Centre Development,Energy Costs,Gas,GB101,02/02/2012,85411,"1,158.17 ",REVENUE,BRITISH GAS TRADING LTD,101507
North East Lincolnshire Council,http://statistics.data.gov.uk/id/local-authority/00FC,People And Communities,Childrens Hlth & Family Supp,Childrens Centre Development,Energy Costs,Gas,GB101,22/02/2012,91769,"1,554.26 ",REVENUE,BRITISH GAS TRADING LTD,101507
North East Lincolnshire Council,http://statistics.data.gov.uk/id/local-authority/00FC,People And Communities,Vulnerable Young People,Sen/Inclusion,Energy Costs,Gas,GB101,08/02/2012,86943,735.62 ,REVENUE,BRITISH GAS TRADING LTD,101507
North East Lincolnshire Council,http://statistics.data.gov.uk/id/local-authority/00FC,People And Communities,Strat Dir People & Communities,Schools Non Asb,Energy Costs,Gas,GB101,08/02/2012,86885,674.50 ,REVENUE,BRITISH GAS TRADING LTD,101507
North East Lincolnshire Council,http://statistics.data.gov.uk/id/local-authority/00FC,People And Communities,Vulnerable Young People,Standards & Effectiveness,Communications And Computing,Computer H/Ware - Purchases,LF105,02/02/2012,85377,"3,273.94 ",REVENUE,BRITISH TELECOMMUNICATIONS PLC,100974
North East Lincolnshire Council,http://statistics.data.gov.uk/id/local-authority/00FC,People And Communities,Vulnerable Young People,Serco Contract,Consultancy,Consultancy,PL101,01/02/2012,85063,"1,000.00 ",REVENUE,BWB (LINCOLN) LIMITED,107318
North East Lincolnshire Council,http://statistics.data.gov.uk/id/local-authority/00FC,People And Communities,Vulnerable Young People,Placement & Support,Other Agencies,Child Care Payments,PJ104,07/02/2012,62152,-62.14 ,REVENUE,Redacted Personal Information,Redacted Personal Information
North East Lincolnshire Council,http://statistics.data.gov.uk/id/local-authority/00FC,People And Communities,Vulnerable Young People,Placement & Support,Other Agencies,Child Care Payments,PJ104,21/02/2012,64507,-20.71 ,REVENUE,Redacted Personal Information,Redacted Personal Information
North East Lincolnshire Council,http://statistics.data.gov.uk/id/local-authority/00FC,People And Communities,Vulnerable Young People,School Access Governor Student,Contract Hire-Operating Leases,Vehicles - Contract Hire,JC101,08/02/2012,87237,Redacted Commercially Sensitive,REVENUE,CABBYCARS,100847
North East Lincolnshire Council,http://statistics.data.gov.uk/id/local-authority/00FC,People And Communities,Vulnerable Young People,School Access Governor Student,Contract Hire-Operating Leases,Vehicles - Contract Hire,JC101,09/02/2012,87533,Redacted Commercially Sensitive,REVENUE,CABLE RADIO CARS,100933
North East Lincolnshire Council,http://statistics.data.gov.uk/id/local-authority/00FC,People And Communities,Improved Health,Supporting People,Other Agencies,Third Pp - Block Gross,PJ103,24/02/2012,92265,Redacted Commercially Sensitive,REVENUE,CARE,100314
North East Lincolnshire Council,http://statistics.data.gov.uk/id/local-authority/00FC,People And Communities,Improved Health,Supporting People,Other Agencies,Third Pp - Block Subsidy,PJ102,28/02/2012,92563,Redacted Commercially Sensitive,REVENUE,CARE PLUS GROUP,106467
North East Lincolnshire Council,http://statistics.data.gov.uk/id/local-authority/00FC,People And Communities,Improved Health,Health Trainers,Equip / Furniture / Materials,Promotions,LA124,16/02/2012,90159,Redacted Commercially Sensitive,REVENUE,CARE PLUS GROUP,106467
North East Lincolnshire Council,http://statistics.data.gov.uk/id/local-authority/00FC,People And Communities,Improved Health,Supporting People,Other Agencies,Third Pp - Block Subsidy,PJ102,28/02/2012,92571,Redacted Commercially Sensitive,REVENUE,CARE PLUS GROUP,106467
North East Lincolnshire Council,http://statistics.data.gov.uk/id/local-authority/00FC,People And Communities,Vulnerable Young People,Children'S Workforce Developme,Indirect Employee Expenses,Staff Training,EB122,29/02/2012,93028,595.00 ,REVENUE,CARE-EX SERVICES LTD,104154
North East Lincolnshire Council,http://statistics.data.gov.uk/id/local-authority/00FC,People And Communities,Vulnerable Young People,Children'S Workforce Developme,Indirect Employee Expenses,Staff Training,EB122,06/02/2012,86269,595.00 ,REVENUE,CARE-EX SERVICES LTD,104154
North East Lincolnshire Council,http://statistics.data.gov.uk/id/local-authority/00FC,People And Communities,Vulnerable Young People,Placement & Support,Other Agencies,Setting Up,PJ111,21/02/2012,64682,500.00 ,REVENUE,Redacted Personal Information,Redacted Personal Information
North East Lincolnshire Council,http://statistics.data.gov.uk/id/local-authority/00FC,People And Communities,Childrens Hlth & Family Supp,Childrens Centre Development,Clothes Uniforms And Laundry,Uniforms,LC102,02/02/2012,85502,512.00 ,REVENUE,CATHERINE PHILIPS LTD,108734
North East Lincolnshire Council,http://statistics.data.gov.uk/id/local-authority/00FC,People And Communities,Childrens Hlth & Family Supp,Childrens Centre Development,Other Agencies,Child Care Payments,PJ104,29/02/2012,93301,"1,175.00 ",REVENUE,CHAPPILLS DAY NURSERY,100998
North East Lincolnshire Council,http://statistics.data.gov.uk/id/local-authority/00FC,People And Communities,Childrens Hlth & Family Supp,Integ Local Service Delivery,Other Agencies,Nursery Educ Fund - Standard,PJ139,22/02/2012,91533,"2,184.48 ",REVENUE,CHAPPILLS DAY NURSERY,100998
North East Lincolnshire Council,http://statistics.data.gov.uk/id/local-authority/00FC,People And Communities,Vulnerable Young People,Placement & Support,Other Agencies,Health Charges,PJ131,16/02/2012,90139,"2,820.00 ",REVENUE,CHILD AND FAMILY PLAY THERAPY LTD,107832
North East Lincolnshire Council,http://statistics.data.gov.uk/id/local-authority/00FC,People And Communities,Vulnerable Young People,Youth Offending Team,Indirect Employee Expenses,Staff Training,EB122,09/02/2012,87493,500.00 ,REVENUE,CHILD BRAIN INJURY TRUST,108866
North East Lincolnshire Council,http://statistics.data.gov.uk/id/local-authority/00FC,People And Communities,Vulnerable Young People,Serco Contract,Consultancy,Consultancy,PL101,17/02/2012,90353,"4,200.00 ",REVENUE,CHRISTOPHER P JOHNSON,101744
North East Lincolnshire Council,http://statistics.data.gov.uk/id/local-authority/00FC,People And Communities,Childrens Hlth & Family Supp,Integ Local Service Delivery,Other Agencies,Nursery Educ Fund - Standard,PJ139,22/02/2012,91535,"3,739.20 ",REVENUE,CLEETHORPES CHILDCARE,101591
North East Lincolnshire Council,http://statistics.data.gov.uk/id/local-authority/00FC,People And Communities,Childrens Hlth & Family Supp,Integ Local Service Delivery,Other Agencies,Nursery Educ Fund - Standard,PJ139,22/02/2012,91544,"5,854.80 ",REVENUE,CLEETHORPES CHILDCARE,101591
North East Lincolnshire Council,http://statistics.data.gov.uk/id/local-authority/00FC,People And Communities,Childrens Hlth & Family Supp,Integ Local Service Delivery,Other Agencies,Nursery Educ Fund - Standard,PJ139,22/02/2012,91537,"6,041.76 ",REVENUE,CLEETHORPES CHILDCARE,101591
North East Lincolnshire Council,http://statistics.data.gov.uk/id/local-authority/00FC,People And Communities,Childrens Hlth & Family Supp,Integ Local Service Delivery,Other Agencies,Nursery Educ Fund - Standard,PJ139,22/02/2012,91523,"4,841.28 ",REVENUE,CLOVERFIELDS PRE SCHOOL,100971
North East Lincolnshire Council,http://statistics.data.gov.uk/id/local-authority/00FC,People And Communities,Improved Health,Smoking Cessation,Miscellaneous Expenses,Medical Supplies And Services,LL109,15/02/2012,89370,705.95 ,REVENUE,COHENS CHEMIST,108177
North East Lincolnshire Council,http://statistics.data.gov.uk/id/local-authority/00FC,People And Communities,Childrens Hlth & Family Supp,Childrens Centre Development,Other Agencies,Further Ed Emp & Training,PJ130,09/02/2012,87560,615.00 ,REVENUE,COMMUNITY ECONOMIC REGENERATION TEAM,103937
North East Lincolnshire Council,http://statistics.data.gov.uk/id/local-authority/00FC,People And Communities,Vulnerable Young People,Through Care & Disability,Other Agencies,Incentive Payment,PJ124,17/02/2012,90653,"1,740.00 ",REVENUE,CONTRACT LINCS,102361
North East Lincolnshire Council,http://statistics.data.gov.uk/id/local-authority/00FC,People And Communities,Vulnerable Young People,School Access Governor Student,Contract Hire-Operating Leases,Vehicles - Contract Hire,JC101,14/02/2012,88794,Redacted Commercially Sensitive,REVENUE,COUNTRY CABS,101999
North East Lincolnshire Council,http://statistics.data.gov.uk/id/local-authority/00FC,People And Communities,Vulnerable Young People,School Access Governor Student,Contract Hire-Operating Leases,Vehicles - Contract Hire,JC101,14/02/2012,88793,Redacted Commercially Sensitive,REVENUE,COUNTRY CABS,101999
North East Lincolnshire Council,http://statistics.data.gov.uk/id/local-authority/00FC,People And Communities,Childrens Hlth & Family Supp,Integrated Youth Services,Direct Transport Costs,Hired Transport - Service User,JA102,22/02/2012,91576,Redacted Commercially Sensitive,REVENUE,COXONS CARS LIMITED,100578
North East Lincolnshire Council,http://statistics.data.gov.uk/id/local-authority/00FC,People And Communities,Vulnerable Young People,School Access Governor Student,Contract Hire-Operating Leases,Vehicles - Contract Hire,JC101,14/02/2012,89303,Redacted Commercially Sensitive,REVENUE,COXONS CARS LIMITED,100578
North East Lincolnshire Council,http://statistics.data.gov.uk/id/local-authority/00FC,People And Communities,Vulnerable Young People,School Access Governor Student,Contract Hire-Operating Leases,Vehicles - Contract Hire,JC101,15/02/2012,89292,Redacted Commercially Sensitive,REVENUE,COXONS CARS LIMITED,100578
North East Lincolnshire Council,http://statistics.data.gov.uk/id/local-authority/00FC,People And Communities,Vulnerable Young People,School Access Governor Student,Contract Hire-Operating Leases,Vehicles - Contract Hire,JC101,14/02/2012,89303,Redacted Commercially Sensitive,REVENUE,COXONS CARS LIMITED,100578
North East Lincolnshire Council,http://statistics.data.gov.uk/id/local-authority/00FC,People And Communities,Improved Health,Supporting People,Other Agencies,Third Pp - Block Subsidy,PJ102,28/02/2012,92564,Redacted Commercially Sensitive,REVENUE,CREATIVE SUPPORT LTD,107198
North East Lincolnshire Council,http://statistics.data.gov.uk/id/local-authority/00FC,People And Communities,Improved Health,Supporting People,Other Agencies,Third Pp - Block Subsidy,PJ102,28/02/2012,92572,Redacted Commercially Sensitive,REVENUE,CREATIVE SUPPORT LTD,107198
North East Lincolnshire Council,http://statistics.data.gov.uk/id/local-authority/00FC,People And Communities,Vulnerable Young People,Sen/Inclusion,Communications And Computing,Computer S/Ware - Purchases,LF101,06/02/2012,86304,706.95 ,REVENUE,CRICK SOFTWARE LTD,107260
North East Lincolnshire Council,http://statistics.data.gov.uk/id/local-authority/00FC,People And Communities,Vulnerable Young People,Commissioning & Performance,Miscellaneous Expenses,Other Expenses General,LL119,09/02/2012,87788,Redacted Commercially Sensitive,REVENUE,CYGNET CATERING,108880
North East Lincolnshire Council,http://statistics.data.gov.uk/id/local-authority/00FC,People And Communities,Vulnerable Young People,Commissioning & Performance,Catering,Purchase School Meals,LB103,09/02/2012,87794,Redacted Commercially Sensitive,REVENUE,CYGNET CATERING,108880
North East Lincolnshire Council,http://statistics.data.gov.uk/id/local-authority/00FC,People And Communities,Vulnerable Young People,Commissioning & Performance,Catering,Purchase School Meals,LB103,09/02/2012,87788,Redacted Commercially Sensitive,REVENUE,CYGNET CATERING,108880
North East Lincolnshire Council,http://statistics.data.gov.uk/id/local-authority/00FC,People And Communities,Vulnerable Young People,Placement & Support,Other Agencies,Special Carer Payments,PJ128,07/02/2012,62215,704.54 ,REVENUE,Redacted Personal Information,Redacted Personal Information
North East Lincolnshire Council,http://statistics.data.gov.uk/id/local-authority/00FC,People And Communities,Vulnerable Young People,Placement & Support,Other Agencies,Special Carer Payments,PJ128,14/02/2012,63548,704.54 ,REVENUE,Redacted Personal Information,Redacted Personal Information
North East Lincolnshire Council,http://statistics.data.gov.uk/id/local-authority/00FC,People And Communities,Vulnerable Young People,Placement & Support,Other Agencies,Special Carer Payments,PJ128,21/02/2012,64568,704.54 ,REVENUE,Redacted Personal Information,Redacted Personal Information
North East Lincolnshire Council,http://statistics.data.gov.uk/id/local-authority/00FC,People And Communities,Vulnerable Young People,Placement & Support,Other Agencies,Special Carer Payments,PJ128,28/02/2012,66748,704.54 ,REVENUE,Redacted Personal Information,Redacted Personal Information
North East Lincolnshire Council,http://statistics.data.gov.uk/id/local-authority/00FC,People And Communities,Childrens Hlth & Family Supp,Integrated Youth Services,Miscellaneous Expenses,Activities - Service Users,LL114,13/02/2012,88672,"1,500.00 ",REVENUE,DAYNE HAWKINS GOLF,108954
North East Lincolnshire Council,http://statistics.data.gov.uk/id/local-authority/00FC,People And Communities,Improved Health,Ot Stores,Equip / Furniture / Materials,Health & Safety Supplies,LA116,28/02/2012,91568,826.80 ,REVENUE,DAYS HEALTHCARE UK LTD,101549
North East Lincolnshire Council,http://statistics.data.gov.uk/id/local-authority/00FC,People And Communities,Vulnerable Young People,Sen/Inclusion,Communications And Computing,Computer H/Ware - Purchases,LF105,16/02/2012,89640,537.82 ,REVENUE,DELL COMPUTER CORPORATION LTD,100892
North East Lincolnshire Council,http://statistics.data.gov.uk/id/local-authority/00FC,People And Communities,Vulnerable Young People,Sen/Inclusion,Private Contractors,Third Party Prov - Private,PH101,14/02/2012,89405,-820.00 ,REVENUE,DKM ASSESSMENT & VERIFICATION LTD,101643
North East Lincolnshire Council,http://statistics.data.gov.uk/id/local-authority/00FC,People And Communities,Vulnerable Young People,Sen/Inclusion,Private Contractors,Third Party Prov - Private,PH101,06/02/2012,86546,-400.00 ,REVENUE,DKM ASSESSMENT & VERIFICATION LTD,101643
North East Lincolnshire Council,http://statistics.data.gov.uk/id/local-authority/00FC,People And Communities,Vulnerable Young People,Sen/Inclusion,Private Contractors,Concessionary Fares,PH104,09/02/2012,87255,-280.00 ,REVENUE,DKM ASSESSMENT & VERIFICATION LTD,101643
North East Lincolnshire Council,http://statistics.data.gov.uk/id/local-authority/00FC,People And Communities,Vulnerable Young People,Sen/Inclusion,Private Contractors,Concessionary Fares,PH104,09/02/2012,87256,-280.00 ,REVENUE,DKM ASSESSMENT & VERIFICATION LTD,101643
North East Lincolnshire Council,http://statistics.data.gov.uk/id/local-authority/00FC,People And Communities,Vulnerable Young People,Sen/Inclusion,Private Contractors,Third Party Prov - Private,PH101,06/02/2012,86270,700.00 ,REVENUE,DKM ASSESSMENT & VERIFICATION LTD,101643
North East Lincolnshire Council,http://statistics.data.gov.uk/id/local-authority/00FC,People And Communities,Vulnerable Young People,Sen/Inclusion,Private Contractors,Third Party Prov - Private,PH101,10/02/2012,88378,"1,050.00 ",REVENUE,DKM ASSESSMENT & VERIFICATION LTD,101643
North East Lincolnshire Council,http://statistics.data.gov.uk/id/local-authority/00FC,People And Communities,Vulnerable Young People,Sen/Inclusion,Private Contractors,Third Party Prov - Private,PH101,10/02/2012,88379,"1,050.00 ",REVENUE,DKM ASSESSMENT & VERIFICATION LTD,101643
North East Lincolnshire Council,http://statistics.data.gov.uk/id/local-authority/00FC,People And Communities,Vulnerable Young People,Sen/Inclusion,Private Contractors,Third Party Prov - Private,PH101,13/02/2012,88372,"1,050.00 ",REVENUE,DKM ASSESSMENT & VERIFICATION LTD,101643
North East Lincolnshire Council,http://statistics.data.gov.uk/id/local-authority/00FC,People And Communities,Vulnerable Young People,Sen/Inclusion,Private Contractors,Third Party Prov - Private,PH101,10/02/2012,88373,"1,050.00 ",REVENUE,DKM ASSESSMENT & VERIFICATION LTD,101643
North East Lincolnshire Council,http://statistics.data.gov.uk/id/local-authority/00FC,People And Communities,Vulnerable Young People,Sen/Inclusion,Private Contractors,Third Party Prov - Private,PH101,10/02/2012,88374,"1,050.00 ",REVENUE,DKM ASSESSMENT & VERIFICATION LTD,101643
North East Lincolnshire Council,http://statistics.data.gov.uk/id/local-authority/00FC,People And Communities,Vulnerable Young People,Sen/Inclusion,Private Contractors,Third Party Prov - Private,PH101,13/02/2012,88388,"1,050.00 ",REVENUE,DKM ASSESSMENT & VERIFICATION LTD,101643
North East Lincolnshire Council,http://statistics.data.gov.uk/id/local-authority/00FC,People And Communities,Vulnerable Young People,Sen/Inclusion,Private Contractors,Third Party Prov - Private,PH101,10/02/2012,88381,"1,050.00 ",REVENUE,DKM ASSESSMENT & VERIFICATION LTD,101643
North East Lincolnshire Council,http://statistics.data.gov.uk/id/local-authority/00FC,People And Communities,Vulnerable Young People,Sen/Inclusion,Private Contractors,Third Party Prov - Private,PH101,13/02/2012,88390,"1,050.00 ",REVENUE,DKM ASSESSMENT & VERIFICATION LTD,101643
North East Lincolnshire Council,http://statistics.data.gov.uk/id/local-authority/00FC,People And Communities,Vulnerable Young People,Sen/Inclusion,Private Contractors,Third Party Prov - Private,PH101,13/02/2012,88387,"1,050.00 ",REVENUE,DKM ASSESSMENT & VERIFICATION LTD,101643
North East Lincolnshire Council,http://statistics.data.gov.uk/id/local-authority/00FC,People And Communities,Vulnerable Young People,Sen/Inclusion,Private Contractors,Third Party Prov - Private,PH101,10/02/2012,88382,"1,050.00 ",REVENUE,DKM ASSESSMENT & VERIFICATION LTD,101643
North East Lincolnshire Council,http://statistics.data.gov.uk/id/local-authority/00FC,People And Communities,Vulnerable Young People,Sen/Inclusion,Private Contractors,Third Party Prov - Private,PH101,10/02/2012,88259,"1,050.00 ",REVENUE,DKM ASSESSMENT & VERIFICATION LTD,101643
North East Lincolnshire Council,http://statistics.data.gov.uk/id/local-authority/00FC,People And Communities,Vulnerable Young People,Sen/Inclusion,Private Contractors,Third Party Prov - Private,PH101,10/02/2012,88264,"1,050.00 ",REVENUE,DKM ASSESSMENT & VERIFICATION LTD,101643
North East Lincolnshire Council,http://statistics.data.gov.uk/id/local-authority/00FC,People And Communities,Vulnerable Young People,Sen/Inclusion,Private Contractors,Third Party Prov - Private,PH101,10/02/2012,88392,"1,050.00 ",REVENUE,DKM ASSESSMENT & VERIFICATION LTD,101643
North East Lincolnshire Council,http://statistics.data.gov.uk/id/local-authority/00FC,People And Communities,Vulnerable Young People,Sen/Inclusion,Private Contractors,Third Party Prov - Private,PH101,13/02/2012,88380,"1,050.00 ",REVENUE,DKM ASSESSMENT & VERIFICATION LTD,101643
North East Lincolnshire Council,http://statistics.data.gov.uk/id/local-authority/00FC,People And Communities,Vulnerable Young People,Sen/Inclusion,Private Contractors,Third Party Prov - Private,PH101,10/02/2012,88377,"1,050.00 ",REVENUE,DKM ASSESSMENT & VERIFICATION LTD,101643
North East Lincolnshire Council,http://statistics.data.gov.uk/id/local-authority/00FC,People And Communities,Vulnerable Young People,Sen/Inclusion,Private Contractors,Third Party Prov - Private,PH101,13/02/2012,88258,"1,050.00 ",REVENUE,DKM ASSESSMENT & VERIFICATION LTD,101643
North East Lincolnshire Council,http://statistics.data.gov.uk/id/local-authority/00FC,People And Communities,Vulnerable Young People,Additional & Enhanced Needs,Contributions To Provisions,Contributions - Other,LK103,08/02/2012,87066,"1,470.00 ",REVENUE,DKM ASSESSMENT & VERIFICATION LTD,101643
North East Lincolnshire Council,http://statistics.data.gov.uk/id/local-authority/00FC,People And Communities,Vulnerable Young People,Additional & Enhanced Needs,Contributions To Provisions,Contributions - Other,LK103,08/02/2012,87068,"1,470.00 ",REVENUE,DKM ASSESSMENT & VERIFICATION LTD,101643
North East Lincolnshire Council,http://statistics.data.gov.uk/id/local-authority/00FC,People And Communities,Vulnerable Young People,Additional & Enhanced Needs,Contributions To Provisions,Contributions - Other,LK103,08/02/2012,87070,"1,470.00 ",REVENUE,DKM ASSESSMENT & VERIFICATION LTD,101643
North East Lincolnshire Council,http://statistics.data.gov.uk/id/local-authority/00FC,People And Communities,Vulnerable Young People,Sen/Inclusion,Direct Employee Expenses,Pay Teachers Supply Cover,EA106,13/02/2012,88256,"1,615.00 ",REVENUE,DKM ASSESSMENT & VERIFICATION LTD,101643
North East Lincolnshire Council,http://statistics.data.gov.uk/id/local-authority/00FC,People And Communities,Vulnerable Young People,Additional & Enhanced Needs,Contributions To Provisions,Contributions - Other,LK103,08/02/2012,87069,"1,995.00 ",REVENUE,DKM ASSESSMENT & VERIFICATION LTD,101643
North East Lincolnshire Council,http://statistics.data.gov.uk/id/local-authority/00FC,People And Communities,Vulnerable Young People,Sen/Inclusion,Private Contractors,Third Party Prov - Private,PH101,10/02/2012,88260,"2,940.00 ",REVENUE,DKM ASSESSMENT & VERIFICATION LTD,101643
North East Lincolnshire Council,http://statistics.data.gov.uk/id/local-authority/00FC,People And Communities,Vulnerable Young People,Sen/Inclusion,Private Contractors,Third Party Prov - Private,PH101,10/02/2012,88261,"2,940.00 ",REVENUE,DKM ASSESSMENT & VERIFICATION LTD,101643
North East Lincolnshire Council,http://statistics.data.gov.uk/id/local-authority/00FC,People And Communities,Vulnerable Young People,Sen/Inclusion,Private Contractors,Third Party Prov - Private,PH101,10/02/2012,88262,"2,940.00 ",REVENUE,DKM ASSESSMENT & VERIFICATION LTD,101643
North East Lincolnshire Council,http://statistics.data.gov.uk/id/local-authority/00FC,People And Communities,Vulnerable Young People,Additional & Enhanced Needs,Other Local Authorities,Third Pp - Other Local Auth,PC101,08/02/2012,87064,"3,465.00 ",REVENUE,DKM ASSESSMENT & VERIFICATION LTD,101643
North East Lincolnshire Council,http://statistics.data.gov.uk/id/local-authority/00FC,People And Communities,Vulnerable Young People,Additional & Enhanced Needs,Private Contractors,Third Party Prov - Private,PH101,08/02/2012,87065,"3,465.00 ",REVENUE,DKM ASSESSMENT & VERIFICATION LTD,101643
North East Lincolnshire Council,http://statistics.data.gov.uk/id/local-authority/00FC,People And Communities,Vulnerable Young People,Additional & Enhanced Needs,Private Contractors,Third Party Prov - Private,PH101,08/02/2012,87067,"11,760.00 ",REVENUE,DKM ASSESSMENT & VERIFICATION LTD,101643
North East Lincolnshire Council,http://statistics.data.gov.uk/id/local-authority/00FC,People And Communities,Improved Health,Supporting People,Other Agencies,Third Pp - Block Gross,PJ103,24/02/2012,92263,Redacted Commercially Sensitive,REVENUE,DOORSTEP,100310
North East Lincolnshire Council,http://statistics.data.gov.uk/id/local-authority/00FC,People And Communities,Vulnerable Young People,Through Care & Disability,Miscellaneous Expenses,Other Expenses General,LL119,22/02/2012,91711,583.32 ,REVENUE,DSG RETAIL LTD,101791
North East Lincolnshire Council,http://statistics.data.gov.uk/id/local-authority/00FC,People And Communities,Vulnerable Young People,Through Care & Disability,Miscellaneous Expenses,Other Expenses General,LL119,13/02/2012,87899,990.82 ,REVENUE,DSG RETAIL LTD,101791
North East Lincolnshire Council,http://statistics.data.gov.uk/id/local-authority/00FC,People And Communities,Vulnerable Young People,School Access Governor Student,Contract Hire-Operating Leases,Vehicles - Contract Hire,JC101,08/02/2012,87147,Redacted Commercially Sensitive,REVENUE,E M EMMERSON,100576
North East Lincolnshire Council,http://statistics.data.gov.uk/id/local-authority/00FC,People And Communities,Aiming High For Disabled Child,Aiming High For Disabled Child,Cap Land/Build-Build Enh Wrk,Cap Land/Build-Build Enh Wrk,YA102,29/02/2012,93324,"16,455.25 ",CAPITAL,E S RUDKIN LTD,100632
North East Lincolnshire Council,http://statistics.data.gov.uk/id/local-authority/00FC,People And Communities,Childrens Hlth & Family Supp,Palliative / Complex Care,Private Contractors,Third Party Prov - Private,PH101,08/02/2012,86992,"1,247.00 ",REVENUE,EAST MIDLANDS CROSSROADS,102400
North East Lincolnshire Council,http://statistics.data.gov.uk/id/local-authority/00FC,People And Communities,Vulnerable Young People,Through Care & Disability,Private Contractors,Third Party Prov - Private,PH101,08/02/2012,86932,"1,718.25 ",REVENUE,EAST MIDLANDS CROSSROADS,102400
North East Lincolnshire Council,http://statistics.data.gov.uk/id/local-authority/00FC,People And Communities,Childrens Hlth & Family Supp,Integ Local Service Delivery,Other Agencies,Nursery Educ Fund - Standard,PJ139,22/02/2012,91539,"1,613.76 ",REVENUE,EAST RAVENDALE PRE SCHOOL,100941
North East Lincolnshire Council,http://statistics.data.gov.uk/id/local-authority/00FC,People And Communities,Childrens Hlth & Family Supp,Childrens Centre Development,Indirect Employee Expenses,Redundancy,EB109,10/02/2012,88274,Redacted Commercially Sensitive,REVENUE,EAST RIDING OF YORKSHIRE,100377
North East Lincolnshire Council,http://statistics.data.gov.uk/id/local-authority/00FC,People And Communities,Vulnerable Young People,Serco Contract,Indirect Employee Expenses,Redundancy,EB109,14/02/2012,88835,Redacted Commercially Sensitive,REVENUE,EAST RIDING OF YORKSHIRE,100377
North East Lincolnshire Council,http://statistics.data.gov.uk/id/local-authority/00FC,People And Communities,Childrens Hlth & Family Supp,Integrated Youth Services,Print Stationery / Gen Off Exp,Printing And Stationery,LD103,06/02/2012,86580,Redacted Commercially Sensitive,REVENUE,EAST RIDING OF YORKSHIRE COUNCIL,100654
North East Lincolnshire Council,http://statistics.data.gov.uk/id/local-authority/00FC,People And Communities,Childrens Hlth & Family Supp,Integrated Youth Services,Equip / Furniture / Materials,Equipment - Purchase,LA101,06/02/2012,86547,Redacted Commercially Sensitive,REVENUE,EAST RIDING OF YORKSHIRE COUNCIL,100654
North East Lincolnshire Council,http://statistics.data.gov.uk/id/local-authority/00FC,People And Communities,Childrens Hlth & Family Supp,Childrens Centre Development,Equip / Furniture / Materials,Non-Teaching Resources,LA118,22/02/2012,91573,Redacted Commercially Sensitive,REVENUE,EAST RIDING OF YORKSHIRE COUNCIL,100654
North East Lincolnshire Council,http://statistics.data.gov.uk/id/local-authority/00FC,People And Communities,Childrens Hlth & Family Supp,Childrens Centre Development,Cleaning And Domestic Supplies,Cleaning - Services,GH102,23/02/2012,92023,541.00 ,REVENUE,EASY CLEAN MARSHCHAPEL LTD,104531
North East Lincolnshire Council,http://statistics.data.gov.uk/id/local-authority/00FC,People And Communities,Childrens Hlth & Family Supp,Childrens Centre Development,Cleaning And Domestic Supplies,Cleaning - Services,GH102,01/02/2012,84456,661.50 ,REVENUE,EASY CLEAN MARSHCHAPEL LTD,104531
North East Lincolnshire Council,http://statistics.data.gov.uk/id/local-authority/00FC,People And Communities,Childrens Hlth & Family Supp,Childrens Centre Development,Cleaning And Domestic Supplies,Cleaning - Services,GH102,16/02/2012,89660,661.50 ,REVENUE,EASY CLEAN MARSHCHAPEL LTD,104531
North East Lincolnshire Council,http://statistics.data.gov.uk/id/local-authority/00FC,People And Communities,Childrens Hlth & Family Supp,Childrens Centre Development,Water Services,Water,GE101,17/02/2012,90598,546.68 ,REVENUE,EDWARD HENEAGE PRIMARY SCHOOL,103917
North East Lincolnshire Council,http://statistics.data.gov.uk/id/local-authority/00FC,People And Communities,Childrens Hlth & Family Supp,Childrens Health Provision,Equip / Furniture / Materials,Equipment - Purchase,LA101,09/02/2012,87557,611.40 ,REVENUE,ERIC,108869
North East Lincolnshire Council,http://statistics.data.gov.uk/id/local-authority/00FC,People And Communities,Vulnerable Young People,Strategic Management,Direct Employee Expenses,Pay,EA101,27/02/2012,92347,"6,557.20 ",REVENUE,ESCRICK EDUCATION ASSOCIATES,102662
North East Lincolnshire Council,http://statistics.data.gov.uk/id/local-authority/00FC,People And Communities,Ctp Schemes,Ctp Schemes,Cap Land/Build-Build Enh Wrk,Cap Land/Build-Build Enh Wrk,YA102,08/02/2012,87182,"6,687.50 ",CAPITAL,F R TOWNSEND & CO LTD,104217
North East Lincolnshire Council,http://statistics.data.gov.uk/id/local-authority/00FC,People And Communities,Improved Health,Ot Stores,Equip / Furniture / Materials,Health & Safety Supplies,LA116,07/02/2012,86791,691.38 ,REVENUE,F R TOWNSEND & CO LTD,104217
North East Lincolnshire Council,http://statistics.data.gov.uk/id/local-authority/00FC,People And Communities,Improved Health,Ot Stores,Equip / Furniture / Materials,Health & Safety Supplies,LA116,06/02/2012,86095,807.07 ,REVENUE,F R TOWNSEND & CO LTD,104217
North East Lincolnshire Council,http://statistics.data.gov.uk/id/local-authority/00FC,People And Communities,Improved Health,Ot Stores,Equip / Furniture / Materials,Health & Safety Supplies,LA116,07/02/2012,86789,965.53 ,REVENUE,F R TOWNSEND & CO LTD,104217
North East Lincolnshire Council,http://statistics.data.gov.uk/id/local-authority/00FC,People And Communities,Childrens Hlth & Family Supp,Childrens Centre Development,Rep Alterations Maint Building,Buildings - Repairs And Maint,GA102,13/02/2012,88730,900.00 ,REVENUE,FABRIQUE SPECIALISTS GLAZING SYSTEMS LTD,101314
North East Lincolnshire Council,http://statistics.data.gov.uk/id/local-authority/00FC,People And Communities,Childrens Hlth & Family Supp,Childrens Centre Development,Rep Alterations Maint Building,Buildings - Repairs And Maint,GA102,15/02/2012,88820,"1,350.00 ",REVENUE,FABRIQUE SPECIALISTS GLAZING SYSTEMS LTD,101314
North East Lincolnshire Council,http://statistics.data.gov.uk/id/local-authority/00FC,People And Communities,Childrens Hlth & Family Supp,Childrens Centre Development,Rep Alterations Maint Building,Buildings - Repairs And Maint,GA102,14/02/2012,88727,"2,076.00 ",REVENUE,FABRIQUE SPECIALISTS GLAZING SYSTEMS LTD,101314
North East Lincolnshire Council,http://statistics.data.gov.uk/id/local-authority/00FC,People And Communities,Childrens Hlth & Family Supp,Childrens Centre Development,Rep Alterations Maint Building,Buildings - Repairs And Maint,GA102,14/02/2012,88726,"2,491.00 ",REVENUE,FABRIQUE SPECIALISTS GLAZING SYSTEMS LTD,101314
North East Lincolnshire Council,http://statistics.data.gov.uk/id/local-authority/00FC,People And Communities,Vulnerable Young People,Safeguarding,Other Agencies,Section 17,PJ125,29/02/2012,92966,675.70 ,REVENUE,FAMILY SUPPORT SERVICES FOR P/CASH,100709
North East Lincolnshire Council,http://statistics.data.gov.uk/id/local-authority/00FC,People And Communities,Improved Health,Env Commerce Food & Health,Miscellaneous Expenses,Environmental/Health Analysis,LL120,02/02/2012,85146,840.00 ,REVENUE,FERA,106144
North East Lincolnshire Council,http://statistics.data.gov.uk/id/local-authority/00FC,People And Communities,Childrens Hlth & Family Supp,Childrens Centre Development,Equip / Furniture / Materials,Non-Teaching Resources,LA118,02/02/2012,85445,599.75 ,REVENUE,FINDEL EDUCATION LIMITED,101237
North East Lincolnshire Council,http://statistics.data.gov.uk/id/local-authority/00FC,People And Communities,Vulnerable Young People,Placement & Support,Equip / Furniture / Materials,Equipment - Purchase,LA101,28/02/2012,92891,604.08 ,REVENUE,FINDEL EDUCATION LIMITED,101237
North East Lincolnshire Council,http://statistics.data.gov.uk/id/local-authority/00FC,People And Communities,Childrens Hlth & Family Supp,Childrens Centre Development,Clothes Uniforms And Laundry,Uniforms,LC102,22/02/2012,91789,-127.13 ,REVENUE,FIRST CORPORATE CLOTHING LTD,102799
North East Lincolnshire Council,http://statistics.data.gov.uk/id/local-authority/00FC,People And Communities,Childrens Hlth & Family Supp,Childrens Centre Development,Clothes Uniforms And Laundry,Uniforms,LC102,22/02/2012,91787,-56.00 ,REVENUE,FIRST CORPORATE CLOTHING LTD,102799
North East Lincolnshire Council,http://statistics.data.gov.uk/id/local-authority/00FC,People And Communities,Childrens Hlth & Family Supp,Childrens Centre Development,Clothes Uniforms And Laundry,Uniforms,LC102,22/02/2012,91786,-28.00 ,REVENUE,FIRST CORPORATE CLOTHING LTD,102799
North East Lincolnshire Council,http://statistics.data.gov.uk/id/local-authority/00FC,People And Communities,Childrens Hlth & Family Supp,Childrens Centre Development,Clothes Uniforms And Laundry,Uniforms,LC102,22/02/2012,91788,-10.50 ,REVENUE,FIRST CORPORATE CLOTHING LTD,102799
North East Lincolnshire Council,http://statistics.data.gov.uk/id/local-authority/00FC,People And Communities,Childrens Hlth & Family Supp,Integ Local Service Delivery,Other Agencies,Nursery Educ Fund - Standard,PJ139,22/02/2012,91560,"8,284.38 ",REVENUE,FIRST STEPS DAY NURSERY,105509
North East Lincolnshire Council,http://statistics.data.gov.uk/id/local-authority/00FC,People And Communities,Childrens Hlth & Family Supp,Childrens Centre Development,Other Agencies,Child Care Payments,PJ104,08/02/2012,87221,"2,860.88 ",REVENUE,FIRST STEPS GRIMSBY LIMITED,101411
North East Lincolnshire Council,http://statistics.data.gov.uk/id/local-authority/00FC,People And Communities,Childrens Hlth & Family Supp,Childrens Centre Development,Other Agencies,Child Care Payments,PJ104,02/02/2012,85662,538.70 ,REVENUE,FOR UNDER FIVES,101931
North East Lincolnshire Council,http://statistics.data.gov.uk/id/local-authority/00FC,People And Communities,Childrens Hlth & Family Supp,Childrens Centre Development,Other Agencies,Child Care Payments,PJ104,09/02/2012,87270,570.77 ,REVENUE,FOR UNDER FIVES,101931
North East Lincolnshire Council,http://statistics.data.gov.uk/id/local-authority/00FC,People And Communities,Childrens Hlth & Family Supp,Childrens Centre Development,Other Agencies,Child Care Payments,PJ104,17/02/2012,90599,741.56 ,REVENUE,FOR UNDER FIVES,101931
North East Lincolnshire Council,http://statistics.data.gov.uk/id/local-authority/00FC,People And Communities,Childrens Hlth & Family Supp,Childrens Centre Development,Other Agencies,Child Care Payments,PJ104,28/02/2012,92608,770.40 ,REVENUE,FOR UNDER FIVES,101931
North East Lincolnshire Council,http://statistics.data.gov.uk/id/local-authority/00FC,People And Communities,Childrens Hlth & Family Supp,Childrens Centre Development,Other Agencies,Child Care Payments,PJ104,28/02/2012,92607,775.62 ,REVENUE,FOR UNDER FIVES,101931
North East Lincolnshire Council,http://statistics.data.gov.uk/id/local-authority/00FC,People And Communities,Childrens Hlth & Family Supp,Childrens Centre Development,Other Agencies,Child Care Payments,PJ104,28/02/2012,92622,525.40 ,REVENUE,FOR UNDER FIVES LTD,103903
North East Lincolnshire Council,http://statistics.data.gov.uk/id/local-authority/00FC,People And Communities,Childrens Hlth & Family Supp,Childrens Centre Development,Other Agencies,Child Care Payments,PJ104,28/02/2012,92620,555.43 ,REVENUE,FOR UNDER FIVES LTD,103903
North East Lincolnshire Council,http://statistics.data.gov.uk/id/local-authority/00FC,People And Communities,Childrens Hlth & Family Supp,Childrens Centre Development,Other Agencies,Child Care Payments,PJ104,03/02/2012,86062,580.50 ,REVENUE,FOR UNDER FIVES LTD,106135
North East Lincolnshire Council,http://statistics.data.gov.uk/id/local-authority/00FC,People And Communities,Childrens Hlth & Family Supp,Childrens Centre Development,Other Agencies,Child Care Payments,PJ104,28/02/2012,92616,622.71 ,REVENUE,FOR UNDER FIVES LTD,103903
North East Lincolnshire Council,http://statistics.data.gov.uk/id/local-authority/00FC,People And Communities,Childrens Hlth & Family Supp,Childrens Centre Development,Other Agencies,Child Care Payments,PJ104,03/02/2012,86061,645.00 ,REVENUE,FOR UNDER FIVES LTD,101795
North East Lincolnshire Council,http://statistics.data.gov.uk/id/local-authority/00FC,People And Communities,Childrens Hlth & Family Supp,Childrens Centre Development,Direct Employee Expenses,Pay,EA101,17/02/2012,90334,"1,980.00 ",REVENUE,FOR UNDER FIVES LTD,100647
North East Lincolnshire Council,http://statistics.data.gov.uk/id/local-authority/00FC,People And Communities,Childrens Hlth & Family Supp,Integ Local Service Delivery,Other Agencies,Nursery Educ Fund - Standard,PJ139,22/02/2012,91543,"2,473.12 ",REVENUE,FOR UNDER FIVES LTD,100647
North East Lincolnshire Council,http://statistics.data.gov.uk/id/local-authority/00FC,People And Communities,Childrens Hlth & Family Supp,Integ Local Service Delivery,Other Agencies,Nursery Educ Fund - Standard,PJ139,22/02/2012,91527,"2,568.24 ",REVENUE,FOR UNDER FIVES LTD,100647
North East Lincolnshire Council,http://statistics.data.gov.uk/id/local-authority/00FC,People And Communities,Childrens Hlth & Family Supp,Integ Local Service Delivery,Other Agencies,Nursery Educ Fund - Standard,PJ139,22/02/2012,91542,"2,787.21 ",REVENUE,FOR UNDER FIVES LTD,100647
North East Lincolnshire Council,http://statistics.data.gov.uk/id/local-authority/00FC,People And Communities,Childrens Hlth & Family Supp,Integ Local Service Delivery,Other Agencies,Nursery Educ Fund - Standard,PJ139,22/02/2012,91541,"3,257.04 ",REVENUE,FOR UNDER FIVES LTD,100647
North East Lincolnshire Council,http://statistics.data.gov.uk/id/local-authority/00FC,People And Communities,Childrens Hlth & Family Supp,Integ Local Service Delivery,Other Agencies,Nursery Educ Fund - Standard,PJ139,22/02/2012,91525,"4,390.62 ",REVENUE,FOR UNDER FIVES LTD,100647
North East Lincolnshire Council,http://statistics.data.gov.uk/id/local-authority/00FC,People And Communities,Childrens Hlth & Family Supp,Childrens Centre Development,Indirect Employee Expenses,Staff Training,EB122,21/02/2012,91180,585.00 ,REVENUE,FOREFRONT TRAINING LTD,105501
North East Lincolnshire Council,http://statistics.data.gov.uk/id/local-authority/00FC,People And Communities,Childrens Hlth & Family Supp,Childrens Centre Development,Other Agencies,Further Ed Emp & Training,PJ130,22/02/2012,91773,780.00 ,REVENUE,FOREFRONT TRAINING LTD,105501
North East Lincolnshire Council,http://statistics.data.gov.uk/id/local-authority/00FC,People And Communities,Vulnerable Young People,Placement & Support,Other Agencies,Special Carer Payments,PJ128,07/02/2012,62219,704.54 ,REVENUE,Redacted Personal Information,Redacted Personal Information
North East Lincolnshire Council,http://statistics.data.gov.uk/id/local-authority/00FC,People And Communities,Vulnerable Young People,Placement & Support,Other Agencies,Special Carer Payments,PJ128,14/02/2012,63552,704.54 ,REVENUE,Redacted Personal Information,Redacted Personal Information
North East Lincolnshire Council,http://statistics.data.gov.uk/id/local-authority/00FC,People And Communities,Vulnerable Young People,Placement & Support,Other Agencies,Special Carer Payments,PJ128,21/02/2012,64572,704.54 ,REVENUE,Redacted Personal Information,Redacted Personal Information
North East Lincolnshire Council,http://statistics.data.gov.uk/id/local-authority/00FC,People And Communities,Vulnerable Young People,Placement & Support,Other Agencies,Special Carer Payments,PJ128,28/02/2012,66751,704.54 ,REVENUE,Redacted Personal Information,Redacted Personal Information
North East Lincolnshire Council,http://statistics.data.gov.uk/id/local-authority/00FC,People And Communities,Vulnerable Young People,Placement & Support,Equip / Furniture / Materials,Equipment - Purchase,LA101,21/02/2012,91167,"-1,044.00 ",REVENUE,GAP GROUP LTD,103371
North East Lincolnshire Council,http://statistics.data.gov.uk/id/local-authority/00FC,People And Communities,Vulnerable Young People,Placement & Support,Equip / Furniture / Materials,Equipment - Purchase,LA101,21/02/2012,91213,"1,334.00 ",REVENUE,GAP GROUP LTD,103371
North East Lincolnshire Council,http://statistics.data.gov.uk/id/local-authority/00FC,People And Communities,Strat Dir People & Communities,Schools Non Asb,Communications And Computing,Computer H/Ware - Teaching,LF104,08/02/2012,86887,822.27 ,REVENUE,GE CAPITAL EQUIPMENT FINANCE LTD,100993
North East Lincolnshire Council,http://statistics.data.gov.uk/id/local-authority/00FC,People And Communities,Improved Health,Health Promotion,Indirect Employee Expenses,Staff Training,EB122,01/02/2012,85044,-35.00 ,REVENUE,GOODWIN COMMUNITY TRADING,101402
North East Lincolnshire Council,http://statistics.data.gov.uk/id/local-authority/00FC,People And Communities,Vulnerable Young People,Sen/Inclusion,Equip / Furniture / Materials,Teaching Materials,LA117,02/02/2012,84858,"2,001.42 ",REVENUE,GRANADA LEARNING LTD,101422
North East Lincolnshire Council,http://statistics.data.gov.uk/id/local-authority/00FC,People And Communities,Childrens Hlth & Family Supp,Childrens Centre Development,Equip / Furniture / Materials,Furniture - Purchase,LA105,15/02/2012,89225,"1,300.00 ",REVENUE,GREENHEART,103114
North East Lincolnshire Council,http://statistics.data.gov.uk/id/local-authority/00FC,People And Communities,Childrens Hlth & Family Supp,Integrated Youth Services,Print Stationery / Gen Off Exp,Advertising,LD104,10/02/2012,88188,750.00 ,REVENUE,GRIMSBY & SCUNTHORPE MEDIA GROUP LTD,101827
North East Lincolnshire Council,http://statistics.data.gov.uk/id/local-authority/00FC,People And Communities,Improved Health,Supporting People,Other Agencies,Third Pp - Block Gross,PJ103,24/02/2012,92261,Redacted Commercially Sensitive,REVENUE,GRIMSBY AND CLEETHORPES YMCA,100305
North East Lincolnshire Council,http://statistics.data.gov.uk/id/local-authority/00FC,People And Communities,Childrens Hlth & Family Supp,Integrated Youth Services,Miscellaneous Expenses,Activities - Service Users,LL114,02/02/2012,85385,"2,500.00 ",REVENUE,GRIMSBY TOWN FOOTBALL IN THE COMMUNITY,100978
North East Lincolnshire Council,http://statistics.data.gov.uk/id/local-authority/00FC,People And Communities,Childrens Hlth & Family Supp,Integrated Youth Services,Miscellaneous Expenses,Activities - Service Users,LL114,02/02/2012,85386,"2,500.00 ",REVENUE,GRIMSBY TOWN FOOTBALL IN THE COMMUNITY,100978
North East Lincolnshire Council,http://statistics.data.gov.uk/id/local-authority/00FC,People And Communities,Childrens Hlth & Family Supp,Integrated Youth Services,Miscellaneous Expenses,Activities - Service Users,LL114,09/02/2012,87606,"10,000.00 ",REVENUE,GRIMSBY TOWN FOOTBALL IN THE COMMUNITY,100978
North East Lincolnshire Council,http://statistics.data.gov.uk/id/local-authority/00FC,People And Communities,Childrens Hlth & Family Supp,Integrated Youth Services,Miscellaneous Expenses,Activities - Service Users,LL114,02/02/2012,85387,"10,000.00 ",REVENUE,GRIMSBY TOWN FOOTBALL IN THE COMMUNITY,100978
North East Lincolnshire Council,http://statistics.data.gov.uk/id/local-authority/00FC,People And Communities,Childrens Hlth & Family Supp,Integrated Youth Services,Miscellaneous Expenses,Activities - Service Users,LL114,01/02/2012,84922,580.77 ,REVENUE,HALFORDS,103402
North East Lincolnshire Council,http://statistics.data.gov.uk/id/local-authority/00FC,People And Communities,Childrens Hlth & Family Supp,Integ Local Service Delivery,Other Agencies,Nursery Educ Fund - Standard,PJ139,22/02/2012,91554,"2,433.60 ",REVENUE,HAVEN METHODIST PRE-SCHOOL,102286
North East Lincolnshire Council,http://statistics.data.gov.uk/id/local-authority/00FC,People And Communities,Improved Health,Smoking Cessation,Indirect Employee Expenses,Staff Training,EB122,14/02/2012,89125,704.20 ,REVENUE,HCCTA-CATCH,102830
North East Lincolnshire Council,http://statistics.data.gov.uk/id/local-authority/00FC,People And Communities,Improved Health,Smoking Cessation,Indirect Employee Expenses,Staff Training,EB122,21/02/2012,91143,"1,000.00 ",REVENUE,HDM-MEDICAL,109075
North East Lincolnshire Council,http://statistics.data.gov.uk/id/local-authority/00FC,People And Communities,Improved Health,Smoking Cessation,Indirect Employee Expenses,Staff Training,EB122,21/02/2012,91144,"1,998.00 ",REVENUE,HDM-MEDICAL,109075
North East Lincolnshire Council,http://statistics.data.gov.uk/id/local-authority/00FC,People And Communities,Vulnerable Young People,Serco Contract,Other Agencies,Performers,PJ101,06/02/2012,86428,980.00 ,REVENUE,HEALING SCIENCE ACADEMY LTD,102702
North East Lincolnshire Council,http://statistics.data.gov.uk/id/local-authority/00FC,People And Communities,Childrens Hlth & Family Supp,Integ Local Service Delivery,Other Agencies,Nursery Educ Fund - Standard,PJ139,22/02/2012,91540,"4,983.96 ",REVENUE,HEALING VILLAGE NURSERY,101096
North East Lincolnshire Council,http://statistics.data.gov.uk/id/local-authority/00FC,People And Communities,Improved Health,Supporting People,Other Agencies,Third Pp - Block Subsidy,PJ102,28/02/2012,92567,Redacted Commercially Sensitive,REVENUE,HICA,100319
North East Lincolnshire Council,http://statistics.data.gov.uk/id/local-authority/00FC,People And Communities,Improved Health,Ot Stores,Equip / Furniture / Materials,Health & Safety Supplies,LA116,14/02/2012,88837,"1,868.00 ",REVENUE,HILL-ROM LTD,103521
North East Lincolnshire Council,http://statistics.data.gov.uk/id/local-authority/00FC,People And Communities,Improved Health,Supporting People,Other Agencies,Third Pp - Block Subsidy,PJ102,28/02/2012,92556,Redacted Commercially Sensitive,REVENUE,HOUSING & SUPPORT SOLUTIONS,100321
North East Lincolnshire Council,http://statistics.data.gov.uk/id/local-authority/00FC,People And Communities,Improved Health,Supporting People,Other Agencies,Third Pp - Block Subsidy,PJ102,28/02/2012,92568,Redacted Commercially Sensitive,REVENUE,HOUSING & SUPPORT SOLUTIONS,100321
North East Lincolnshire Council,http://statistics.data.gov.uk/id/local-authority/00FC,People And Communities,Vulnerable Young People,Through Care & Disability,Miscellaneous Expenses,Other Expenses General,LL119,22/02/2012,91600,"1,282.50 ",REVENUE,HUMBER ROYAL HOTEL,103151
North East Lincolnshire Council,http://statistics.data.gov.uk/id/local-authority/00FC,People And Communities,Improved Health,Supporting People,Other Agencies,Third Pp - Block Subsidy,PJ102,28/02/2012,92554,Redacted Commercially Sensitive,REVENUE,HUMBERCARE,100311
North East Lincolnshire Council,http://statistics.data.gov.uk/id/local-authority/00FC,People And Communities,Improved Health,Supporting People,Other Agencies,Third Pp - Block Subsidy,PJ102,28/02/2012,92566,Redacted Commercially Sensitive,REVENUE,HUMBERCARE,100311
North East Lincolnshire Council,http://statistics.data.gov.uk/id/local-authority/00FC,People And Communities,Improved Health,Supporting People,Other Agencies,Third Pp - Block Gross,PJ103,24/02/2012,92264,Redacted Commercially Sensitive,REVENUE,HUMBERCARE,100311
North East Lincolnshire Council,http://statistics.data.gov.uk/id/local-authority/00FC,People And Communities,Vulnerable Young People,Through Care & Disability,Other Agencies,Housing Benefit,PJ134,15/02/2012,89044,Redacted Commercially Sensitive,REVENUE,HUMBERCARE,100311
North East Lincolnshire Council,http://statistics.data.gov.uk/id/local-authority/00FC,People And Communities,Vulnerable Young People,Through Care & Disability,Private Contractors,Third Party Prov - Private,PH101,15/02/2012,89046,Redacted Commercially Sensitive,REVENUE,HUMBERCARE,100311
North East Lincolnshire Council,http://statistics.data.gov.uk/id/local-authority/00FC,People And Communities,Childrens Hlth & Family Supp,Integ Local Service Delivery,Private Contractors,Third Party Prov - Private,PH101,08/02/2012,87207,"6,680.60 ",REVENUE,HUMBERSIDE POLICE AUTHORITY,100762
North East Lincolnshire Council,http://statistics.data.gov.uk/id/local-authority/00FC,People And Communities,Childrens Hlth & Family Supp,Integrated Youth Services,Direct Employee Expenses,Pay Casual/Supply Staff,EA102,02/02/2012,85378,"30,000.00 ",REVENUE,HUMBERSIDE POLICE AUTHORITY,100762
North East Lincolnshire Council,http://statistics.data.gov.uk/id/local-authority/00FC,People And Communities,Childrens Hlth & Family Supp,Integ Local Service Delivery,Other Agencies,Nursery Educ Fund - Standard,PJ139,22/02/2012,91561,"4,506.72 ",REVENUE,HUMBERSTON C E PRE SCHOOL,101153
North East Lincolnshire Council,http://statistics.data.gov.uk/id/local-authority/00FC,People And Communities,Vulnerable Young People,Additional & Enhanced Needs,Other Local Authorities,Third Pp - Other Local Auth,PC101,08/02/2012,87071,"12,000.00 ",REVENUE,HUMBERSTON PARK SPECIAL SCHOOL,107911
North East Lincolnshire Council,http://statistics.data.gov.uk/id/local-authority/00FC,People And Communities,Childrens Hlth & Family Supp,Integ Local Service Delivery,Other Agencies,Nursery Educ Fund - Standard,PJ139,22/02/2012,91531,"1,564.56 ",REVENUE,HUMBERSTON VILLAGE NURSERY,102006
North East Lincolnshire Council,http://statistics.data.gov.uk/id/local-authority/00FC,People And Communities,Vulnerable Young People,School Access Governor Student,Contract Hire-Operating Leases,Vehicles - Contract Hire,JC101,08/02/2012,87233,Redacted Commercially Sensitive,REVENUE,HUXMANOR LTD,101444
North East Lincolnshire Council,http://statistics.data.gov.uk/id/local-authority/00FC,People And Communities,Vulnerable Young People,School Access Governor Student,Contract Hire-Operating Leases,Vehicles - Contract Hire,JC101,08/02/2012,87229,Redacted Commercially Sensitive,REVENUE,HUXMANOR LTD,101444
North East Lincolnshire Council,http://statistics.data.gov.uk/id/local-authority/00FC,People And Communities,Vulnerable Young People,School Access Governor Student,Contract Hire-Operating Leases,Vehicles - Contract Hire,JC101,08/02/2012,87231,Redacted Commercially Sensitive,REVENUE,HUXMANOR LTD,101444
North East Lincolnshire Council,http://statistics.data.gov.uk/id/local-authority/00FC,People And Communities,Vulnerable Young People,Through Care & Disability,Private Contractors,Third Party Prov - Private,PH101,21/02/2012,90713,"5,500.00 ",REVENUE,IN CONTROL PARTNERSHIPS,109039
North East Lincolnshire Council,http://statistics.data.gov.uk/id/local-authority/00FC,People And Communities,Childrens Hlth & Family Supp,Integrated Youth Services,Communications And Computing,Computer S/Ware - Purchases,LF101,03/02/2012,85716,-69.93 ,REVENUE,INCENTIVE PLUS LTD,108184
North East Lincolnshire Council,http://statistics.data.gov.uk/id/local-authority/00FC,People And Communities,Childrens Hlth & Family Supp,Palliative / Complex Care,Private Contractors,Third Party Prov - Private,PH101,29/02/2012,93240,"6,206.52 ",REVENUE,INDEPENDENT COMMUNITY CARE MANAGEMENT LTD,105477
North East Lincolnshire Council,http://statistics.data.gov.uk/id/local-authority/00FC,People And Communities,Childrens Hlth & Family Supp,Palliative / Complex Care,Private Contractors,Third Party Prov - Private,PH101,03/02/2012,86038,"6,206.52 ",REVENUE,INDEPENDENT COMMUNITY CARE MANAGEMENT LTD,105477
North East Lincolnshire Council,http://statistics.data.gov.uk/id/local-authority/00FC,People And Communities,Vulnerable Young People,Sen/Inclusion,Rep Alterations Maint Building,Buildings - Repairs And Maint,GA102,16/02/2012,90171,500.00 ,REVENUE,IT SERVICES (GRIMSBY) LTD,101060
North East Lincolnshire Council,http://statistics.data.gov.uk/id/local-authority/00FC,People And Communities,Vulnerable Young People,Safeguarding,Direct Transport Costs,Voluntary Drivers Expenses,JA107,15/02/2012,89276,607.60 ,REVENUE,Redacted Personal Information,Redacted Personal Information
North East Lincolnshire Council,http://statistics.data.gov.uk/id/local-authority/00FC,People And Communities,Childrens Hlth & Family Supp,Childrens Centre Development,Rep Alterations Maint Building,Buildings - Repairs And Maint,GA102,22/02/2012,91791,-320.00 ,REVENUE,J MELTON LTD,100636
North East Lincolnshire Council,http://statistics.data.gov.uk/id/local-authority/00FC,People And Communities,Childrens Hlth & Family Supp,Childrens Centre Development,Rep Alterations Maint Building,Buildings - Repairs And Maint,GA102,15/02/2012,88841,740.00 ,REVENUE,J MELTON LTD,100636
North East Lincolnshire Council,http://statistics.data.gov.uk/id/local-authority/00FC,People And Communities,Childrens Hlth & Family Supp,Childrens Centre Development,Rep Alterations Maint Building,Buildings - Repairs And Maint,GA102,15/02/2012,88845,870.00 ,REVENUE,J MELTON LTD,100636
North East Lincolnshire Council,http://statistics.data.gov.uk/id/local-authority/00FC,People And Communities,Vulnerable Young People,Strategic Management,Direct Employee Expenses,Pay,EA101,23/02/2012,92143,"-1,437.90 ",REVENUE,JD AND KM BLACKMORE PARTNERS,102197
North East Lincolnshire Council,http://statistics.data.gov.uk/id/local-authority/00FC,People And Communities,Vulnerable Young People,Strategic Management,Direct Employee Expenses,Pay,EA101,17/02/2012,90772,"1,437.90 ",REVENUE,JD AND KM BLACKMORE PARTNERS,102197
North East Lincolnshire Council,http://statistics.data.gov.uk/id/local-authority/00FC,People And Communities,Vulnerable Young People,Strategic Management,Direct Employee Expenses,Pay,EA101,23/02/2012,92143,"1,437.90 ",REVENUE,JD AND KM BLACKMORE PARTNERS,102197
North East Lincolnshire Council,http://statistics.data.gov.uk/id/local-authority/00FC,People And Communities,Vulnerable Young People,Strategic Management,Direct Employee Expenses,Pay,EA101,15/02/2012,89566,"9,986.15 ",REVENUE,JD AND KM BLACKMORE PARTNERS,102197
North East Lincolnshire Council,http://statistics.data.gov.uk/id/local-authority/00FC,People And Communities,Vulnerable Young People,Strategic Management,Direct Employee Expenses,Pay,EA101,23/02/2012,92143,"12,250.00 ",REVENUE,JD AND KM BLACKMORE PARTNERS,102197
North East Lincolnshire Council,http://statistics.data.gov.uk/id/local-authority/00FC,People And Communities,Vulnerable Young People,Placement & Support,Other Agencies,Setting Up,PJ111,21/02/2012,64686,500.00 ,REVENUE,Redacted Personal Information,Redacted Personal Information
North East Lincolnshire Council,http://statistics.data.gov.uk/id/local-authority/00FC,People And Communities,Childrens Hlth & Family Supp,Integ Local Service Delivery,Other Agencies,Nursery Educ Fund - Standard,PJ139,22/02/2012,91532,"7,057.44 ",REVENUE,JUDY CLARK PLAYGROUP,100939
North East Lincolnshire Council,http://statistics.data.gov.uk/id/local-authority/00FC,People And Communities,Vulnerable Young People,School Access Governor Student,Direct Employee Expenses,Pay,EA101,22/02/2012,64980,Redacted Personal Information,REVENUE,Redacted Personal Information,Redacted Personal Information
North East Lincolnshire Council,http://statistics.data.gov.uk/id/local-authority/00FC,People And Communities,Vulnerable Young People,School Access Governor Student,Direct Employee Expenses,Pay,EA101,16/02/2012,64151,Redacted Personal Information,REVENUE,Redacted Personal Information,Redacted Personal Information
North East Lincolnshire Council,http://statistics.data.gov.uk/id/local-authority/00FC,People And Communities,Improved Health,Trading Standards,Direct Employee Expenses,Agency Staff,EA105,10/02/2012,87771,"1,064.00 ",REVENUE,KENYON BLOCK CONSULTANTS,101878
North East Lincolnshire Council,http://statistics.data.gov.uk/id/local-authority/00FC,People And Communities,Improved Health,Trading Standards,Direct Employee Expenses,Agency Staff,EA105,09/02/2012,87779,"1,162.67 ",REVENUE,KENYON BLOCK CONSULTANTS,101878
North East Lincolnshire Council,http://statistics.data.gov.uk/id/local-authority/00FC,People And Communities,Improved Health,Trading Standards,Direct Employee Expenses,Agency Staff,EA105,09/02/2012,87778,"1,366.02 ",REVENUE,KENYON BLOCK CONSULTANTS,101878
North East Lincolnshire Council,http://statistics.data.gov.uk/id/local-authority/00FC,People And Communities,Improved Health,Trading Standards,Direct Employee Expenses,Agency Staff,EA105,02/02/2012,85145,"1,368.11 ",REVENUE,KENYON BLOCK CONSULTANTS,101878
North East Lincolnshire Council,http://statistics.data.gov.uk/id/local-authority/00FC,People And Communities,Improved Health,Trading Standards,Direct Employee Expenses,Agency Staff,EA105,02/02/2012,85178,"1,390.03 ",REVENUE,KENYON BLOCK CONSULTANTS,101878
North East Lincolnshire Council,http://statistics.data.gov.uk/id/local-authority/00FC,People And Communities,Improved Health,Trading Standards,Direct Employee Expenses,Agency Staff,EA105,29/02/2012,92897,"1,407.26 ",REVENUE,KENYON BLOCK CONSULTANTS,101878
North East Lincolnshire Council,http://statistics.data.gov.uk/id/local-authority/00FC,People And Communities,Improved Health,Trading Standards,Direct Employee Expenses,Agency Staff,EA105,02/02/2012,85107,"1,529.25 ",REVENUE,KENYON BLOCK CONSULTANTS,101878
North East Lincolnshire Council,http://statistics.data.gov.uk/id/local-authority/00FC,People And Communities,Vulnerable Young People,Sen/Inclusion,Other Local Authorities,Third Pp - Other Local Auth,PC101,15/02/2012,88652,Redacted Commercially Sensitive,REVENUE,KINGSTON UPON HULL CITY COUNCIL,100541
North East Lincolnshire Council,http://statistics.data.gov.uk/id/local-authority/00FC,People And Communities,Vulnerable Young People,Serco Contract,Other Agencies,Performers,PJ101,06/02/2012,86425,"3,084.00 ",REVENUE,LIBELLULE THEATRE,107053
North East Lincolnshire Council,http://statistics.data.gov.uk/id/local-authority/00FC,People And Communities,Vulnerable Young People,Serco Contract,Other Agencies,Performers,PJ101,06/02/2012,86424,"3,634.00 ",REVENUE,LIBELLULE THEATRE,107053
North East Lincolnshire Council,http://statistics.data.gov.uk/id/local-authority/00FC,People And Communities,Vulnerable Young People,Placement & Support,Other Agencies,Special Carer Payments,PJ128,07/02/2012,62214,704.54 ,REVENUE,Redacted Personal Information,Redacted Personal Information
North East Lincolnshire Council,http://statistics.data.gov.uk/id/local-authority/00FC,People And Communities,Vulnerable Young People,Placement & Support,Other Agencies,Special Carer Payments,PJ128,14/02/2012,63547,704.54 ,REVENUE,Redacted Personal Information,Redacted Personal Information
North East Lincolnshire Council,http://statistics.data.gov.uk/id/local-authority/00FC,People And Communities,Vulnerable Young People,Placement & Support,Other Agencies,Special Carer Payments,PJ128,21/02/2012,64567,704.54 ,REVENUE,Redacted Personal Information,Redacted Personal Information
North East Lincolnshire Council,http://statistics.data.gov.uk/id/local-authority/00FC,People And Communities,Vulnerable Young People,Placement & Support,Other Agencies,Special Carer Payments,PJ128,28/02/2012,66747,704.54 ,REVENUE,Redacted Personal Information,Redacted Personal Information
North East Lincolnshire Council,http://statistics.data.gov.uk/id/local-authority/00FC,People And Communities,Vulnerable Young People,Placement & Support,Other Agencies,Health Charges,PJ131,08/02/2012,87248,"1,300.00 ",REVENUE,Redacted Personal Information,Redacted Personal Information
North East Lincolnshire Council,http://statistics.data.gov.uk/id/local-authority/00FC,People And Communities,Improved Health,Ot Stores,Equip / Furniture / Materials,Health & Safety Supplies,LA116,28/02/2012,92127,"1,930.00 ",REVENUE,LINDALE HEALTHCARE,102517
North East Lincolnshire Council,http://statistics.data.gov.uk/id/local-authority/00FC,People And Communities,Improved Health,Ot Stores,Equip / Furniture / Materials,Health & Safety Supplies,LA116,28/02/2012,92124,"2,304.00 ",REVENUE,LINDALE HEALTHCARE,102517
North East Lincolnshire Council,http://statistics.data.gov.uk/id/local-authority/00FC,People And Communities,Improved Health,Ot Stores,Equip / Furniture / Materials,Health & Safety Supplies,LA116,28/02/2012,92128,"2,719.00 ",REVENUE,LINDALE HEALTHCARE,102517
North East Lincolnshire Council,http://statistics.data.gov.uk/id/local-authority/00FC,People And Communities,Vulnerable Young People,Placement & Support,Equip / Furniture / Materials,Equipment - Purchase,LA101,21/02/2012,91083,750.00 ,REVENUE,LINKS PLANT & EQUIPMENT,101585
North East Lincolnshire Council,http://statistics.data.gov.uk/id/local-authority/00FC,People And Communities,Vulnerable Young People,School Access Governor Student,Contract Hire-Operating Leases,Vehicles - Contract Hire,JC101,22/02/2012,91282,Redacted Commercially Sensitive,REVENUE,LINKS TAXIS,100546
North East Lincolnshire Council,http://statistics.data.gov.uk/id/local-authority/00FC,People And Communities,Vulnerable Young People,School Access Governor Student,Contract Hire-Operating Leases,Vehicles - Contract Hire,JC101,01/02/2012,85088,Redacted Commercially Sensitive,REVENUE,LINKS TAXIS,100546
North East Lincolnshire Council,http://statistics.data.gov.uk/id/local-authority/00FC,People And Communities,Vulnerable Young People,School Access Governor Student,Contract Hire-Operating Leases,Vehicles - Contract Hire,JC101,22/02/2012,91277,Redacted Commercially Sensitive,REVENUE,LINKS TAXIS,100546
North East Lincolnshire Council,http://statistics.data.gov.uk/id/local-authority/00FC,People And Communities,Vulnerable Young People,School Access Governor Student,Contract Hire-Operating Leases,Vehicles - Contract Hire,JC101,17/02/2012,90717,Redacted Commercially Sensitive,REVENUE,LINKS TAXIS,100546
North East Lincolnshire Council,http://statistics.data.gov.uk/id/local-authority/00FC,People And Communities,Vulnerable Young People,School Access Governor Student,Contract Hire-Operating Leases,Vehicles - Contract Hire,JC101,22/02/2012,91731,Redacted Commercially Sensitive,REVENUE,LINKS TAXIS,100546
North East Lincolnshire Council,http://statistics.data.gov.uk/id/local-authority/00FC,People And Communities,Vulnerable Young People,School Access Governor Student,Contract Hire-Operating Leases,Vehicles - Contract Hire,JC101,16/02/2012,89610,Redacted Commercially Sensitive,REVENUE,LINKS TAXIS,100546
North East Lincolnshire Council,http://statistics.data.gov.uk/id/local-authority/00FC,People And Communities,Vulnerable Young People,School Access Governor Student,Contract Hire-Operating Leases,Vehicles - Contract Hire,JC101,17/02/2012,90701,Redacted Commercially Sensitive,REVENUE,LINKS TAXIS,100546
North East Lincolnshire Council,http://statistics.data.gov.uk/id/local-authority/00FC,People And Communities,Vulnerable Young People,School Access Governor Student,Contract Hire-Operating Leases,Vehicles - Contract Hire,JC101,17/02/2012,90692,Redacted Commercially Sensitive,REVENUE,LINKS TAXIS,100546
North East Lincolnshire Council,http://statistics.data.gov.uk/id/local-authority/00FC,People And Communities,Vulnerable Young People,School Access Governor Student,Contract Hire-Operating Leases,Vehicles - Contract Hire,JC101,17/02/2012,90655,Redacted Commercially Sensitive,REVENUE,LINKS TAXIS,100546
North East Lincolnshire Council,http://statistics.data.gov.uk/id/local-authority/00FC,People And Communities,Vulnerable Young People,School Access Governor Student,Contract Hire-Operating Leases,Vehicles - Contract Hire,JC101,16/02/2012,89611,Redacted Commercially Sensitive,REVENUE,LINKS TAXIS,100546
North East Lincolnshire Council,http://statistics.data.gov.uk/id/local-authority/00FC,People And Communities,Vulnerable Young People,School Access Governor Student,Contract Hire-Operating Leases,Vehicles - Contract Hire,JC101,17/02/2012,90633,Redacted Commercially Sensitive,REVENUE,LINKS TAXIS,100546
North East Lincolnshire Council,http://statistics.data.gov.uk/id/local-authority/00FC,People And Communities,Vulnerable Young People,School Access Governor Student,Contract Hire-Operating Leases,Vehicles - Contract Hire,JC101,17/02/2012,90656,Redacted Commercially Sensitive,REVENUE,LINKS TAXIS,100546
North East Lincolnshire Council,http://statistics.data.gov.uk/id/local-authority/00FC,People And Communities,Vulnerable Young People,School Access Governor Student,Contract Hire-Operating Leases,Vehicles - Contract Hire,JC101,17/02/2012,90626,Redacted Commercially Sensitive,REVENUE,LINKS TAXIS,100546
North East Lincolnshire Council,http://statistics.data.gov.uk/id/local-authority/00FC,People And Communities,Vulnerable Young People,School Access Governor Student,Contract Hire-Operating Leases,Vehicles - Contract Hire,JC101,17/02/2012,90657,Redacted Commercially Sensitive,REVENUE,LINKS TAXIS,100546
North East Lincolnshire Council,http://statistics.data.gov.uk/id/local-authority/00FC,People And Communities,Vulnerable Young People,School Access Governor Student,Contract Hire-Operating Leases,Vehicles - Contract Hire,JC101,21/02/2012,90715,Redacted Commercially Sensitive,REVENUE,LINKS TAXIS,100546
North East Lincolnshire Council,http://statistics.data.gov.uk/id/local-authority/00FC,People And Communities,Vulnerable Young People,School Access Governor Student,Contract Hire-Operating Leases,Vehicles - Contract Hire,JC101,22/02/2012,91488,Redacted Commercially Sensitive,REVENUE,LINKS TAXIS,100546
North East Lincolnshire Council,http://statistics.data.gov.uk/id/local-authority/00FC,People And Communities,Vulnerable Young People,School Access Governor Student,Contract Hire-Operating Leases,Vehicles - Contract Hire,JC101,17/02/2012,90630,Redacted Commercially Sensitive,REVENUE,LINKS TAXIS,100546
North East Lincolnshire Council,http://statistics.data.gov.uk/id/local-authority/00FC,People And Communities,Vulnerable Young People,School Access Governor Student,Contract Hire-Operating Leases,Vehicles - Contract Hire,JC101,23/02/2012,91743,Redacted Commercially Sensitive,REVENUE,LINKS TAXIS,100546
North East Lincolnshire Council,http://statistics.data.gov.uk/id/local-authority/00FC,People And Communities,Vulnerable Young People,School Access Governor Student,Contract Hire-Operating Leases,Vehicles - Contract Hire,JC101,21/02/2012,90623,Redacted Commercially Sensitive,REVENUE,LINKS TAXIS,100546
North East Lincolnshire Council,http://statistics.data.gov.uk/id/local-authority/00FC,People And Communities,Vulnerable Young People,School Access Governor Student,Contract Hire-Operating Leases,Vehicles - Contract Hire,JC101,17/02/2012,90627,Redacted Commercially Sensitive,REVENUE,LINKS TAXIS,100546
North East Lincolnshire Council,http://statistics.data.gov.uk/id/local-authority/00FC,People And Communities,Vulnerable Young People,School Access Governor Student,Contract Hire-Operating Leases,Vehicles - Contract Hire,JC101,22/02/2012,91733,Redacted Commercially Sensitive,REVENUE,LINKS TAXIS,100546
North East Lincolnshire Council,http://statistics.data.gov.uk/id/local-authority/00FC,People And Communities,Vulnerable Young People,School Access Governor Student,Contract Hire-Operating Leases,Vehicles - Contract Hire,JC101,22/02/2012,91264,Redacted Commercially Sensitive,REVENUE,LINKS TAXIS,100546
North East Lincolnshire Council,http://statistics.data.gov.uk/id/local-authority/00FC,People And Communities,Vulnerable Young People,School Access Governor Student,Contract Hire-Operating Leases,Vehicles - Contract Hire,JC101,22/02/2012,91795,Redacted Commercially Sensitive,REVENUE,LINKS TAXIS,100546
North East Lincolnshire Council,http://statistics.data.gov.uk/id/local-authority/00FC,People And Communities,Vulnerable Young People,School Access Governor Student,Contract Hire-Operating Leases,Vehicles - Contract Hire,JC101,17/02/2012,90632,Redacted Commercially Sensitive,REVENUE,LINKS TAXIS,100546
North East Lincolnshire Council,http://statistics.data.gov.uk/id/local-authority/00FC,People And Communities,Vulnerable Young People,School Access Governor Student,Contract Hire-Operating Leases,Vehicles - Contract Hire,JC101,22/02/2012,91276,Redacted Commercially Sensitive,REVENUE,LINKS TAXIS,100546
North East Lincolnshire Council,http://statistics.data.gov.uk/id/local-authority/00FC,People And Communities,Vulnerable Young People,School Access Governor Student,Contract Hire-Operating Leases,Vehicles - Contract Hire,JC101,22/02/2012,91485,Redacted Commercially Sensitive,REVENUE,LINKS TAXIS,100546
North East Lincolnshire Council,http://statistics.data.gov.uk/id/local-authority/00FC,People And Communities,Vulnerable Young People,Sen/Inclusion,Private Contractors,Concessionary Fares,PH104,28/02/2012,92613,Redacted Commercially Sensitive,REVENUE,LINKS TAXIS,100546
North East Lincolnshire Council,http://statistics.data.gov.uk/id/local-authority/00FC,People And Communities,Vulnerable Young People,School Access Governor Student,Contract Hire-Operating Leases,Vehicles - Contract Hire,JC101,28/02/2012,92627,Redacted Commercially Sensitive,REVENUE,LINKS TAXIS,100546
North East Lincolnshire Council,http://statistics.data.gov.uk/id/local-authority/00FC,People And Communities,Vulnerable Young People,School Access Governor Student,Contract Hire-Operating Leases,Vehicles - Contract Hire,JC101,17/02/2012,90654,Redacted Commercially Sensitive,REVENUE,LINKS TAXIS,100546
North East Lincolnshire Council,http://statistics.data.gov.uk/id/local-authority/00FC,People And Communities,Vulnerable Young People,School Access Governor Student,Contract Hire-Operating Leases,Vehicles - Contract Hire,JC101,17/02/2012,90634,Redacted Commercially Sensitive,REVENUE,LINKS TAXIS,100546
North East Lincolnshire Council,http://statistics.data.gov.uk/id/local-authority/00FC,People And Communities,Vulnerable Young People,School Access Governor Student,Contract Hire-Operating Leases,Vehicles - Contract Hire,JC101,28/02/2012,92609,Redacted Commercially Sensitive,REVENUE,LINKS TAXIS,100546
North East Lincolnshire Council,http://statistics.data.gov.uk/id/local-authority/00FC,People And Communities,Vulnerable Young People,School Access Governor Student,Contract Hire-Operating Leases,Vehicles - Contract Hire,JC101,16/02/2012,89614,Redacted Commercially Sensitive,REVENUE,LINKS TAXIS,100546
North East Lincolnshire Council,http://statistics.data.gov.uk/id/local-authority/00FC,People And Communities,Childrens Hlth & Family Supp,Integ Local Service Delivery,Other Agencies,Nursery Educ Fund - Standard,PJ139,22/02/2012,91521,"10,312.32 ",REVENUE,LISLE MARSDEN PRE-SCHOOL,101465
North East Lincolnshire Council,http://statistics.data.gov.uk/id/local-authority/00FC,People And Communities,Childrens Hlth & Family Supp,Integ Local Service Delivery,Other Agencies,Nursery Educ Fund - Standard,PJ139,22/02/2012,91549,"2,410.80 ",REVENUE,LITTLE BLOSSOMS DAY NURSERY,101816
North East Lincolnshire Council,http://statistics.data.gov.uk/id/local-authority/00FC,People And Communities,Childrens Hlth & Family Supp,Integ Local Service Delivery,Other Agencies,Nursery Educ Fund - Standard,PJ139,22/02/2012,91538,"1,948.32 ",REVENUE,LITTLE LEGS DAYCARE,101753
North East Lincolnshire Council,http://statistics.data.gov.uk/id/local-authority/00FC,People And Communities,Improved Health,Supporting People,Other Agencies,Third Pp - Block Subsidy,PJ102,28/02/2012,92560,Redacted Commercially Sensitive,REVENUE,LONGHURST AND HAVELOK HOMES LTD,100342
North East Lincolnshire Council,http://statistics.data.gov.uk/id/local-authority/00FC,People And Communities,Improved Health,Supporting People,Other Agencies,Third Pp - Block Gross,PJ103,24/02/2012,92268,Redacted Commercially Sensitive,REVENUE,LONGHURST AND HAVELOK HOMES LTD,100342
North East Lincolnshire Council,http://statistics.data.gov.uk/id/local-authority/00FC,People And Communities,Improved Health,Supporting People,Other Agencies,Third Pp - Block Subsidy,PJ102,28/02/2012,92569,Redacted Commercially Sensitive,REVENUE,LONGHURST AND HAVELOK HOMES LTD,100342
North East Lincolnshire Council,http://statistics.data.gov.uk/id/local-authority/00FC,People And Communities,Childrens Hlth & Family Supp,Childrens Centre Development,Rep Alterations Maint Building,Internal Decoration,GA119,15/02/2012,89204,"1,403.00 ",REVENUE,LUDAFLORS,100547
North East Lincolnshire Council,http://statistics.data.gov.uk/id/local-authority/00FC,People And Communities,Childrens Hlth & Family Supp,Childrens Health Provision,Equip / Furniture / Materials,Equipment - Purchase,LA101,22/02/2012,91645,-364.77 ,REVENUE,LYRECO UK LIMITED,101120
North East Lincolnshire Council,http://statistics.data.gov.uk/id/local-authority/00FC,People And Communities,Childrens Hlth & Family Supp,Integrated Youth Services,Print Stationery / Gen Off Exp,Printing And Stationery,LD103,06/02/2012,86548,-223.22 ,REVENUE,LYRECO UK LIMITED,101120
North East Lincolnshire Council,http://statistics.data.gov.uk/id/local-authority/00FC,People And Communities,Childrens Hlth & Family Supp,Childrens Centre Development,Communications And Computing,Postage,LF111,01/02/2012,83773,555.00 ,REVENUE,LYRECO UK LIMITED,101120
North East Lincolnshire Council,http://statistics.data.gov.uk/id/local-authority/00FC,People And Communities,Childrens Hlth & Family Supp,Childrens Centre Development,Print Stationery / Gen Off Exp,Printing And Stationery,LD103,15/02/2012,89582,556.86 ,REVENUE,LYRECO UK LIMITED,101120
North East Lincolnshire Council,http://statistics.data.gov.uk/id/local-authority/00FC,People And Communities,Childrens Hlth & Family Supp,Childrens Centre Development,Print Stationery / Gen Off Exp,Printing And Stationery,LD103,16/02/2012,90150,612.18 ,REVENUE,LYRECO UK LIMITED,101120
North East Lincolnshire Council,http://statistics.data.gov.uk/id/local-authority/00FC,People And Communities,Childrens Hlth & Family Supp,Integ Local Service Delivery,Print Stationery / Gen Off Exp,Printing And Stationery,LD103,14/02/2012,89316,646.50 ,REVENUE,LYRECO UK LIMITED,101120
North East Lincolnshire Council,http://statistics.data.gov.uk/id/local-authority/00FC,People And Communities,Improved Health,Health Promotion,Print Stationery / Gen Off Exp,Printing And Stationery,LD103,17/02/2012,90647,"1,011.96 ",REVENUE,LYRECO UK LIMITED,101120
North East Lincolnshire Council,http://statistics.data.gov.uk/id/local-authority/00FC,People And Communities,Vulnerable Young People,Commissioning & Performance,Equip / Furniture / Materials,Equipment - Purchase,LA101,22/02/2012,91645,-364.77 ,REVENUE,LYRECO UK LIMITED,101120
North East Lincolnshire Council,http://statistics.data.gov.uk/id/local-authority/00FC,People And Communities,Vulnerable Young People,Through Care & Disability,Print Stationery / Gen Off Exp,Printing And Stationery,LD103,03/02/2012,86132,-10.06 ,REVENUE,LYRECO UK LIMITED,101120
North East Lincolnshire Council,http://statistics.data.gov.uk/id/local-authority/00FC,People And Communities,Vulnerable Young People,Sen/Inclusion,Print Stationery / Gen Off Exp,Printing And Stationery,LD103,17/02/2012,90606,866.24 ,REVENUE,LYRECO UK LIMITED,101120
North East Lincolnshire Council,http://statistics.data.gov.uk/id/local-authority/00FC,People And Communities,Vulnerable Young People,School Access Governor Student,Contract Hire-Operating Leases,Vehicles - Contract Hire,JC101,08/02/2012,87232,Redacted Commercially Sensitive,REVENUE,MARTIN HORTON,102171
North East Lincolnshire Council,http://statistics.data.gov.uk/id/local-authority/00FC,People And Communities,Childrens Hlth & Family Supp,Integ Local Service Delivery,Direct Employee Expenses,Agency Staff,EA105,01/02/2012,84226,-360.17 ,REVENUE,MATRIX SCM LTD,108117
North East Lincolnshire Council,http://statistics.data.gov.uk/id/local-authority/00FC,People And Communities,Childrens Hlth & Family Supp,Childrens Centre Development,Direct Employee Expenses,Agency Staff,EA105,01/02/2012,84226,606.39 ,REVENUE,MATRIX SCM LTD,108117
North East Lincolnshire Council,http://statistics.data.gov.uk/id/local-authority/00FC,People And Communities,Childrens Hlth & Family Supp,Childrens Centre Development,Direct Employee Expenses,Agency Staff,EA105,07/02/2012,86594,664.34 ,REVENUE,MATRIX SCM LTD,108117
North East Lincolnshire Council,http://statistics.data.gov.uk/id/local-authority/00FC,People And Communities,Childrens Hlth & Family Supp,Childrens Centre Development,Direct Employee Expenses,Agency Staff,EA105,07/02/2012,86594,674.27 ,REVENUE,MATRIX SCM LTD,108117
North East Lincolnshire Council,http://statistics.data.gov.uk/id/local-authority/00FC,People And Communities,Childrens Hlth & Family Supp,Childrens Centre Development,Direct Employee Expenses,Agency Staff,EA105,22/02/2012,91796,674.27 ,REVENUE,MATRIX SCM LTD,108117
North East Lincolnshire Council,http://statistics.data.gov.uk/id/local-authority/00FC,People And Communities,Childrens Hlth & Family Supp,Childrens Centre Development,Direct Employee Expenses,Agency Staff,EA105,07/02/2012,86594,876.70 ,REVENUE,MATRIX SCM LTD,108117
North East Lincolnshire Council,http://statistics.data.gov.uk/id/local-authority/00FC,People And Communities,Vulnerable Young People,Childrens Trust,Direct Employee Expenses,Agency Staff,EA105,22/02/2012,91796,625.34 ,REVENUE,MATRIX SCM LTD,108117
North East Lincolnshire Council,http://statistics.data.gov.uk/id/local-authority/00FC,People And Communities,Vulnerable Young People,Placement & Support,Direct Employee Expenses,Agency Staff,EA105,01/02/2012,84226,"1,078.14 ",REVENUE,MATRIX SCM LTD,108117
North East Lincolnshire Council,http://statistics.data.gov.uk/id/local-authority/00FC,People And Communities,Vulnerable Young People,School Access Governor Student,Contract Hire-Operating Leases,Vehicles - Contract Hire,JC101,17/02/2012,90618,Redacted Commercially Sensitive,REVENUE,MAYALLS CARS,104414
North East Lincolnshire Council,http://statistics.data.gov.uk/id/local-authority/00FC,People And Communities,Vulnerable Young People,School Access Governor Student,Contract Hire-Operating Leases,Vehicles - Contract Hire,JC101,08/02/2012,87234,Redacted Commercially Sensitive,REVENUE,MILLMAN COACHES,100700
North East Lincolnshire Council,http://statistics.data.gov.uk/id/local-authority/00FC,People And Communities,Vulnerable Young People,School Access Governor Student,Contract Hire-Operating Leases,Vehicles - Contract Hire,JC101,08/02/2012,87098,Redacted Commercially Sensitive,REVENUE,MILLMAN COACHES,100700
North East Lincolnshire Council,http://statistics.data.gov.uk/id/local-authority/00FC,People And Communities,Vulnerable Young People,School Access Governor Student,Contract Hire-Operating Leases,Vehicles - Contract Hire,JC101,08/02/2012,87236,Redacted Commercially Sensitive,REVENUE,MILLMAN COACHES,100700
North East Lincolnshire Council,http://statistics.data.gov.uk/id/local-authority/00FC,People And Communities,Vulnerable Young People,School Access Governor Student,Contract Hire-Operating Leases,Vehicles - Contract Hire,JC101,08/02/2012,87235,Redacted Commercially Sensitive,REVENUE,MILLMAN COACHES,100700
North East Lincolnshire Council,http://statistics.data.gov.uk/id/local-authority/00FC,People And Communities,Childrens Hlth & Family Supp,Head Of Child Hlth - Fam Supp,Contract Hire-Operating Leases,Vehicles - Contract Hire,JC101,09/02/2012,87538,Redacted Commercially Sensitive,REVENUE,MINICABS CLEETHORPES (LINCS) LTD,102124
North East Lincolnshire Council,http://statistics.data.gov.uk/id/local-authority/00FC,People And Communities,Vulnerable Young People,School Access Governor Student,Contract Hire-Operating Leases,Vehicles - Contract Hire,JC101,15/02/2012,89271,Redacted Commercially Sensitive,REVENUE,MINICABS CLEETHORPES (LINCS) LTD,102124
North East Lincolnshire Council,http://statistics.data.gov.uk/id/local-authority/00FC,People And Communities,Vulnerable Young People,School Access Governor Student,Contract Hire-Operating Leases,Vehicles - Contract Hire,JC101,09/02/2012,87541,Redacted Commercially Sensitive,REVENUE,MINICABS CLEETHORPES (LINCS) LTD,102124
North East Lincolnshire Council,http://statistics.data.gov.uk/id/local-authority/00FC,People And Communities,Vulnerable Young People,School Access Governor Student,Contract Hire-Operating Leases,Vehicles - Contract Hire,JC101,09/02/2012,87536,Redacted Commercially Sensitive,REVENUE,MINICABS CLEETHORPES (LINCS) LTD,102124
North East Lincolnshire Council,http://statistics.data.gov.uk/id/local-authority/00FC,People And Communities,Vulnerable Young People,School Access Governor Student,Contract Hire-Operating Leases,Vehicles - Contract Hire,JC101,09/02/2012,87540,Redacted Commercially Sensitive,REVENUE,MINICABS CLEETHORPES (LINCS) LTD,102124
North East Lincolnshire Council,http://statistics.data.gov.uk/id/local-authority/00FC,People And Communities,Vulnerable Young People,School Access Governor Student,Contract Hire-Operating Leases,Vehicles - Contract Hire,JC101,09/02/2012,87535,Redacted Commercially Sensitive,REVENUE,MINICABS CLEETHORPES (LINCS) LTD,102124
North East Lincolnshire Council,http://statistics.data.gov.uk/id/local-authority/00FC,People And Communities,Vulnerable Young People,School Access Governor Student,Contract Hire-Operating Leases,Vehicles - Contract Hire,JC101,09/02/2012,87532,Redacted Commercially Sensitive,REVENUE,MINICABS CLEETHORPES (LINCS) LTD,102124
North East Lincolnshire Council,http://statistics.data.gov.uk/id/local-authority/00FC,People And Communities,Vulnerable Young People,School Access Governor Student,Contract Hire-Operating Leases,Vehicles - Contract Hire,JC101,09/02/2012,87607,Redacted Commercially Sensitive,REVENUE,MINICABS CLEETHORPES (LINCS) LTD,102124
North East Lincolnshire Council,http://statistics.data.gov.uk/id/local-authority/00FC,People And Communities,Vulnerable Young People,School Access Governor Student,Contract Hire-Operating Leases,Vehicles - Contract Hire,JC101,09/02/2012,87539,Redacted Commercially Sensitive,REVENUE,MINICABS CLEETHORPES (LINCS) LTD,102124
North East Lincolnshire Council,http://statistics.data.gov.uk/id/local-authority/00FC,People And Communities,Vulnerable Young People,School Access Governor Student,Contract Hire-Operating Leases,Vehicles - Contract Hire,JC101,09/02/2012,87608,Redacted Commercially Sensitive,REVENUE,MINICABS CLEETHORPES (LINCS) LTD,102124
North East Lincolnshire Council,http://statistics.data.gov.uk/id/local-authority/00FC,People And Communities,Vulnerable Young People,Standards & Effectiveness,Communications And Computing,Computer H/Ware - Purchases,LF105,23/02/2012,92063,"1,056.97 ",REVENUE,MISCO,100550
North East Lincolnshire Council,http://statistics.data.gov.uk/id/local-authority/00FC,People And Communities,Improved Health,Ot Stores,Equip / Furniture / Materials,Health & Safety Supplies,LA116,29/02/2012,92633,618.45 ,REVENUE,MOVEMENT2 PRISM MEDICAL UK,108486
North East Lincolnshire Council,http://statistics.data.gov.uk/id/local-authority/00FC,People And Communities,Vulnerable Young People,School Access Governor Student,Contributions To Provisions,Contributions - Other,LK103,21/02/2012,64444,615.79 ,REVENUE,Redacted Personal Information,Redacted Personal Information
North East Lincolnshire Council,http://statistics.data.gov.uk/id/local-authority/00FC,People And Communities,Vulnerable Young People,Placement & Support,Other Agencies,Child Care Payments,PJ104,28/02/2012,66765,-93.42 ,REVENUE,Redacted Personal Information,Redacted Personal Information
North East Lincolnshire Council,http://statistics.data.gov.uk/id/local-authority/00FC,People And Communities,Vulnerable Young People,Placement & Support,Other Agencies,Child Care Payments,PJ104,07/02/2012,62233,-46.71 ,REVENUE,Redacted Personal Information,Redacted Personal Information
North East Lincolnshire Council,http://statistics.data.gov.uk/id/local-authority/00FC,People And Communities,Vulnerable Young People,Placement & Support,Other Agencies,Child Care Payments,PJ104,21/02/2012,64586,-46.71 ,REVENUE,Redacted Personal Information,Redacted Personal Information
North East Lincolnshire Council,http://statistics.data.gov.uk/id/local-authority/00FC,People And Communities,Vulnerable Young People,Placement & Support,Other Agencies,Child Care Payments,PJ104,07/02/2012,62233,-26.00 ,REVENUE,Redacted Personal Information,Redacted Personal Information
North East Lincolnshire Council,http://statistics.data.gov.uk/id/local-authority/00FC,People And Communities,Vulnerable Young People,Sen/Inclusion,Consultancy,Consultancy,PL101,08/02/2012,87075,"1,200.00 ",REVENUE,MR BERNARD LEVEY,107903
North East Lincolnshire Council,http://statistics.data.gov.uk/id/local-authority/00FC,People And Communities,Childrens Hlth & Family Supp,Integrated Youth Services,Miscellaneous Expenses,Activities - Service Users,LL114,28/02/2012,66664,784.87 ,REVENUE,Redacted Personal Information,Redacted Personal Information
North East Lincolnshire Council,http://statistics.data.gov.uk/id/local-authority/00FC,People And Communities,Vulnerable Young People,Safeguarding,Indirect Employee Expenses,Staff Training,EB122,17/02/2012,90639,"3,900.00 ",REVENUE,Redacted Personal Information,Redacted Personal Information
North East Lincolnshire Council,http://statistics.data.gov.uk/id/local-authority/00FC,People And Communities,Vulnerable Young People,Safeguarding,Other Agencies,Section 17,PJ125,02/02/2012,61610,"1,000.00 ",REVENUE,Redacted Personal Information,Redacted Personal Information
North East Lincolnshire Council,http://statistics.data.gov.uk/id/local-authority/00FC,People And Communities,Vulnerable Young People,Safeguarding,Miscellaneous Expenses,Legal Fees - General,LL103,22/02/2012,91498,955.00 ,REVENUE,MR PAUL EDWARDS,109086
North East Lincolnshire Council,http://statistics.data.gov.uk/id/local-authority/00FC,People And Communities,Vulnerable Young People,Sen/Inclusion,Other Local Authorities,Third Pp - Other Local Auth,PC101,06/02/2012,86301,"1,000.00 ",REVENUE,MR R G FLOWERDAY,107027
North East Lincolnshire Council,http://statistics.data.gov.uk/id/local-authority/00FC,People And Communities,Vulnerable Young People,Placement & Support,Other Agencies,Child Care Payments,PJ104,07/02/2012,62310,-103.57 ,REVENUE,Redacted Personal Information,Redacted Personal Information
North East Lincolnshire Council,http://statistics.data.gov.uk/id/local-authority/00FC,People And Communities,Vulnerable Young People,Placement & Support,Other Agencies,Child Care Payments,PJ104,07/02/2012,62310,-10.36 ,REVENUE,Redacted Personal Information,Redacted Personal Information
North East Lincolnshire Council,http://statistics.data.gov.uk/id/local-authority/00FC,People And Communities,Vulnerable Young People,Placement & Support,Other Agencies,Special Carer Payments,PJ128,07/02/2012,62310,704.54 ,REVENUE,Redacted Personal Information,Redacted Personal Information
North East Lincolnshire Council,http://statistics.data.gov.uk/id/local-authority/00FC,People And Communities,Vulnerable Young People,Placement & Support,Other Agencies,Special Carer Payments,PJ128,14/02/2012,63641,704.54 ,REVENUE,Redacted Personal Information,Redacted Personal Information
North East Lincolnshire Council,http://statistics.data.gov.uk/id/local-authority/00FC,People And Communities,Vulnerable Young People,Placement & Support,Other Agencies,Special Carer Payments,PJ128,21/02/2012,64664,704.54 ,REVENUE,Redacted Personal Information,Redacted Personal Information
North East Lincolnshire Council,http://statistics.data.gov.uk/id/local-authority/00FC,People And Communities,Vulnerable Young People,Placement & Support,Other Agencies,Special Carer Payments,PJ128,28/02/2012,66840,704.54 ,REVENUE,Redacted Personal Information,Redacted Personal Information
North East Lincolnshire Council,http://statistics.data.gov.uk/id/local-authority/00FC,People And Communities,Vulnerable Young People,Placement & Support,Other Agencies,Special Carer Payments,PJ128,07/02/2012,62196,704.54 ,REVENUE,Redacted Personal Information,Redacted Personal Information
North East Lincolnshire Council,http://statistics.data.gov.uk/id/local-authority/00FC,People And Communities,Vulnerable Young People,Placement & Support,Other Agencies,Special Carer Payments,PJ128,14/02/2012,63529,704.54 ,REVENUE,Redacted Personal Information,Redacted Personal Information
North East Lincolnshire Council,http://statistics.data.gov.uk/id/local-authority/00FC,People And Communities,Vulnerable Young People,Placement & Support,Other Agencies,Special Carer Payments,PJ128,21/02/2012,64549,704.54 ,REVENUE,Redacted Personal Information,Redacted Personal Information
North East Lincolnshire Council,http://statistics.data.gov.uk/id/local-authority/00FC,People And Communities,Vulnerable Young People,Placement & Support,Other Agencies,Special Carer Payments,PJ128,28/02/2012,66730,704.54 ,REVENUE,Redacted Personal Information,Redacted Personal Information
North East Lincolnshire Council,http://statistics.data.gov.uk/id/local-authority/00FC,People And Communities,Vulnerable Young People,Placement & Support,Energy Costs,Electricity,GB102,08/02/2012,86851,590.11 ,REVENUE,N POWER,101599
North East Lincolnshire Council,http://statistics.data.gov.uk/id/local-authority/00FC,People And Communities,Vulnerable Young People,Strategic Management,Indirect Employee Expenses,Allowances - Employees,EB110,17/02/2012,90707,945.00 ,REVENUE,NASUWT G76 GRIMSBY & DISTRICT,107363
North East Lincolnshire Council,http://statistics.data.gov.uk/id/local-authority/00FC,People And Communities,Improved Health,Supporting People,Other Agencies,Third Pp - Block Subsidy,PJ102,28/02/2012,92562,Redacted Commercially Sensitive,REVENUE,NAVIGO HEALTH AND SOCIAL CARE CIC,104262
North East Lincolnshire Council,http://statistics.data.gov.uk/id/local-authority/00FC,People And Communities,Improved Health,Supporting People,Other Agencies,Third Pp - Block Subsidy,PJ102,17/02/2012,90348,Redacted Commercially Sensitive,REVENUE,NAVIGO HEALTH AND SOCIAL CARE CIC,104262
North East Lincolnshire Council,http://statistics.data.gov.uk/id/local-authority/00FC,People And Communities,Improved Health,Supporting People,Other Agencies,Third Pp - Block Subsidy,PJ102,28/02/2012,92570,Redacted Commercially Sensitive,REVENUE,NAVIGO HEALTH AND SOCIAL CARE CIC,104262
North East Lincolnshire Council,http://statistics.data.gov.uk/id/local-authority/00FC,People And Communities,Vulnerable Young People,Additional & Enhanced Needs,Other Local Authorities,Third Pp - Other Local Auth,PC101,17/02/2012,90177,"10,020.77 ",REVENUE,NEW OPTIONS LTD,105590
North East Lincolnshire Council,http://statistics.data.gov.uk/id/local-authority/00FC,People And Communities,Vulnerable Young People,Additional & Enhanced Needs,Other Local Authorities,Third Pp - Other Local Auth,PC101,17/02/2012,90175,"12,519.16 ",REVENUE,NEW OPTIONS LTD,105590
North East Lincolnshire Council,http://statistics.data.gov.uk/id/local-authority/00FC,People And Communities,Childrens Hlth & Family Supp,Integ Local Service Delivery,Other Agencies,Nursery Educ Fund - Standard,PJ139,22/02/2012,91529,"5,662.92 ",REVENUE,NEW WALTHAM TRACKERS PLAYGROUP,100972
North East Lincolnshire Council,http://statistics.data.gov.uk/id/local-authority/00FC,People And Communities,Childrens Hlth & Family Supp,Childrens Centre Development,Equip / Furniture / Materials,Furniture - Purchase,LA105,23/02/2012,92024,755.00 ,REVENUE,NEWBY LEISURE LTD,101227
North East Lincolnshire Council,http://statistics.data.gov.uk/id/local-authority/00FC,People And Communities,Childrens Hlth & Family Supp,Childrens Centre Development,Rep Alterations Maint Building,Buildings - Repairs And Maint,GA102,13/02/2012,88160,850.00 ,REVENUE,NEWBY LEISURE LTD,101227
North East Lincolnshire Council,http://statistics.data.gov.uk/id/local-authority/00FC,People And Communities,Childrens Hlth & Family Supp,Childrens Centre Development,Rep Alterations Maint Building,Internal Decoration,GA119,16/02/2012,90149,"2,000.00 ",REVENUE,NEWBY LEISURE LTD,101227
North East Lincolnshire Council,http://statistics.data.gov.uk/id/local-authority/00FC,People And Communities,Childrens Hlth & Family Supp,Childrens Health Provision,Private Contractors,Third Party Prov - Private,PH101,23/02/2012,92030,Redacted Commercially Sensitive,REVENUE,NORTH EAST LINCOLNSHIRE CARE TRUST PLUS LD,100340
North East Lincolnshire Council,http://statistics.data.gov.uk/id/local-authority/00FC,People And Communities,Childrens Hlth & Family Supp,Childrens Health Provision,Private Contractors,Third Party Prov - Private,PH101,23/02/2012,92030,Redacted Commercially Sensitive,REVENUE,NORTH EAST LINCOLNSHIRE CARE TRUST PLUS LD,100340
North East Lincolnshire Council,http://statistics.data.gov.uk/id/local-authority/00FC,People And Communities,Improved Health,Supporting People,Other Agencies,Third Pp - Block Subsidy,PJ102,29/02/2012,93239,Redacted Commercially Sensitive,REVENUE,NORTH EAST LINCOLNSHIRE CARE TRUST PLUS LD,100340
North East Lincolnshire Council,http://statistics.data.gov.uk/id/local-authority/00FC,People And Communities,Improved Health,Supporting People,Other Agencies,Third Pp - Block Subsidy,PJ102,23/02/2012,92017,Redacted Commercially Sensitive,REVENUE,NORTH EAST LINCOLNSHIRE CARE TRUST PLUS LD,100340
North East Lincolnshire Council,http://statistics.data.gov.uk/id/local-authority/00FC,People And Communities,Childrens Hlth & Family Supp,Childrens Health Provision,Finance Leasing,Leasing,LN101,03/02/2012,86133,Redacted Commercially Sensitive,REVENUE,NORTH EAST LINCOLNSHIRE PRIMARY CARE TRUST,100337
North East Lincolnshire Council,http://statistics.data.gov.uk/id/local-authority/00FC,People And Communities,Childrens Hlth & Family Supp,Childrens Health Provision,Finance Leasing,Leasing,LN101,15/02/2012,89583,Redacted Commercially Sensitive,REVENUE,NORTH EAST LINCOLNSHIRE PRIMARY CARE TRUST,100337
North East Lincolnshire Council,http://statistics.data.gov.uk/id/local-authority/00FC,People And Communities,Improved Health,Directors Public Health,Direct Employee Expenses,Pay,EA101,21/02/2012,91108,Redacted Commercially Sensitive,REVENUE,NORTH EAST LINCOLNSHIRE PRIMARY CARE TRUST,100337
North East Lincolnshire Council,http://statistics.data.gov.uk/id/local-authority/00FC,People And Communities,Improved Health,Directors Public Health,Direct Employee Expenses,Pay,EA101,21/02/2012,90989,Redacted Commercially Sensitive,REVENUE,NORTH EAST LINCOLNSHIRE PRIMARY CARE TRUST,100337
North East Lincolnshire Council,http://statistics.data.gov.uk/id/local-authority/00FC,People And Communities,Improved Health,Supporting People,Other Agencies,Third Pp - Block Subsidy,PJ102,23/02/2012,91826,Redacted Commercially Sensitive,REVENUE,NORTH EAST LINCOLNSHIRE PRIMARY CARE TRUST,100337
North East Lincolnshire Council,http://statistics.data.gov.uk/id/local-authority/00FC,People And Communities,Vulnerable Young People,Children'S Workforce Developme,Indirect Employee Expenses,Staff Training,EB122,16/02/2012,89662,Redacted Commercially Sensitive,REVENUE,NORTH EAST LINCOLNSHIRE PRIMARY CARE TRUST,100337
North East Lincolnshire Council,http://statistics.data.gov.uk/id/local-authority/00FC,People And Communities,Childrens Hlth & Family Supp,Childrens Health Provision,Private Contractors,Third Party Prov - Private,PH101,16/02/2012,89661,"1,025.00 ",REVENUE,NORTHERN LINCOLNSHIRE & GOOLE HOSPITALS,101242
North East Lincolnshire Council,http://statistics.data.gov.uk/id/local-authority/00FC,People And Communities,Childrens Hlth & Family Supp,Childrens Centre Development,Private Contractors,Third Party Prov - Private,PH101,08/02/2012,87213,"7,020.00 ",REVENUE,NORTHERN LINCOLNSHIRE & GOOLE HOSPITALS,101242
North East Lincolnshire Council,http://statistics.data.gov.uk/id/local-authority/00FC,People And Communities,Childrens Hlth & Family Supp,Integ Local Service Delivery,Private Contractors,Third Party Prov - Private,PH101,08/02/2012,87209,"8,595.00 ",REVENUE,NORTHERN LINCOLNSHIRE & GOOLE HOSPITALS,101242
North East Lincolnshire Council,http://statistics.data.gov.uk/id/local-authority/00FC,People And Communities,Vulnerable Young People,Sen/Inclusion,Other Local Authorities,Third Pp - Other Local Auth,PC101,06/02/2012,86296,"3,684.17 ",REVENUE,NORTHERN LINCOLNSHIRE & GOOLE HOSPITALS,101242
North East Lincolnshire Council,http://statistics.data.gov.uk/id/local-authority/00FC,People And Communities,Vulnerable Young People,Sen/Inclusion,Other Local Authorities,Third Pp - Other Local Auth,PC101,17/02/2012,90347,"3,684.17 ",REVENUE,NORTHERN LINCOLNSHIRE & GOOLE HOSPITALS,101242
North East Lincolnshire Council,http://statistics.data.gov.uk/id/local-authority/00FC,People And Communities,Vulnerable Young People,Child Care Performance & Ict,Communications And Computing,Computer S/Ware - Maintenance,LF102,10/02/2012,88271,Redacted Commercially Sensitive,REVENUE,NORTHGATE INFORMATION SOLUTIONS UK LTD,101841
North East Lincolnshire Council,http://statistics.data.gov.uk/id/local-authority/00FC,People And Communities,Vulnerable Young People,Safeguarding,Print Stationery / Gen Off Exp,Photocopier - Running Costs,LD102,17/02/2012,90672,Redacted Commercially Sensitive,REVENUE,NORTHGATE INFORMATION SOLUTIONS UK LTD,101841
North East Lincolnshire Council,http://statistics.data.gov.uk/id/local-authority/00FC,People And Communities,Vulnerable Young People,Safeguarding,Print Stationery / Gen Off Exp,Photocopier - Running Costs,LD102,17/02/2012,90672,Redacted Commercially Sensitive,REVENUE,NORTHGATE INFORMATION SOLUTIONS UK LTD,101841
North East Lincolnshire Council,http://statistics.data.gov.uk/id/local-authority/00FC,People And Communities,Vulnerable Young People,Through Care & Disability,Miscellaneous Expenses,Other Expenses General,LL119,10/02/2012,88130,Redacted Commercially Sensitive,REVENUE,NORTHGATE INFORMATION SOLUTIONS UK LTD,108909
North East Lincolnshire Council,http://statistics.data.gov.uk/id/local-authority/00FC,People And Communities,Vulnerable Young People,Safeguarding,Direct Transport Costs,Vehicles - Repairs And Maint,JA105,13/02/2012,88698,Redacted Commercially Sensitive,REVENUE,NORTHGATE VEHICLE HIRE,102553
North East Lincolnshire Council,http://statistics.data.gov.uk/id/local-authority/00FC,People And Communities,Improved Health,Trading Standards,Indirect Employee Expenses,Staff Training,EB122,01/02/2012,85037,"3,200.00 ",REVENUE,NOTTINGHAM TRENT UNIVERSITY,108705
North East Lincolnshire Council,http://statistics.data.gov.uk/id/local-authority/00FC,People And Communities,Childrens Hlth & Family Supp,Childrens Centre Development,Energy Costs,Electricity,GB102,22/02/2012,91658,651.68 ,REVENUE,NPOWER LIMITED,101414
North East Lincolnshire Council,http://statistics.data.gov.uk/id/local-authority/00FC,People And Communities,Vulnerable Young People,Sen/Inclusion,Energy Costs,Electricity,GB102,08/02/2012,86952,"1,386.72 ",REVENUE,NPOWER LIMITED,101414
North East Lincolnshire Council,http://statistics.data.gov.uk/id/local-authority/00FC,People And Communities,Vulnerable Young People,Sen/Inclusion,Energy Costs,Electricity,GB102,08/02/2012,86951,"1,452.39 ",REVENUE,NPOWER LIMITED,101414
North East Lincolnshire Council,http://statistics.data.gov.uk/id/local-authority/00FC,People And Communities,Improved Health,Trading Standards,Equip / Furniture / Materials,Equipment - Purchase,LA101,10/02/2012,88197,850.00 ,REVENUE,NUNEATON SIGNS LTD,103655
North East Lincolnshire Council,http://statistics.data.gov.uk/id/local-authority/00FC,People And Communities,Vulnerable Young People,Safeguarding,Other Agencies,Contact,PJ126,15/02/2012,89412,-37.92 ,REVENUE,NYS CORPORATE,102444
North East Lincolnshire Council,http://statistics.data.gov.uk/id/local-authority/00FC,People And Communities,Vulnerable Young People,Safeguarding,Other Agencies,Contact,PJ126,15/02/2012,89567,-35.30 ,REVENUE,NYS CORPORATE,102444
North East Lincolnshire Council,http://statistics.data.gov.uk/id/local-authority/00FC,People And Communities,Vulnerable Young People,Through Care & Disability,Car Allowances,Travel - Employees,JF101,09/02/2012,87694,-3.58 ,REVENUE,NYS CORPORATE,102444
North East Lincolnshire Council,http://statistics.data.gov.uk/id/local-authority/00FC,People And Communities,Childrens Hlth & Family Supp,Integrated Youth Services,Catering,Provisions,LB101,03/02/2012,85660,640.00 ,REVENUE,OASIS ACADEMY WINTRINGHAM,101939
North East Lincolnshire Council,http://statistics.data.gov.uk/id/local-authority/00FC,People And Communities,Vulnerable Young People,Placement & Support,Rep Alterations Maint Building,Buildings - Regulations / Insp,GA103,01/02/2012,84865,"1,202.74 ",REVENUE,OFSTED,101836
North East Lincolnshire Council,http://statistics.data.gov.uk/id/local-authority/00FC,People And Communities,Vulnerable Young People,Placement & Support,Rep Alterations Maint Building,Buildings - Regulations / Insp,GA103,01/02/2012,84866,"1,202.74 ",REVENUE,OFSTED,101836
North East Lincolnshire Council,http://statistics.data.gov.uk/id/local-authority/00FC,People And Communities,Vulnerable Young People,Placement & Support,Rep Alterations Maint Building,Buildings - Regulations / Insp,GA103,27/02/2012,92400,"1,322.53 ",REVENUE,OFSTED,101836
North East Lincolnshire Council,http://statistics.data.gov.uk/id/local-authority/00FC,People And Communities,Vulnerable Young People,Placement & Support,Rep Alterations Maint Building,Buildings - Regulations / Insp,GA103,02/02/2012,84882,"2,161.06 ",REVENUE,OFSTED,101836
North East Lincolnshire Council,http://statistics.data.gov.uk/id/local-authority/00FC,People And Communities,Improved Health,Supporting People,Other Agencies,Third Pp - Block Subsidy,PJ102,28/02/2012,92561,Redacted Commercially Sensitive,REVENUE,OPEN DOOR (HEALTH) LTD,103147
North East Lincolnshire Council,http://statistics.data.gov.uk/id/local-authority/00FC,People And Communities,Vulnerable Young People,Safeguarding,Indirect Employee Expenses,Staff Training,EB122,13/02/2012,87902,"10,600.00 ",REVENUE,OVERBECK LTD,104478
North East Lincolnshire Council,http://statistics.data.gov.uk/id/local-authority/00FC,People And Communities,Improved Health,Supporting People,Indirect Employee Expenses,Staff Training,EB122,17/02/2012,90349,"1,250.00 ",REVENUE,OXFORD BROOKES UNIVERSITY,109020
North East Lincolnshire Council,http://statistics.data.gov.uk/id/local-authority/00FC,People And Communities,Vulnerable Young People,Placement & Support,Other Agencies,Child Care Payments,PJ104,14/02/2012,63594,-20.71 ,REVENUE,Redacted Personal Information,Redacted Personal Information
North East Lincolnshire Council,http://statistics.data.gov.uk/id/local-authority/00FC,People And Communities,Vulnerable Young People,Safeguarding,Direct Transport Costs,Voluntary Drivers Expenses,JA107,15/02/2012,89284,535.05 ,REVENUE,Redacted Personal Information,Redacted Personal Information
North East Lincolnshire Council,http://statistics.data.gov.uk/id/local-authority/00FC,People And Communities,Vulnerable Young People,Through Care & Disability,Other Agencies,Housing Benefit,PJ134,13/02/2012,87882,Redacted Personal Information,REVENUE,Redacted Personal Information,Redacted Personal Information
North East Lincolnshire Council,http://statistics.data.gov.uk/id/local-authority/00FC,People And Communities,Vulnerable Young People,Through Care & Disability,Other Agencies,Housing Benefit,PJ134,13/02/2012,87887,Redacted Personal Information,REVENUE,Redacted Personal Information,Redacted Personal Information
North East Lincolnshire Council,http://statistics.data.gov.uk/id/local-authority/00FC,People And Communities,Childrens Hlth & Family Supp,Integrated Youth Services,Equip / Furniture / Materials,Cleaning - Equipment,LA103,29/02/2012,92632,-90.42 ,REVENUE,PETER HOGARTH & SONS LTD,100815
North East Lincolnshire Council,http://statistics.data.gov.uk/id/local-authority/00FC,People And Communities,Improved Health,Ot Stores,Equip / Furniture / Materials,Health & Safety Supplies,LA116,17/02/2012,90638,731.00 ,REVENUE,PICKERINGS EUROPE LIMITED,100897
North East Lincolnshire Council,http://statistics.data.gov.uk/id/local-authority/00FC,People And Communities,Childrens Hlth & Family Supp,Integrated Youth Services,Contributions To Provisions,Contributions - Other,LK103,17/02/2012,90711,"1,262.50 ",REVENUE,PLEASURE ISLAND,104923
North East Lincolnshire Council,http://statistics.data.gov.uk/id/local-authority/00FC,People And Communities,Childrens Hlth & Family Supp,Childrens Centre Development,Other Agencies,Child Care Payments,PJ104,17/02/2012,89665,590.00 ,REVENUE,PRE SCHOOL LEARNING ALLIANCE,101437
North East Lincolnshire Council,http://statistics.data.gov.uk/id/local-authority/00FC,People And Communities,Childrens Hlth & Family Supp,Childrens Centre Development,Other Agencies,Child Care Payments,PJ104,22/02/2012,91602,659.80 ,REVENUE,PRE SCHOOL LEARNING ALLIANCE,101437
North East Lincolnshire Council,http://statistics.data.gov.uk/id/local-authority/00FC,People And Communities,Childrens Hlth & Family Supp,Integ Local Service Delivery,Other Agencies,Nursery Educ Fund - Standard,PJ139,22/02/2012,91528,"3,690.00 ",REVENUE,PRECIOUS TIMES CHILDCARE SERVICES,101420
North East Lincolnshire Council,http://statistics.data.gov.uk/id/local-authority/00FC,People And Communities,Childrens Hlth & Family Supp,Integ Local Service Delivery,Other Agencies,Nursery Educ Fund - Standard,PJ139,22/02/2012,91530,"4,782.24 ",REVENUE,PRECIOUS TIMES CHILDCARE SERVICES,101420
North East Lincolnshire Council,http://statistics.data.gov.uk/id/local-authority/00FC,People And Communities,Vulnerable Young People,Sen/Inclusion,Contributions To Provisions,Contributions - Other,LK103,08/02/2012,87072,606.75 ,REVENUE,PRI LIBERATOR LTD,101858
North East Lincolnshire Council,http://statistics.data.gov.uk/id/local-authority/00FC,People And Communities,Childrens Hlth & Family Supp,Integrated Youth Services,Equip / Furniture / Materials,Equipment - Purchase,LA101,02/02/2012,85391,"4,400.00 ",REVENUE,PRO-ACTIVE TEAMWEAR LTD,101069
North East Lincolnshire Council,http://statistics.data.gov.uk/id/local-authority/00FC,People And Communities,Childrens Hlth & Family Supp,Integrated Youth Services,Equip / Furniture / Materials,Equipment - Purchase,LA101,02/02/2012,85390,"8,000.00 ",REVENUE,PRO-ACTIVE TEAMWEAR LTD,101069
North East Lincolnshire Council,http://statistics.data.gov.uk/id/local-authority/00FC,People And Communities,Vulnerable Young People,Placement & Support,Other Agencies,Setting Up,PJ111,06/02/2012,86294,"1,285.60 ",REVENUE,PROSPECT FARM COUNTRY COTTAGES,101297
North East Lincolnshire Council,http://statistics.data.gov.uk/id/local-authority/00FC,People And Communities,Childrens Hlth & Family Supp,Integrated Youth Services,Miscellaneous Expenses,Activities - Service Users,LL114,17/02/2012,90281,650.00 ,REVENUE,PULSE EDUCATION & BUSINESS SERVICES,104095
North East Lincolnshire Council,http://statistics.data.gov.uk/id/local-authority/00FC,People And Communities,Childrens Hlth & Family Supp,Childrens Centre Development,Energy Costs,Electricity,GB102,02/02/2012,85724,-279.96 ,REVENUE,PURCHASE POWER,101094
North East Lincolnshire Council,http://statistics.data.gov.uk/id/local-authority/00FC,People And Communities,Vulnerable Young People,Additional & Enhanced Needs,Private Contractors,Third Party Prov - Private,PH101,17/02/2012,90178,"11,185.59 ",REVENUE,QUALITY TIME CARE LTD,102519
North East Lincolnshire Council,http://statistics.data.gov.uk/id/local-authority/00FC,People And Communities,Vulnerable Young People,Additional & Enhanced Needs,Private Contractors,Third Party Prov - Private,PH101,17/02/2012,90184,"1,069.50 ",REVENUE,QUAYSIDE CARE,101108
North East Lincolnshire Council,http://statistics.data.gov.uk/id/local-authority/00FC,People And Communities,Improved Health,Ot Stores,Equip / Furniture / Materials,Health & Safety Supplies,LA116,22/02/2012,91783,780.50 ,REVENUE,QUEST 88 LIMITED,101257
North East Lincolnshire Council,http://statistics.data.gov.uk/id/local-authority/00FC,People And Communities,Improved Health,Ot Stores,Equip / Furniture / Materials,Health & Safety Supplies,LA116,22/02/2012,89576,"1,923.00 ",REVENUE,R82 UK LTD,101710
North East Lincolnshire Council,http://statistics.data.gov.uk/id/local-authority/00FC,People And Communities,Improved Health,Ot Stores,Equip / Furniture / Materials,Health & Safety Supplies,LA116,16/02/2012,89575,"1,998.00 ",REVENUE,R82 UK LTD,101710
North East Lincolnshire Council,http://statistics.data.gov.uk/id/local-authority/00FC,People And Communities,Vulnerable Young People,Additional & Enhanced Needs,Other Local Authorities,Third Pp - Other Local Auth,PC101,17/02/2012,90179,"4,560.00 ",REVENUE,RAINBOW,102123
North East Lincolnshire Council,http://statistics.data.gov.uk/id/local-authority/00FC,People And Communities,Vulnerable Young People,Additional & Enhanced Needs,Contributions To Provisions,Contributions - Other,LK103,17/02/2012,90180,555.50 ,REVENUE,RANDSTAD EDUCATION LTD,102465
North East Lincolnshire Council,http://statistics.data.gov.uk/id/local-authority/00FC,People And Communities,Vulnerable Young People,Sen/Inclusion,Direct Employee Expenses,Pay Teachers Supply Cover,EA106,01/02/2012,84929,590.85 ,REVENUE,RANDSTAD EDUCATION LTD,102465
North East Lincolnshire Council,http://statistics.data.gov.uk/id/local-authority/00FC,People And Communities,Vulnerable Young People,Sen/Inclusion,Direct Employee Expenses,Pay Teachers Supply Cover,EA106,06/02/2012,86271,900.00 ,REVENUE,RANDSTAD EDUCATION LTD,102465
North East Lincolnshire Council,http://statistics.data.gov.uk/id/local-authority/00FC,People And Communities,Childrens Hlth & Family Supp,Integ Local Service Delivery,Other Agencies,Nursery Educ Fund - Standard,PJ139,22/02/2012,91546,"2,863.44 ",REVENUE,READY TEDDY GO,100973
North East Lincolnshire Council,http://statistics.data.gov.uk/id/local-authority/00FC,People And Communities,Vulnerable Young People,Placement & Support,Private Contractors,Third Party Prov - Private,PH101,22/02/2012,91714,"2,871.00 ",REVENUE,REFLEXION CARE GROUP LIMITED,106975
North East Lincolnshire Council,http://statistics.data.gov.uk/id/local-authority/00FC,People And Communities,Vulnerable Young People,Additional & Enhanced Needs,Private Contractors,Third Party Prov - Private,PH101,08/02/2012,87115,"3,069.00 ",REVENUE,REFLEXION CARE GROUP LIMITED,106975
North East Lincolnshire Council,http://statistics.data.gov.uk/id/local-authority/00FC,People And Communities,Vulnerable Young People,Placement & Support,Private Contractors,Third Party Prov - Private,PH101,22/02/2012,91714,"10,663.70 ",REVENUE,REFLEXION CARE GROUP LIMITED,106975
North East Lincolnshire Council,http://statistics.data.gov.uk/id/local-authority/00FC,People And Communities,Vulnerable Young People,Additional & Enhanced Needs,Private Contractors,Third Party Prov - Private,PH101,08/02/2012,87115,"18,830.48 ",REVENUE,REFLEXION CARE GROUP LIMITED,106975
North East Lincolnshire Council,http://statistics.data.gov.uk/id/local-authority/00FC,People And Communities,Vulnerable Young People,Childrens Trust,Communications And Computing,Computer S/Ware - Licences,LF103,28/02/2012,92611,Redacted Commercially Sensitive,REVENUE,RESPOND GROUP LTD,102963
North East Lincolnshire Council,http://statistics.data.gov.uk/id/local-authority/00FC,People And Communities,Vulnerable Young People,School Access Governor Student,Contract Hire-Operating Leases,Vehicles - Contract Hire,JC101,13/02/2012,88434,Redacted Commercially Sensitive,REVENUE,REVELLS TAXIS (ED/SOC SERV),100559
North East Lincolnshire Council,http://statistics.data.gov.uk/id/local-authority/00FC,People And Communities,Vulnerable Young People,School Access Governor Student,Contract Hire-Operating Leases,Vehicles - Contract Hire,JC101,10/02/2012,88254,Redacted Commercially Sensitive,REVENUE,REVELLS TAXIS (ED/SOC SERV),100559
North East Lincolnshire Council,http://statistics.data.gov.uk/id/local-authority/00FC,People And Communities,Vulnerable Young People,School Access Governor Student,Contract Hire-Operating Leases,Vehicles - Contract Hire,JC101,22/02/2012,91741,Redacted Commercially Sensitive,REVENUE,REVELLS TAXIS (ED/SOC SERV),100559
North East Lincolnshire Council,http://statistics.data.gov.uk/id/local-authority/00FC,People And Communities,Vulnerable Young People,School Access Governor Student,Contract Hire-Operating Leases,Vehicles - Contract Hire,JC101,13/02/2012,88255,Redacted Commercially Sensitive,REVENUE,REVELLS TAXIS (ED/SOC SERV),100559
North East Lincolnshire Council,http://statistics.data.gov.uk/id/local-authority/00FC,People And Communities,Vulnerable Young People,School Access Governor Student,Contract Hire-Operating Leases,Vehicles - Contract Hire,JC101,01/02/2012,85087,Redacted Commercially Sensitive,REVENUE,REVELLS TAXIS (ED/SOC SERV),100559
North East Lincolnshire Council,http://statistics.data.gov.uk/id/local-authority/00FC,People And Communities,Vulnerable Young People,School Access Governor Student,Contract Hire-Operating Leases,Vehicles - Contract Hire,JC101,13/02/2012,88391,Redacted Commercially Sensitive,REVENUE,REVELLS TAXIS (ED/SOC SERV),100559
North East Lincolnshire Council,http://statistics.data.gov.uk/id/local-authority/00FC,People And Communities,Vulnerable Young People,School Access Governor Student,Contract Hire-Operating Leases,Vehicles - Contract Hire,JC101,14/02/2012,88799,Redacted Commercially Sensitive,REVENUE,REVELLS TAXIS (ED/SOC SERV),100559
North East Lincolnshire Council,http://statistics.data.gov.uk/id/local-authority/00FC,People And Communities,Vulnerable Young People,School Access Governor Student,Contract Hire-Operating Leases,Vehicles - Contract Hire,JC101,14/02/2012,88800,Redacted Commercially Sensitive,REVENUE,REVELLS TAXIS (ED/SOC SERV),100559
North East Lincolnshire Council,http://statistics.data.gov.uk/id/local-authority/00FC,People And Communities,Vulnerable Young People,School Access Governor Student,Contract Hire-Operating Leases,Vehicles - Contract Hire,JC101,10/02/2012,88246,Redacted Commercially Sensitive,REVENUE,REVELLS TAXIS (ED/SOC SERV),100559
North East Lincolnshire Council,http://statistics.data.gov.uk/id/local-authority/00FC,People And Communities,Vulnerable Young People,School Access Governor Student,Contract Hire-Operating Leases,Vehicles - Contract Hire,JC101,10/02/2012,88416,Redacted Commercially Sensitive,REVENUE,REVELLS TAXIS (ED/SOC SERV),100559
North East Lincolnshire Council,http://statistics.data.gov.uk/id/local-authority/00FC,People And Communities,Vulnerable Young People,School Access Governor Student,Contract Hire-Operating Leases,Vehicles - Contract Hire,JC101,13/02/2012,88713,Redacted Commercially Sensitive,REVENUE,REVELLS TAXIS (ED/SOC SERV),100559
North East Lincolnshire Council,http://statistics.data.gov.uk/id/local-authority/00FC,People And Communities,Vulnerable Young People,School Access Governor Student,Contract Hire-Operating Leases,Vehicles - Contract Hire,JC101,22/02/2012,91497,Redacted Commercially Sensitive,REVENUE,REVELLS TAXIS (ED/SOC SERV),100559
North East Lincolnshire Council,http://statistics.data.gov.uk/id/local-authority/00FC,People And Communities,Childrens Hlth & Family Supp,Integrated Youth Services,Indirect Employee Expenses,Staff Training,EB122,06/02/2012,86365,995.00 ,REVENUE,SAFE AND SOUND ENTERPRISES LTD,105207
North East Lincolnshire Council,http://statistics.data.gov.uk/id/local-authority/00FC,People And Communities,Vulnerable Young People,Placement & Support,Rep Alterations Maint Building,Buildings - Repairs And Maint,GA102,17/02/2012,90740,"1,698.00 ",REVENUE,SAFE CONTROL LTD,100989
North East Lincolnshire Council,http://statistics.data.gov.uk/id/local-authority/00FC,People And Communities,Improved Health,Supporting People,Other Agencies,Third Pp - Block Gross,PJ103,24/02/2012,92262,Redacted Commercially Sensitive,REVENUE,SALVATION ARMY,100309
North East Lincolnshire Council,http://statistics.data.gov.uk/id/local-authority/00FC,People And Communities,Improved Health,Supporting People,Other Agencies,Third Pp - Block Gross,PJ103,24/02/2012,92269,Redacted Commercially Sensitive,REVENUE,SANCTUARY HOUSING ASSOCIATION,103289
North East Lincolnshire Council,http://statistics.data.gov.uk/id/local-authority/00FC,People And Communities,Childrens Hlth & Family Supp,Integ Local Service Delivery,Other Agencies,Nursery Educ Fund - Standard,PJ139,22/02/2012,91548,590.40 ,REVENUE,Redacted Personal Information,Redacted Personal Information
North East Lincolnshire Council,http://statistics.data.gov.uk/id/local-authority/00FC,People And Communities,Childrens Hlth & Family Supp,Integ Local Service Delivery,Private Contractors,Third Party Prov - Private,PH101,09/02/2012,87269,Redacted Commercially Sensitive,REVENUE,SCOPE,102831
North East Lincolnshire Council,http://statistics.data.gov.uk/id/local-authority/00FC,People And Communities,Vulnerable Young People,Through Care & Disability,Private Contractors,Third Party Prov - Private,PH101,09/02/2012,87269,Redacted Commercially Sensitive,REVENUE,SCOPE,102831
North East Lincolnshire Council,http://statistics.data.gov.uk/id/local-authority/00FC,People And Communities,Vulnerable Young People,Through Care & Disability,Private Contractors,Third Party Prov - Private,PH101,13/02/2012,87907,Redacted Commercially Sensitive,REVENUE,SCOPE,102831
North East Lincolnshire Council,http://statistics.data.gov.uk/id/local-authority/00FC,People And Communities,Improved Health,Health Promotion,Rents,Rent,GC101,08/02/2012,87188,"4,100.00 ",REVENUE,SECOND AVENUE RESOURCE CENTRE LIMITED,100648
North East Lincolnshire Council,http://statistics.data.gov.uk/id/local-authority/00FC,People And Communities,Vulnerable Young People,Serco Contract,Private Contractors,Third Party Prov - Private,PH101,16/02/2012,89686,Redacted Commercially Sensitive,REVENUE,SERCO SHARED SERVICES CENTRE,101875
North East Lincolnshire Council,http://statistics.data.gov.uk/id/local-authority/00FC,People And Communities,Vulnerable Young People,Additional & Enhanced Needs,Other Local Authorities,Third Pp - Other Local Auth,PC101,17/02/2012,90182,"8,092.00 ",REVENUE,SHALOM YOUTH CENTRE,101473
North East Lincolnshire Council,http://statistics.data.gov.uk/id/local-authority/00FC,People And Communities,Vulnerable Young People,School Access Governor Student,Contract Hire-Operating Leases,Vehicles - Contract Hire,JC101,14/02/2012,88801,Redacted Commercially Sensitive,REVENUE,SHERWOOD TRAVEL,100868
North East Lincolnshire Council,http://statistics.data.gov.uk/id/local-authority/00FC,People And Communities,Vulnerable Young People,School Access Governor Student,Contract Hire-Operating Leases,Vehicles - Contract Hire,JC101,13/02/2012,88708,Redacted Commercially Sensitive,REVENUE,SHERWOOD TRAVEL,100868
North East Lincolnshire Council,http://statistics.data.gov.uk/id/local-authority/00FC,People And Communities,Vulnerable Young People,Placement & Support,Private Contractors,Third Party Prov - Private,PH101,16/02/2012,90105,"5,113.29 ",REVENUE,SHORELINE HOUSING PARTNERSHIP LTD,100139
North East Lincolnshire Council,http://statistics.data.gov.uk/id/local-authority/00FC,People And Communities,Childrens Hlth & Family Supp,Integrated Youth Services,Equip / Furniture / Materials,Equipment - Purchase,LA101,28/02/2012,92621,Redacted Commercially Sensitive,REVENUE,SLM COMMUNITY LEISURE LTD,101533
North East Lincolnshire Council,http://statistics.data.gov.uk/id/local-authority/00FC,People And Communities,Childrens Hlth & Family Supp,Childrens Centre Development,Equip / Furniture / Materials,Equipment - Purchase,LA101,28/02/2012,92621,Redacted Commercially Sensitive,REVENUE,SLM COMMUNITY LEISURE LTD,101533
North East Lincolnshire Council,http://statistics.data.gov.uk/id/local-authority/00FC,People And Communities,Childrens Hlth & Family Supp,Integ Local Service Delivery,Other Agencies,Nursery Educ Fund - Standard,PJ139,27/02/2012,92387,"5,668.26 ",REVENUE,ST CHRISTOPHERS PLAYGROUP,102148
North East Lincolnshire Council,http://statistics.data.gov.uk/id/local-authority/00FC,People And Communities,Childrens Hlth & Family Supp,Integ Local Service Delivery,Other Agencies,Nursery Educ Fund - Standard,PJ139,22/02/2012,91536,"4,428.00 ",REVENUE,ST MARGARETS PRE-SCHOOL,101724
North East Lincolnshire Council,http://statistics.data.gov.uk/id/local-authority/00FC,People And Communities,Childrens Hlth & Family Supp,Integ Local Service Delivery,Other Agencies,Nursery Educ Fund - Standard,PJ139,27/02/2012,92385,"4,329.60 ",REVENUE,ST MARTINS PREPARATORY SCHOOL,100889
North East Lincolnshire Council,http://statistics.data.gov.uk/id/local-authority/00FC,People And Communities,Childrens Hlth & Family Supp,Integ Local Service Delivery,Other Agencies,Nursery Educ Fund - Standard,PJ139,27/02/2012,92386,"22,199.04 ",REVENUE,ST MARTINS PREPARATORY SCHOOL,100889
North East Lincolnshire Council,http://statistics.data.gov.uk/id/local-authority/00FC,People And Communities,Childrens Hlth & Family Supp,Integ Local Service Delivery,Other Agencies,Nursery Educ Fund - Standard,PJ139,22/02/2012,91550,"2,567.43 ",REVENUE,ST PETERS CHILDREN CENTRE,101322
North East Lincolnshire Council,http://statistics.data.gov.uk/id/local-authority/00FC,People And Communities,Vulnerable Young People,School Access Governor Student,Private Contractors,Concessionary Fares,PH104,15/02/2012,89295,Redacted Commercially Sensitive,REVENUE,STAGECOACH SERVICES,101404
North East Lincolnshire Council,http://statistics.data.gov.uk/id/local-authority/00FC,People And Communities,Vulnerable Young People,School Access Governor Student,Contract Hire-Operating Leases,Vehicles - Contract Hire,JC101,22/02/2012,91738,Redacted Commercially Sensitive,REVENUE,STAGECOACH SERVICES,101404
North East Lincolnshire Council,http://statistics.data.gov.uk/id/local-authority/00FC,People And Communities,Vulnerable Young People,School Access Governor Student,Private Contractors,Concessionary Fares,PH104,15/02/2012,89295,Redacted Commercially Sensitive,REVENUE,STAGECOACH SERVICES,101404
North East Lincolnshire Council,http://statistics.data.gov.uk/id/local-authority/00FC,People And Communities,Vulnerable Young People,School Access Governor Student,Contract Hire-Operating Leases,Vehicles - Contract Hire,JC101,16/02/2012,90091,Redacted Commercially Sensitive,REVENUE,STAGECOACH SERVICES,101404
North East Lincolnshire Council,http://statistics.data.gov.uk/id/local-authority/00FC,People And Communities,Vulnerable Young People,Placement & Support,Other Agencies,Child Care Payments,PJ104,21/02/2012,64602,-24.00 ,REVENUE,Redacted Personal Information,Redacted Personal Information
North East Lincolnshire Council,http://statistics.data.gov.uk/id/local-authority/00FC,People And Communities,Improved Health,Supporting People,Grants And Subscriptions,Subscriptions,LJ101,16/02/2012,90186,544.00 ,REVENUE,STRA,109011
North East Lincolnshire Council,http://statistics.data.gov.uk/id/local-authority/00FC,People And Communities,Vulnerable Young People,Placement & Support,Other Agencies,Panel Expenses,PJ137,06/02/2012,86282,750.00 ,REVENUE,Redacted Personal Information,Redacted Personal Information
North East Lincolnshire Council,http://statistics.data.gov.uk/id/local-authority/00FC,People And Communities,Improved Health,Health Promotion,Print Stationery / Gen Off Exp,Publicity,LD105,08/02/2012,62116,"2,000.00 ",REVENUE,Redacted Personal Information,Redacted Personal Information
North East Lincolnshire Council,http://statistics.data.gov.uk/id/local-authority/00FC,People And Communities,Vulnerable Young People,Additional & Enhanced Needs,Consultancy,Consultancy,PL101,08/02/2012,87077,"1,882.48 ",REVENUE,Redacted Personal Information,Redacted Personal Information
North East Lincolnshire Council,http://statistics.data.gov.uk/id/local-authority/00FC,People And Communities,Childrens Hlth & Family Supp,Childrens Centre Development,Rep Alterations Maint Building,Buildings - Repairs And Maint,GA102,15/02/2012,89197,"1,206.00 ",REVENUE,SYLVESTER-KEAL LTD,100593
North East Lincolnshire Council,http://statistics.data.gov.uk/id/local-authority/00FC,People And Communities,Vulnerable Young People,Placement & Support,Other Agencies,Setting Up,PJ111,07/02/2012,62328,"1,160.00 ",REVENUE,Redacted Personal Information,Redacted Personal Information
North East Lincolnshire Council,http://statistics.data.gov.uk/id/local-authority/00FC,People And Communities,Vulnerable Young People,Sen/Inclusion,Direct Employee Expenses,Pay Teachers Supply Cover,EA106,28/02/2012,92934,"1,507.35 ",REVENUE,TEACHING PERSONNEL LTD,101305
North East Lincolnshire Council,http://statistics.data.gov.uk/id/local-authority/00FC,People And Communities,Vulnerable Young People,Sen/Inclusion,Direct Employee Expenses,Pay Teachers Supply Cover,EA106,06/02/2012,86275,"2,035.85 ",REVENUE,TEACHING PERSONNEL LTD,101305
North East Lincolnshire Council,http://statistics.data.gov.uk/id/local-authority/00FC,People And Communities,Vulnerable Young People,Sen/Inclusion,Direct Employee Expenses,Pay Teachers Supply Cover,EA106,10/02/2012,88266,"2,035.85 ",REVENUE,TEACHING PERSONNEL LTD,101305
North East Lincolnshire Council,http://statistics.data.gov.uk/id/local-authority/00FC,People And Communities,Childrens Hlth & Family Supp,Childrens Centre Development,Equip / Furniture / Materials,Non-Teaching Resources,LA118,17/02/2012,90680,-35.98 ,REVENUE,TECHNOLOGY TEACHING SYSTEMS LTD,100996
North East Lincolnshire Council,http://statistics.data.gov.uk/id/local-authority/00FC,People And Communities,Childrens Hlth & Family Supp,Childrens Centre Development,Equip / Furniture / Materials,Non-Teaching Resources,LA118,03/02/2012,85666,"1,419.22 ",REVENUE,TECHNOLOGY TEACHING SYSTEMS LTD,100996
North East Lincolnshire Council,http://statistics.data.gov.uk/id/local-authority/00FC,People And Communities,Vulnerable Young People,Safeguarding,Direct Transport Costs,Voluntary Drivers Expenses,JA107,15/02/2012,89265,"1,022.07 ",REVENUE,Redacted Personal Information,Redacted Personal Information
North East Lincolnshire Council,http://statistics.data.gov.uk/id/local-authority/00FC,People And Communities,Childrens Hlth & Family Supp,Integ Local Service Delivery,Other Agencies,Nursery Educ Fund - Standard,PJ139,22/02/2012,91520,"1,643.28 ",REVENUE,THE AVENUE PLAYGROUP,103168
North East Lincolnshire Council,http://statistics.data.gov.uk/id/local-authority/00FC,People And Communities,Childrens Hlth & Family Supp,Integrated Youth Services,Miscellaneous Expenses,Licences,LL116,29/02/2012,92898,970.00 ,REVENUE,THE AWARD SCHEME LTD,109180
North East Lincolnshire Council,http://statistics.data.gov.uk/id/local-authority/00FC,People And Communities,Vulnerable Young People,School Access Governor Student,Contract Hire-Operating Leases,Vehicles - Contract Hire,JC101,08/02/2012,87101,Redacted Commercially Sensitive,REVENUE,THE BUS RUN,101522
North East Lincolnshire Council,http://statistics.data.gov.uk/id/local-authority/00FC,People And Communities,Childrens Hlth & Family Supp,Integ Local Service Delivery,Other Agencies,Nursery Educ Fund - Standard,PJ139,22/02/2012,91524,"3,375.12 ",REVENUE,THE CHILDRENS HOUSE,101141
North East Lincolnshire Council,http://statistics.data.gov.uk/id/local-authority/00FC,People And Communities,Improved Health,Health Promotion,Print Stationery / Gen Off Exp,Printing And Stationery,LD103,08/02/2012,87212,"2,617.40 ",REVENUE,THE COLORFUL COMPANY,105476
North East Lincolnshire Council,http://statistics.data.gov.uk/id/local-authority/00FC,People And Communities,Childrens Hlth & Family Supp,Childrens Centre Development,Rep Alterations Maint Building,Buildings - Repairs And Maint,GA102,22/02/2012,91684,764.00 ,REVENUE,THE DERITEND GROUP LIMITED,105378
North East Lincolnshire Council,http://statistics.data.gov.uk/id/local-authority/00FC,People And Communities,Improved Health,Health Promotion,Contributions To Provisions,Contributions - Other,LK103,01/02/2012,85006,616.50 ,REVENUE,THE DRINKAWARE TRUST,108702
North East Lincolnshire Council,http://statistics.data.gov.uk/id/local-authority/00FC,People And Communities,Childrens Hlth & Family Supp,Integ Local Service Delivery,Indirect Employee Expenses,Staff Training,EB122,08/02/2012,87211,"1,160.00 ",REVENUE,THE GRIMSBY INSTITUTE OF FURTHER,102742
North East Lincolnshire Council,http://statistics.data.gov.uk/id/local-authority/00FC,People And Communities,Childrens Hlth & Family Supp,Integ Local Service Delivery,Indirect Employee Expenses,Staff Training,EB122,08/02/2012,87210,"1,180.00 ",REVENUE,THE GRIMSBY INSTITUTE OF FURTHER,102742
North East Lincolnshire Council,http://statistics.data.gov.uk/id/local-authority/00FC,People And Communities,Improved Health,Ot Stores,Equip / Furniture / Materials,Health & Safety Supplies,LA116,08/02/2012,86927,834.00 ,REVENUE,THE HELPING HAND COMPANY (LEDBURY) LTD,101134
North East Lincolnshire Council,http://statistics.data.gov.uk/id/local-authority/00FC,People And Communities,Vulnerable Young People,Safeguarding,Miscellaneous Expenses,Legal Fees - General,LL103,22/02/2012,91489,"1,137.42 ",REVENUE,THE LUCY FAITHFULL FOUNDATION,107396
North East Lincolnshire Council,http://statistics.data.gov.uk/id/local-authority/00FC,People And Communities,Vulnerable Young People,Safeguarding,Miscellaneous Expenses,Legal Fees - General,LL103,22/02/2012,91484,"1,481.13 ",REVENUE,THE LUCY FAITHFULL FOUNDATION,107396
North East Lincolnshire Council,http://statistics.data.gov.uk/id/local-authority/00FC,People And Communities,Vulnerable Young People,Youth Offending Team,Indirect Employee Expenses,Staff Training,EB122,21/02/2012,90785,535.00 ,REVENUE,THE OPEN UNIVERSITY,109055
North East Lincolnshire Council,http://statistics.data.gov.uk/id/local-authority/00FC,People And Communities,Improved Health,Health Promotion,Catering,Catering Costs,LB102,08/02/2012,87204,712.50 ,REVENUE,TINA WALLER,108282
North East Lincolnshire Council,http://statistics.data.gov.uk/id/local-authority/00FC,People And Communities,Childrens Hlth & Family Supp,Integrated Youth Services,Recharges,Insurance,TB106,16/02/2012,90272,661.00 ,REVENUE,TOWERGATE PROFESSIONAL RISKS,109012
North East Lincolnshire Council,http://statistics.data.gov.uk/id/local-authority/00FC,People And Communities,Vulnerable Young People,Placement & Support,Private Contractors,Third Party Prov - Private,PH101,22/02/2012,91716,"3,715.04 ",REVENUE,TREE HOUSE CARE FOSTERING SOLUTIONS LTD,101150
North East Lincolnshire Council,http://statistics.data.gov.uk/id/local-authority/00FC,People And Communities,Vulnerable Young People,Child Care Performance & Ict,Contract Hire-Operating Leases,Vehicles - Contract Hire,JC101,08/02/2012,87228,Redacted Commercially Sensitive,REVENUE,Redacted Personal Information,Redacted Personal Information
North East Lincolnshire Council,http://statistics.data.gov.uk/id/local-authority/00FC,People And Communities,Vulnerable Young People,Youth Offending Team,Miscellaneous Expenses,Other Supplies & Services,LL110,21/02/2012,91075,"2,074.53 ",REVENUE,ULTIMATE ANGLING LTD,109068
North East Lincolnshire Council,http://statistics.data.gov.uk/id/local-authority/00FC,People And Communities,Childrens Hlth & Family Supp,Childrens Centre Development,Print Stationery / Gen Off Exp,Photocopier - Running Costs,LD102,21/02/2012,91038,543.23 ,REVENUE,UNITED CARLTON OFFICE SYSTEMS LTD,101652
North East Lincolnshire Council,http://statistics.data.gov.uk/id/local-authority/00FC,People And Communities,Vulnerable Young People,Child Care Performance & Ict,Print Stationery / Gen Off Exp,Photocopier - Running Costs,LD102,14/02/2012,89332,522.83 ,REVENUE,UNITED CARLTON OFFICE SYSTEMS LTD,101652
North East Lincolnshire Council,http://statistics.data.gov.uk/id/local-authority/00FC,People And Communities,Vulnerable Young People,Youth Offending Team,Print Stationery / Gen Off Exp,Photocopier - Running Costs,LD102,01/02/2012,84432,564.29 ,REVENUE,UNITED CARLTON OFFICE SYSTEMS LTD,101652
North East Lincolnshire Council,http://statistics.data.gov.uk/id/local-authority/00FC,People And Communities,Vulnerable Young People,Child Care Performance & Ict,Print Stationery / Gen Off Exp,Printing And Stationery,LD103,14/02/2012,89334,580.36 ,REVENUE,UNITED CARLTON OFFICE SYSTEMS LTD,101652
North East Lincolnshire Council,http://statistics.data.gov.uk/id/local-authority/00FC,People And Communities,Vulnerable Young People,Children'S Workforce Developme,Print Stationery / Gen Off Exp,Photocopier - Running Costs,LD102,14/02/2012,89337,752.68 ,REVENUE,UNITED CARLTON OFFICE SYSTEMS LTD,101652
North East Lincolnshire Council,http://statistics.data.gov.uk/id/local-authority/00FC,People And Communities,Vulnerable Young People,Placement & Support,Indirect Employee Expenses,Staff Training,EB122,29/02/2012,93065,"1,170.00 ",REVENUE,UNIVERSITY OF LINCOLN,101299
North East Lincolnshire Council,http://statistics.data.gov.uk/id/local-authority/00FC,People And Communities,Vulnerable Young People,Children'S Workforce Developme,Indirect Employee Expenses,Staff Training,EB122,17/02/2012,90750,"1,220.00 ",REVENUE,UNIVERSITY OF LINCOLN,101299
North East Lincolnshire Council,http://statistics.data.gov.uk/id/local-authority/00FC,People And Communities,Vulnerable Young People,Children'S Workforce Developme,Indirect Employee Expenses,Staff Training,EB122,29/02/2012,93010,"9,340.00 ",REVENUE,UNIVERSITY OF LINCOLN,101299
North East Lincolnshire Council,http://statistics.data.gov.uk/id/local-authority/00FC,People And Communities,Improved Health,Supporting People,Miscellaneous Expenses,Other Expenses General,LL119,16/02/2012,90185,"2,000.00 ",REVENUE,UNIVERSITY OF ST ANDREWS,109010
North East Lincolnshire Council,http://statistics.data.gov.uk/id/local-authority/00FC,People And Communities,Childrens Hlth & Family Supp,Childrens Centre Development,Equip / Furniture / Materials,Newspapers/Periodicals,LA122,13/02/2012,88735,902.58 ,REVENUE,USBORNE BOOKS AT HOME,101669
North East Lincolnshire Council,http://statistics.data.gov.uk/id/local-authority/00FC,People And Communities,Improved Health,Health Promotion,Private Contractors,Third Party Prov - Private,PH101,21/02/2012,90718,540.00 ,REVENUE,VICTORIA GRAINGER,103004
North East Lincolnshire Council,http://statistics.data.gov.uk/id/local-authority/00FC,People And Communities,Vulnerable Young People,Sen/Inclusion,Indirect Employee Expenses,Staff Training,EB122,22/02/2012,91509,744.00 ,REVENUE,VIGLEN LIMITED,100883
North East Lincolnshire Council,http://statistics.data.gov.uk/id/local-authority/00FC,People And Communities,Childrens Hlth & Family Supp,Integrated Youth Services,Indirect Employee Expenses,Staff Training,EB122,13/02/2012,88671,"1,027.00 ",REVENUE,VINCE BARRETT,102414
North East Lincolnshire Council,http://statistics.data.gov.uk/id/local-authority/00FC,People And Communities,Childrens Hlth & Family Supp,Integrated Youth Services,Indirect Employee Expenses,Staff Training,EB122,06/02/2012,86380,"1,000.00 ",REVENUE,VOLUNTARY ACTION NORTH EAST LINCOLNSHIRE,103631
North East Lincolnshire Council,http://statistics.data.gov.uk/id/local-authority/00FC,People And Communities,Improved Health,Improved Health Operational,Health Authorities,Third Pp - Health Auth,PD101,10/02/2012,88315,"19,350.00 ",REVENUE,VOLUNTARY ACTION NORTH EAST LINCOLNSHIRE,103631
North East Lincolnshire Council,http://statistics.data.gov.uk/id/local-authority/00FC,People And Communities,Childrens Hlth & Family Supp,Integ Local Service Delivery,Other Agencies,Nursery Educ Fund - Standard,PJ139,22/02/2012,91522,"11,886.72 ",REVENUE,WALTHAM LEAS PRE-SCHOOL,108236
North East Lincolnshire Council,http://statistics.data.gov.uk/id/local-authority/00FC,People And Communities,Childrens Hlth & Family Supp,Childrens Centre Development,Energy Costs,Heating Fuel,GB103,28/02/2012,92545,"1,184.69 ",REVENUE,WATSON PETROLEUM LTD,101348
North East Lincolnshire Council,http://statistics.data.gov.uk/id/local-authority/00FC,People And Communities,Childrens Hlth & Family Supp,Childrens Health Provision,Rents,Service Charge,GC102,09/02/2012,87551,"2,216.44 ",REVENUE,WEELSBY VIEW HEALTH CENTRE,101761
North East Lincolnshire Council,http://statistics.data.gov.uk/id/local-authority/00FC,People And Communities,Childrens Hlth & Family Supp,Integ Local Service Delivery,Other Agencies,Nursery Educ Fund - Standard,PJ139,22/02/2012,91545,"9,430.20 ",REVENUE,WELHOLME PRE SCHOOL,101258
North East Lincolnshire Council,http://statistics.data.gov.uk/id/local-authority/00FC,People And Communities,Childrens Hlth & Family Supp,Integ Local Service Delivery,Other Agencies,Nursery Educ Fund - Standard,PJ139,22/02/2012,91547,"2,883.12 ",REVENUE,WENDOVER PRE-SCHOOL,101350
North East Lincolnshire Council,http://statistics.data.gov.uk/id/local-authority/00FC,People And Communities,Childrens Hlth & Family Supp,Integrated Youth Services,Miscellaneous Expenses,Activities - Service Users,LL114,02/02/2012,85383,"10,000.00 ",REVENUE,WEST MARSH COMMUNITY CENTRE,101392
North East Lincolnshire Council,http://statistics.data.gov.uk/id/local-authority/00FC,People And Communities,Childrens Hlth & Family Supp,Integrated Youth Services,Clothes Uniforms And Laundry,Protective Clothing,LC101,16/02/2012,90262,523.30 ,REVENUE,WESTBURY INDUSTRIAL SUPPLIES LTD,102378
North East Lincolnshire Council,http://statistics.data.gov.uk/id/local-authority/00FC,People And Communities,Vulnerable Young People,School Access Governor Student,Contract Hire-Operating Leases,Vehicles - Contract Hire,JC101,08/02/2012,87208,Redacted Commercially Sensitive,REVENUE,WHEELCHAIR FRIENDLY TAXI SERVICE,101915
North East Lincolnshire Council,http://statistics.data.gov.uk/id/local-authority/00FC,People And Communities,Vulnerable Young People,School Access Governor Student,Contract Hire-Operating Leases,Vehicles - Contract Hire,JC101,08/02/2012,87226,Redacted Commercially Sensitive,REVENUE,WHEELCHAIR FRIENDLY TAXI SERVICE,101915
North East Lincolnshire Council,http://statistics.data.gov.uk/id/local-authority/00FC,People And Communities,Vulnerable Young People,School Access Governor Student,Contract Hire-Operating Leases,Vehicles - Contract Hire,JC101,08/02/2012,87223,Redacted Commercially Sensitive,REVENUE,WHEELCHAIR FRIENDLY TAXI SERVICE,101915
North East Lincolnshire Council,http://statistics.data.gov.uk/id/local-authority/00FC,People And Communities,Vulnerable Young People,School Access Governor Student,Contract Hire-Operating Leases,Vehicles - Contract Hire,JC101,08/02/2012,87222,Redacted Commercially Sensitive,REVENUE,WHEELCHAIR FRIENDLY TAXI SERVICE,101915
North East Lincolnshire Council,http://statistics.data.gov.uk/id/local-authority/00FC,People And Communities,Vulnerable Young People,School Access Governor Student,Miscellaneous Expenses,Legal Fees - General,LL103,22/02/2012,91510,Redacted Commercially Sensitive,REVENUE,WILKIN CHAPMAN SOLICITORS,100948
North East Lincolnshire Council,http://statistics.data.gov.uk/id/local-authority/00FC,People And Communities,Childrens Hlth & Family Supp,Integ Local Service Delivery,Other Agencies,Nursery Educ Fund - Standard,PJ139,22/02/2012,91565,"4,715.10 ",REVENUE,WIZ KIDZ,102424
North East Lincolnshire Council,http://statistics.data.gov.uk/id/local-authority/00FC,People And Communities,Improved Health,Supporting People,Other Agencies,Third Pp - Block Gross,PJ103,24/02/2012,92266,Redacted Commercially Sensitive,REVENUE,WOMENS AID,100326
North East Lincolnshire Council,http://statistics.data.gov.uk/id/local-authority/00FC,People And Communities,Vulnerable Young People,Youth Offending Team,Miscellaneous Expenses,Other Supplies & Services,LL110,29/02/2012,93260,Redacted Commercially Sensitive,REVENUE,WOMENS AID,100326
North East Lincolnshire Council,http://statistics.data.gov.uk/id/local-authority/00FC,People And Communities,Vulnerable Young People,Youth Offending Team,Miscellaneous Expenses,Other Supplies & Services,LL110,29/02/2012,93259,Redacted Commercially Sensitive,REVENUE,WOMENS AID,100326
North East Lincolnshire Council,http://statistics.data.gov.uk/id/local-authority/00FC,People And Communities,Improved Health,Supporting People,Other Agencies,Third Pp - Block Gross,PJ103,24/02/2012,92267,Redacted Commercially Sensitive,REVENUE,YORK HOUSING ASSOCIATION LTD,100341
North East Lincolnshire Council,http://statistics.data.gov.uk/id/local-authority/00FC,People And Communities,Childrens Hlth & Family Supp,Childrens Centre Development,Equip / Furniture / Materials,Non-Teaching Resources,LA118,15/02/2012,89071,970.05 ,REVENUE,YORKSHIRE PURCHASING,100573
North East Lincolnshire Council,http://statistics.data.gov.uk/id/local-authority/00FC,Resources,29 Heneage Road,29 Heneage Road,Cap Auc-Build Enh Wrk,Cap Auc-Build Enh Wrk,YF102,16/02/2012,90102,650.00 ,CAPITAL,A1 AERIALS,109004
North East Lincolnshire Council,http://statistics.data.gov.uk/id/local-authority/00FC,Resources,Governance & Business Support,Legal Services,Direct Employee Expenses,Agency Staff,EA105,01/02/2012,85077,"6,586.00 ",REVENUE,AD LITEM LEGAL SERVICES,104447
North East Lincolnshire Council,http://statistics.data.gov.uk/id/local-authority/00FC,Resources,Governance & Business Support,Legal Services,Direct Employee Expenses,Agency Staff,EA105,28/02/2012,92528,"6,586.00 ",REVENUE,AD LITEM LEGAL SERVICES,104447
North East Lincolnshire Council,http://statistics.data.gov.uk/id/local-authority/00FC,Resources,Commission & Information Sys,Information Technology,Communications And Computing,Computer H/Ware - Purchases,LF105,27/02/2012,92402,"21,250.00 ",REVENUE,ADAM CONTINUITY LTD,109145
North East Lincolnshire Council,http://statistics.data.gov.uk/id/local-authority/00FC,Resources,Schools - Capital Allocation,Schools - Capital Allocation,Cap Land/Build-Build Enh Wrk,Cap Land/Build-Build Enh Wrk,YA102,29/02/2012,93035,"2,499.60 ",CAPITAL,AIRCON-REFRIGERATION LIMITED,106586
North East Lincolnshire Council,http://statistics.data.gov.uk/id/local-authority/00FC,Resources,Schools - Capital Allocation,Schools - Capital Allocation,Cap Land/Build-Build Enh Wrk,Cap Land/Build-Build Enh Wrk,YA102,29/02/2012,93023,"4,000.34 ",CAPITAL,AIRCON-REFRIGERATION LIMITED,106586
North East Lincolnshire Council,http://statistics.data.gov.uk/id/local-authority/00FC,Resources,Commission & Information Sys,Information Technology,Communications And Computing,Computer S/Ware - Purchases,LF101,14/02/2012,89159,"1,188.00 ",REVENUE,ALIGNED ASSETS LTD,101581
North East Lincolnshire Council,http://statistics.data.gov.uk/id/local-authority/00FC,Resources,Finance & Assets,Facilities Management,Water Services,Water,GE101,06/02/2012,86358,520.06 ,REVENUE,ANGLIAN WATER,100508
North East Lincolnshire Council,http://statistics.data.gov.uk/id/local-authority/00FC,Resources,Finance & Assets,Facilities Management,Water Services,Water,GE101,06/02/2012,86387,570.89 ,REVENUE,ANGLIAN WATER,100508
North East Lincolnshire Council,http://statistics.data.gov.uk/id/local-authority/00FC,Resources,Finance & Assets,Facilities Management,Water Services,Water,GE101,06/02/2012,86362,640.02 ,REVENUE,ANGLIAN WATER,100508
North East Lincolnshire Council,http://statistics.data.gov.uk/id/local-authority/00FC,Resources,Finance & Assets,Facilities Management,Water Services,Water,GE101,06/02/2012,86350,673.12 ,REVENUE,ANGLIAN WATER,100508
North East Lincolnshire Council,http://statistics.data.gov.uk/id/local-authority/00FC,Resources,Finance & Assets,Facilities Management,Water Services,Water,GE101,16/02/2012,90093,696.17 ,REVENUE,ANGLIAN WATER,100508
North East Lincolnshire Council,http://statistics.data.gov.uk/id/local-authority/00FC,Resources,Finance & Assets,Facilities Management,Water Services,Water,GE101,16/02/2012,90094,788.13 ,REVENUE,ANGLIAN WATER,100508
North East Lincolnshire Council,http://statistics.data.gov.uk/id/local-authority/00FC,Resources,Finance & Assets,Facilities Management,Water Services,Water,GE101,06/02/2012,86356,"1,012.43 ",REVENUE,ANGLIAN WATER,100508
North East Lincolnshire Council,http://statistics.data.gov.uk/id/local-authority/00FC,Resources,Finance & Assets,Facilities Management,Water Services,Water,GE101,06/02/2012,86340,"1,092.80 ",REVENUE,ANGLIAN WATER,100508
North East Lincolnshire Council,http://statistics.data.gov.uk/id/local-authority/00FC,Resources,Finance & Assets,Valuation & Consultancy,Energy Costs,Gas,GB101,29/02/2012,92887,"1,169.29 ",REVENUE,ANGLIAN WATER,100508
North East Lincolnshire Council,http://statistics.data.gov.uk/id/local-authority/00FC,Resources,Finance & Assets,Facilities Management,Water Services,Water,GE101,06/02/2012,86342,"1,202.87 ",REVENUE,ANGLIAN WATER,100508
North East Lincolnshire Council,http://statistics.data.gov.uk/id/local-authority/00FC,Resources,Finance & Assets,Facilities Management,Water Services,Water,GE101,16/02/2012,90092,"1,217.68 ",REVENUE,ANGLIAN WATER,100508
North East Lincolnshire Council,http://statistics.data.gov.uk/id/local-authority/00FC,Resources,Finance & Assets,Facilities Management,Water Services,Water,GE101,06/02/2012,86361,"1,257.71 ",REVENUE,ANGLIAN WATER,100508
North East Lincolnshire Council,http://statistics.data.gov.uk/id/local-authority/00FC,Resources,Finance & Assets,Facilities Management,Water Services,Water,GE101,01/02/2012,85095,"1,305.58 ",REVENUE,ANGLIAN WATER,100508
North East Lincolnshire Council,http://statistics.data.gov.uk/id/local-authority/00FC,Resources,Finance & Assets,Facilities Management,Water Services,Water,GE101,28/02/2012,92656,"1,416.18 ",REVENUE,ANGLIAN WATER,100508
North East Lincolnshire Council,http://statistics.data.gov.uk/id/local-authority/00FC,Resources,Finance & Assets,Facilities Management,Water Services,Water,GE101,22/02/2012,91681,"1,419.14 ",REVENUE,ANGLIAN WATER,100508
North East Lincolnshire Council,http://statistics.data.gov.uk/id/local-authority/00FC,Resources,Finance & Assets,Valuation & Consultancy,Water Services,Water,GE101,06/02/2012,86351,"1,630.48 ",REVENUE,ANGLIAN WATER,100508
North East Lincolnshire Council,http://statistics.data.gov.uk/id/local-authority/00FC,Resources,Finance & Assets,Facilities Management,Water Services,Water,GE101,22/02/2012,91285,"2,081.21 ",REVENUE,ANGLIAN WATER,100508
North East Lincolnshire Council,http://statistics.data.gov.uk/id/local-authority/00FC,Resources,Finance & Assets,Facilities Management,Water Services,Water,GE101,01/02/2012,85046,"2,547.58 ",REVENUE,ANGLIAN WATER,100508
North East Lincolnshire Council,http://statistics.data.gov.uk/id/local-authority/00FC,Resources,Finance & Assets,Facilities Management,Water Services,Water,GE101,22/02/2012,91501,"3,394.63 ",REVENUE,ANGLIAN WATER,100508
North East Lincolnshire Council,http://statistics.data.gov.uk/id/local-authority/00FC,Resources,Finance & Assets,Facilities Management,Water Services,Water,GE101,28/02/2012,92595,"4,453.32 ",REVENUE,ANGLIAN WATER,100508
North East Lincolnshire Council,http://statistics.data.gov.uk/id/local-authority/00FC,Resources,Finance & Assets,Facilities Management,Water Services,Water,GE101,01/02/2012,85035,"5,441.18 ",REVENUE,ANGLIAN WATER,100508
North East Lincolnshire Council,http://statistics.data.gov.uk/id/local-authority/00FC,Resources,Finance & Assets,Valuation & Consultancy,Water Services,Water,GE101,01/02/2012,85032,"8,428.66 ",REVENUE,ANGLIAN WATER,100508
North East Lincolnshire Council,http://statistics.data.gov.uk/id/local-authority/00FC,Resources,Commission & Information Sys,Information Technology,Private Contractors,Third Party Prov - Private,PH101,27/02/2012,92369,"1,505.00 ",REVENUE,AR PRINTING LTD,100596
North East Lincolnshire Council,http://statistics.data.gov.uk/id/local-authority/00FC,Resources,Commission & Information Sys,Information Technology,Private Contractors,Third Party Prov - Private,PH101,10/02/2012,87912,"1,730.00 ",REVENUE,AR PRINTING LTD,100596
North East Lincolnshire Council,http://statistics.data.gov.uk/id/local-authority/00FC,Resources,Devolved Formula Cap Grant,Devolved Formula Cap Grant,Cap Land/Build-Build Enh Wrk,Cap Land/Build-Build Enh Wrk,YA102,29/02/2012,93244,586.00 ,CAPITAL,ARK JOINERY AND BUILDING MAINTENANCE LTD,101126
North East Lincolnshire Council,http://statistics.data.gov.uk/id/local-authority/00FC,Resources,Devolved Formula Cap Grant,Devolved Formula Cap Grant,Cap Land/Build-Build Enh Wrk,Cap Land/Build-Build Enh Wrk,YA102,02/02/2012,85071,"5,689.00 ",CAPITAL,ARK JOINERY AND BUILDING MAINTENANCE LTD,101126
North East Lincolnshire Council,http://statistics.data.gov.uk/id/local-authority/00FC,Resources,Governance & Business Support,Policy & Partnerships,Consultancy,Consultancy,PL101,23/02/2012,92059,"3,225.00 ",REVENUE,ASSET BASED CONSULTING,104789
North East Lincolnshire Council,http://statistics.data.gov.uk/id/local-authority/00FC,Resources,Finance & Assets,Facilities Management,Energy Costs,Electricity,GB102,22/02/2012,91507,"1,081.92 ",REVENUE,ASSOCIATED BRITISH PORTS,100834
North East Lincolnshire Council,http://statistics.data.gov.uk/id/local-authority/00FC,Resources,Commission & Information Sys,Information Technology,Equip / Furniture / Materials,Equipment - Maintenance,LA104,29/02/2012,93294,"1,075.00 ",REVENUE,ASSURED FIRE & SECURITY,102014
North East Lincolnshire Council,http://statistics.data.gov.uk/id/local-authority/00FC,Resources,Commission & Information Sys,Information Technology,Communications And Computing,Computer S/Ware - Purchases,LF101,13/02/2012,88656,"11,395.00 ",REVENUE,ASTUN TECHNOLOGY LTD,104929
North East Lincolnshire Council,http://statistics.data.gov.uk/id/local-authority/00FC,Resources,Commission & Information Sys,Information Technology,Direct Employee Expenses,Agency Staff,EA105,15/02/2012,89325,695.04 ,REVENUE,BADENOCH & CLARK,101427
North East Lincolnshire Council,http://statistics.data.gov.uk/id/local-authority/00FC,Resources,Commission & Information Sys,Information Technology,Direct Employee Expenses,Agency Staff,EA105,23/02/2012,92140,868.80 ,REVENUE,BADENOCH & CLARK,101427
North East Lincolnshire Council,http://statistics.data.gov.uk/id/local-authority/00FC,Resources,Commission & Information Sys,Information Technology,Direct Employee Expenses,Agency Staff,EA105,27/02/2012,92278,868.80 ,REVENUE,BADENOCH & CLARK,101427
North East Lincolnshire Council,http://statistics.data.gov.uk/id/local-authority/00FC,Resources,Commission & Information Sys,Information Technology,Direct Employee Expenses,Agency Staff,EA105,29/02/2012,92997,890.52 ,REVENUE,BADENOCH & CLARK,101427
North East Lincolnshire Council,http://statistics.data.gov.uk/id/local-authority/00FC,Resources,Commission & Information Sys,Information Technology,Direct Employee Expenses,Agency Staff,EA105,01/02/2012,84880,923.10 ,REVENUE,BADENOCH & CLARK,101427
North East Lincolnshire Council,http://statistics.data.gov.uk/id/local-authority/00FC,Resources,Commission & Information Sys,Information Technology,Direct Employee Expenses,Agency Staff,EA105,08/02/2012,87139,966.54 ,REVENUE,BADENOCH & CLARK,101427
North East Lincolnshire Council,http://statistics.data.gov.uk/id/local-authority/00FC,Resources,Commission & Information Sys,Information Technology,Direct Employee Expenses,Agency Staff,EA105,14/02/2012,89324,"1,056.48 ",REVENUE,BADENOCH & CLARK,101427
North East Lincolnshire Council,http://statistics.data.gov.uk/id/local-authority/00FC,Resources,Commission & Information Sys,Information Technology,Direct Employee Expenses,Agency Staff,EA105,14/02/2012,89339,"1,086.24 ",REVENUE,BADENOCH & CLARK,101427
North East Lincolnshire Council,http://statistics.data.gov.uk/id/local-authority/00FC,Resources,Commission & Information Sys,Information Technology,Direct Employee Expenses,Agency Staff,EA105,23/02/2012,92141,"1,130.88 ",REVENUE,BADENOCH & CLARK,101427
North East Lincolnshire Council,http://statistics.data.gov.uk/id/local-authority/00FC,Resources,Commission & Information Sys,Information Technology,Direct Employee Expenses,Agency Staff,EA105,27/02/2012,92277,"1,160.64 ",REVENUE,BADENOCH & CLARK,101427
North East Lincolnshire Council,http://statistics.data.gov.uk/id/local-authority/00FC,Resources,Commission & Information Sys,Information Technology,Direct Employee Expenses,Agency Staff,EA105,29/02/2012,92798,"4,272.32 ",REVENUE,BADENOCH & CLARK,101427
North East Lincolnshire Council,http://statistics.data.gov.uk/id/local-authority/00FC,Resources,Commission & Information Sys,Information Technology,Direct Employee Expenses,Agency Staff,EA105,29/02/2012,92799,"4,272.32 ",REVENUE,BADENOCH & CLARK,101427
North East Lincolnshire Council,http://statistics.data.gov.uk/id/local-authority/00FC,Resources,Finance & Assets,Accountancy,Direct Employee Expenses,Agency Staff,EA105,08/02/2012,81158,640.00 ,REVENUE,BADENOCH & CLARK,101427
North East Lincolnshire Council,http://statistics.data.gov.uk/id/local-authority/00FC,Resources,Finance & Assets,Accountancy,Direct Employee Expenses,Agency Staff,EA105,15/02/2012,85179,667.84 ,REVENUE,BADENOCH & CLARK,101427
North East Lincolnshire Council,http://statistics.data.gov.uk/id/local-authority/00FC,Resources,Finance & Assets,Accountancy,Direct Employee Expenses,Agency Staff,EA105,15/02/2012,81698,693.93 ,REVENUE,BADENOCH & CLARK,101427
North East Lincolnshire Council,http://statistics.data.gov.uk/id/local-authority/00FC,Resources,Finance & Assets,Accountancy,Direct Employee Expenses,Agency Staff,EA105,15/02/2012,84329,834.80 ,REVENUE,BADENOCH & CLARK,101427
North East Lincolnshire Council,http://statistics.data.gov.uk/id/local-authority/00FC,Resources,Finance & Assets,Income & Payments Service,Direct Employee Expenses,Pay,EA101,21/02/2012,91214,925.00 ,REVENUE,BADENOCH & CLARK,101427
North East Lincolnshire Council,http://statistics.data.gov.uk/id/local-authority/00FC,Resources,Finance & Assets,Accountancy,Direct Employee Expenses,Agency Staff,EA105,08/02/2012,81159,"1,112.00 ",REVENUE,BADENOCH & CLARK,101427
North East Lincolnshire Council,http://statistics.data.gov.uk/id/local-authority/00FC,Resources,Finance & Assets,Accountancy,Direct Employee Expenses,Agency Staff,EA105,15/02/2012,84328,"1,184.00 ",REVENUE,BADENOCH & CLARK,101427
North East Lincolnshire Council,http://statistics.data.gov.uk/id/local-authority/00FC,Resources,Finance & Assets,Accountancy,Direct Employee Expenses,Agency Staff,EA105,08/02/2012,85643,"1,320.00 ",REVENUE,BADENOCH & CLARK,101427
North East Lincolnshire Council,http://statistics.data.gov.uk/id/local-authority/00FC,Resources,Finance & Assets,Accountancy,Direct Employee Expenses,Agency Staff,EA105,15/02/2012,87240,"1,456.00 ",REVENUE,BADENOCH & CLARK,101427
North East Lincolnshire Council,http://statistics.data.gov.uk/id/local-authority/00FC,Resources,Governance & Business Support,Legal Services,Direct Employee Expenses,Agency Staff,EA105,03/02/2012,86076,"1,194.88 ",REVENUE,BADENOCH & CLARK,101427
North East Lincolnshire Council,http://statistics.data.gov.uk/id/local-authority/00FC,Resources,Governance & Business Support,Legal Services,Direct Employee Expenses,Agency Staff,EA105,21/02/2012,91032,"1,213.55 ",REVENUE,BADENOCH & CLARK,101427
North East Lincolnshire Council,http://statistics.data.gov.uk/id/local-authority/00FC,Resources,Governance & Business Support,Legal Services,Direct Employee Expenses,Agency Staff,EA105,10/02/2012,88353,"1,524.60 ",REVENUE,BADENOCH & CLARK,101427
North East Lincolnshire Council,http://statistics.data.gov.uk/id/local-authority/00FC,Resources,Governance & Business Support,Legal Services,Direct Employee Expenses,Agency Staff,EA105,13/02/2012,88354,"1,524.60 ",REVENUE,BADENOCH & CLARK,101427
North East Lincolnshire Council,http://statistics.data.gov.uk/id/local-authority/00FC,Resources,Governance & Business Support,Legal Services,Direct Employee Expenses,Agency Staff,EA105,22/02/2012,91650,"1,524.60 ",REVENUE,BADENOCH & CLARK,101427
North East Lincolnshire Council,http://statistics.data.gov.uk/id/local-authority/00FC,Resources,Governance & Business Support,Legal Services,Direct Employee Expenses,Agency Staff,EA105,22/02/2012,91651,"1,524.60 ",REVENUE,BADENOCH & CLARK,101427
North East Lincolnshire Council,http://statistics.data.gov.uk/id/local-authority/00FC,Resources,Catch 3 Feasibility,Catch 3 Feasibility,Cap Invest Prop-Prof Fees,Cap Invest Prop-Prof Fees,YE103,15/02/2012,89578,Redacted Commercially Sensitive,CAPITAL,BALFOUR BEATTY,102595
North East Lincolnshire Council,http://statistics.data.gov.uk/id/local-authority/00FC,Resources,Catch 3 Feasibility,Catch 3 Feasibility,Cap Invest Prop-Prof Fees,Cap Invest Prop-Prof Fees,YE103,16/02/2012,89648,Redacted Commercially Sensitive,CAPITAL,BALFOUR BEATTY,102595
North East Lincolnshire Council,http://statistics.data.gov.uk/id/local-authority/00FC,Resources,Finance & Assets,Facilities Management,Cleaning And Domestic Supplies,Refuse Collection,GH104,29/02/2012,92847,"2,430.00 ",REVENUE,BELL WASTE CONTROL,101433
North East Lincolnshire Council,http://statistics.data.gov.uk/id/local-authority/00FC,Resources,Governance & Business Support,Health And Safety,Indirect Employee Expenses,Medical Expenses - Employees,EB112,20/02/2012,90985,-130.00 ,REVENUE,BIRKWOOD SURGERY,105074
North East Lincolnshire Council,http://statistics.data.gov.uk/id/local-authority/00FC,Resources,Finance & Assets,Facilities Management,Premises Insurance,Premises Insurance - Premiums,GK101,01/02/2012,84846,"1,144.50 ",REVENUE,BLACKTHORN HOLDINGS LTD,101914
North East Lincolnshire Council,http://statistics.data.gov.uk/id/local-authority/00FC,Resources,Finance & Assets,Valuation & Consultancy,Energy Costs,Electricity,GB102,15/02/2012,88850,"1,248.75 ",REVENUE,BOURNE LEISURE LTD,102429
North East Lincolnshire Council,http://statistics.data.gov.uk/id/local-authority/00FC,Resources,Finance & Assets,Valuation & Consultancy,Energy Costs,Electricity,GB102,15/02/2012,88850,"3,746.21 ",REVENUE,BOURNE LEISURE LTD,102429
North East Lincolnshire Council,http://statistics.data.gov.uk/id/local-authority/00FC,Resources,Finance & Assets,Facilities Management,Energy Costs,Gas,GB101,28/02/2012,92592,953.68 ,REVENUE,BRITISH GAS BUSINESS,104398
North East Lincolnshire Council,http://statistics.data.gov.uk/id/local-authority/00FC,Resources,Finance & Assets,Facilities Management,Energy Costs,Gas,GB101,01/02/2012,85033,"6,395.15 ",REVENUE,BRITISH GAS TRADING LTD,101507
North East Lincolnshire Council,http://statistics.data.gov.uk/id/local-authority/00FC,Resources,Finance & Assets,Facilities Management,Energy Costs,Gas,GB101,23/02/2012,91803,"7,065.92 ",REVENUE,BRITISH GAS TRADING LTD,101507
North East Lincolnshire Council,http://statistics.data.gov.uk/id/local-authority/00FC,Resources,Governance & Business Support,Registrars,Miscellaneous Expenses,Other Expenses General,LL119,02/02/2012,61648,-67.00 ,REVENUE,Redacted Personal Information,Redacted Personal Information
North East Lincolnshire Council,http://statistics.data.gov.uk/id/local-authority/00FC,Resources,Governance & Business Support,Registrars,Miscellaneous Expenses,Other Expenses General,LL119,02/02/2012,61648,-35.00 ,REVENUE,Redacted Personal Information,Redacted Personal Information
North East Lincolnshire Council,http://statistics.data.gov.uk/id/local-authority/00FC,Resources,Governance & Business Support,Policy & Partnerships,Contributions To Provisions,Contributions - Third Sector,LK102,09/02/2012,87677,Redacted Commercially Sensitive,REVENUE,CARE,108887
North East Lincolnshire Council,http://statistics.data.gov.uk/id/local-authority/00FC,Resources,Governance & Business Support,Health And Safety,Equip / Furniture / Materials,Equipment - Purchase,LA101,03/02/2012,86045,"3,493.00 ",REVENUE,CASTLE GROUP LTD,108765
North East Lincolnshire Council,http://statistics.data.gov.uk/id/local-authority/00FC,Resources,Governance & Business Support,Policy & Partnerships,Contributions To Provisions,Contributions - Third Sector,LK102,09/02/2012,87659,"1,000.00 ",REVENUE,CLEETHORPES ATHLETIC CLUB,108882
North East Lincolnshire Council,http://statistics.data.gov.uk/id/local-authority/00FC,Resources,Strategic Director Resources,Director And Support,Private Contractors,Third Party Prov - Private,PH101,16/02/2012,90306,"2,500.00 ",REVENUE,COMMUNITIES TOGETHER,108021
North East Lincolnshire Council,http://statistics.data.gov.uk/id/local-authority/00FC,Resources,Finance & Assets,Chief Finance Officer,Indirect Employee Expenses,Staff Training,EB122,17/02/2012,90782,"2,250.00 ",REVENUE,CORERO SYSTEMS,105498
North East Lincolnshire Council,http://statistics.data.gov.uk/id/local-authority/00FC,Resources,Governance & Business Support,Human Resources,Indirect Employee Expenses,Disclosure Checks,EB124,08/02/2012,86859,"7,617.00 ",REVENUE,CRIMINAL RECORDS BUREAU,101374
North East Lincolnshire Council,http://statistics.data.gov.uk/id/local-authority/00FC,Resources,Governance & Business Support,Coroners,Other Agencies,Post Mortems,PJ148,21/02/2012,91031,694.00 ,REVENUE,Redacted Personal Information,Redacted Personal Information
North East Lincolnshire Council,http://statistics.data.gov.uk/id/local-authority/00FC,Resources,Strategic Director Resources,Director And Support,Consultancy,Consultancy,PL101,21/02/2012,91137,650.00 ,REVENUE,DAVID BURNBY,103325
North East Lincolnshire Council,http://statistics.data.gov.uk/id/local-authority/00FC,Resources,Devolved Formula Cap Grant,Devolved Formula Cap Grant,Cap Veh Plt Eqp-Purchase,Cap Veh Plt Eqp-Purchase,YB101,15/02/2012,89294,"1,039.14 ",CAPITAL,DELL COMPUTER CORPORATION LTD,100892
North East Lincolnshire Council,http://statistics.data.gov.uk/id/local-authority/00FC,Resources,Commission & Information Sys,Information Technology,Communications And Computing,Computer H/Ware - Purchases,LF105,27/02/2012,92253,"14,000.00 ",REVENUE,DELL COMPUTER CORPORATION LTD,100892
North East Lincolnshire Council,http://statistics.data.gov.uk/id/local-authority/00FC,Resources,Commission & Information Sys,Information Technology,Communications And Computing,Computer H/Ware - Purchases,LF105,27/02/2012,92252,"14,000.00 ",REVENUE,DELL COMPUTER CORPORATION LTD,100892
North East Lincolnshire Council,http://statistics.data.gov.uk/id/local-authority/00FC,Resources,Commission & Information Sys,Information Technology,Communications And Computing,Computer H/Ware - Purchases,LF105,27/02/2012,92257,"28,218.30 ",REVENUE,DELL COMPUTER CORPORATION LTD,100892
North East Lincolnshire Council,http://statistics.data.gov.uk/id/local-authority/00FC,Resources,Commission & Information Sys,Information Technology,Communications And Computing,Computer H/Ware - Purchases,LF105,27/02/2012,92256,"28,218.30 ",REVENUE,DELL COMPUTER CORPORATION LTD,100892
North East Lincolnshire Council,http://statistics.data.gov.uk/id/local-authority/00FC,Resources,Finance & Assets,Valuation & Consultancy,Government Grants,Grants,VA101,07/02/2012,86784,"1,529.50 ",REVENUE,DEPARTMENT FOR COMMUNITIES & LOCAL GOVERNMENT,106805
North East Lincolnshire Council,http://statistics.data.gov.uk/id/local-authority/00FC,Resources,Governance & Business Support,Legal Services,Consultancy,Consultancy,PL101,14/02/2012,89330,"2,262.00 ",REVENUE,DICKINSON DEES,101644
North East Lincolnshire Council,http://statistics.data.gov.uk/id/local-authority/00FC,Resources,Commission & Information Sys,Information Technology,Communications And Computing,Computer S/Ware - Purchases,LF101,23/02/2012,92042,"3,822.00 ",REVENUE,DOTTED EYES LTD,102296
North East Lincolnshire Council,http://statistics.data.gov.uk/id/local-authority/00FC,Resources,Governance & Business Support,Coroners,Other Agencies,Post Mortems,PJ148,10/02/2012,88359,659.00 ,REVENUE,Redacted Personal Information,Redacted Personal Information
North East Lincolnshire Council,http://statistics.data.gov.uk/id/local-authority/00FC,Resources,Governance & Business Support,Coroners,Other Agencies,Post Mortems,PJ148,21/02/2012,91024,"1,178.00 ",REVENUE,Redacted Personal Information,Redacted Personal Information
North East Lincolnshire Council,http://statistics.data.gov.uk/id/local-authority/00FC,Resources,Governance & Business Support,Coroners,Other Agencies,Post Mortems,PJ148,13/02/2012,88364,"1,190.20 ",REVENUE,Redacted Personal Information,Redacted Personal Information
North East Lincolnshire Council,http://statistics.data.gov.uk/id/local-authority/00FC,Resources,Governance & Business Support,Coroners,Other Agencies,Post Mortems,PJ148,21/02/2012,91030,"1,064.80 ",REVENUE,Redacted Personal Information,Redacted Personal Information
North East Lincolnshire Council,http://statistics.data.gov.uk/id/local-authority/00FC,Resources,Governance & Business Support,Coroners,Other Agencies,Post Mortems,PJ148,03/02/2012,86086,"1,258.40 ",REVENUE,Redacted Personal Information,Redacted Personal Information
North East Lincolnshire Council,http://statistics.data.gov.uk/id/local-authority/00FC,Resources,Governance & Business Support,Policy & Partnerships,Contributions To Provisions,Contributions - Third Sector,LK102,10/02/2012,88421,"1,000.00 ",REVENUE,EAST COAST ELITE BRASS & PERCUSSION CORPS,108936
North East Lincolnshire Council,http://statistics.data.gov.uk/id/local-authority/00FC,Resources,Governance & Business Support,Policy & Partnerships,Contributions To Provisions,Contributions - Third Sector,LK102,09/02/2012,87671,500.00 ,REVENUE,EAST MARSH INVOLVE,108884
North East Lincolnshire Council,http://statistics.data.gov.uk/id/local-authority/00FC,Resources,Governance & Business Support,Payroll,Private Contractors,Third Party Prov - Private,PH101,10/02/2012,88451,Redacted Commercially Sensitive,REVENUE,EAST RIDING OF YORKSHIRE,100377
North East Lincolnshire Council,http://statistics.data.gov.uk/id/local-authority/00FC,Resources,Governance & Business Support,Policy & Partnerships,Communications And Computing,Computer S/Ware - Maintenance,LF102,01/02/2012,84751,Redacted Commercially Sensitive,REVENUE,EAST RIDING OF YORKSHIRE COUNCIL,100654
North East Lincolnshire Council,http://statistics.data.gov.uk/id/local-authority/00FC,Resources,Devolved Formula Cap Grant,Devolved Formula Cap Grant,Cap Veh Plt Eqp-Purchase,Cap Veh Plt Eqp-Purchase,YB101,14/02/2012,89222,"1,270.29 ",CAPITAL,EDUCATION LINCS LTD,101059
North East Lincolnshire Council,http://statistics.data.gov.uk/id/local-authority/00FC,Resources,Devolved Formula Cap Grant,Devolved Formula Cap Grant,Cap Veh Plt Eqp-Purchase,Cap Veh Plt Eqp-Purchase,YB101,13/02/2012,88743,"1,889.79 ",CAPITAL,EDUCATION LINCS LTD,101059
North East Lincolnshire Council,http://statistics.data.gov.uk/id/local-authority/00FC,Resources,Commission & Information Sys,Information Technology,Equip / Furniture / Materials,Equipment - Purchase,LA101,27/02/2012,92379,523.57 ,REVENUE,ELLIOTT BAXTER & COMPANY LIMITED,101996
North East Lincolnshire Council,http://statistics.data.gov.uk/id/local-authority/00FC,Resources,Devolved Formula Cap Grant,Devolved Formula Cap Grant,Cap Land/Build-Build Enh Wrk,Cap Land/Build-Build Enh Wrk,YA102,15/02/2012,89193,"4,840.48 ",CAPITAL,EXCELL ELECTRICAL CONTRACTORS,100601
North East Lincolnshire Council,http://statistics.data.gov.uk/id/local-authority/00FC,Resources,Governance & Business Support,Policy & Partnerships,Contributions To Provisions,Contributions - Third Sector,LK102,10/02/2012,88423,995.94 ,REVENUE,FAMILY LINKS AROUND GRIMSBY,100936
North East Lincolnshire Council,http://statistics.data.gov.uk/id/local-authority/00FC,Resources,Governance & Business Support,Policy & Partnerships,Contributions To Provisions,Contributions - Third Sector,LK102,21/02/2012,91190,990.00 ,REVENUE,FAVOUR FOUNDATION LTD - YOUR PLACE,109076
North East Lincolnshire Council,http://statistics.data.gov.uk/id/local-authority/00FC,Resources,Finance & Assets,Income & Payments Service,Communications And Computing,Postage,LF111,06/02/2012,86566,"1,021.63 ",REVENUE,FINANCIAL DATA MANAGEMENT LTD,101784
North East Lincolnshire Council,http://statistics.data.gov.uk/id/local-authority/00FC,Resources,Governance & Business Support,Policy & Partnerships,Contributions To Provisions,Contributions - Third Sector,LK102,14/02/2012,89366,"1,000.00 ",REVENUE,FORESIGHT PROJECT LTD,101441
North East Lincolnshire Council,http://statistics.data.gov.uk/id/local-authority/00FC,Resources,Governance & Business Support,Policy & Partnerships,Contributions To Provisions,Contributions - Third Sector,LK102,09/02/2012,87674,977.25 ,REVENUE,FRESHNEY FORWARD,108886
North East Lincolnshire Council,http://statistics.data.gov.uk/id/local-authority/00FC,Resources,Governance & Business Support,Policy & Partnerships,Contributions To Provisions,Contributions - Third Sector,LK102,29/02/2012,93075,"1,000.00 ",REVENUE,FRIENDS OF HAVERSTOE PARK,109185
North East Lincolnshire Council,http://statistics.data.gov.uk/id/local-authority/00FC,Resources,Finance & Assets,Facilities Management,Cleaning And Domestic Supplies,Cleaning - Services,GH102,22/02/2012,91217,"233,708.26 ",REVENUE,FUTURE CLEANING SERVICES LTD,102557
North East Lincolnshire Council,http://statistics.data.gov.uk/id/local-authority/00FC,Resources,Primary Capital Programme,Primary Capital Programme,Cap Auc-Build Enh Wrk,Cap Auc-Build Enh Wrk,YF102,17/02/2012,90628,"370,805.83 ",CAPITAL,GEO HOULTON & SONS LTD,102697
